{"text_format":"1","workbook":"xlsx","n_sheets":7,"sheets":["見本シート","マスタ変更","入力シート","保存記録","削除記録","宛名印刷","市町村報告"],"not_rendered":{"charts":0,"images":1,"macros":1,"external_links":0,"defined_names":3,"comments":0,"pivot_tables":0},"unopened":[],"bounds":{"document_bytes":16777216,"sheet_cells":100000,"rows_first":2000,"rows_last":500,"rows_between":2000,"halvings":0,"cell_chars":16384,"cell_head_chars":4096},"cells_cut":0,"cells_raw":0,"read":"whole","date_system":"1900"}

{"sheet":"見本シート","index":0,"n_rows":97,"n_cols":60,"rows_kept":97,"cut":false,"hidden":false,"merged":[[94,32,94,36],[95,32,95,36],[96,32,96,36],[84,31,84,36],[85,32,85,36],[86,32,86,36],[87,32,87,36],[88,32,88,36],[89,32,89,36],[90,32,90,36],[91,32,91,36],[92,32,92,36],[78,31,82,31],[78,32,78,43],[78,44,78,55],[79,32,79,43],[79,44,79,55],[80,32,80,43],[80,44,80,55],[81,32,81,43],[81,44,81,55],[82,32,82,43],[82,44,82,55],[75,31,75,32],[75,34,75,35],[75,37,75,38],[75,40,75,41],[75,43,75,44],[75,46,75,47],[75,48,75,49],[75,52,75,53],[76,31,77,33],[76,34,76,37],[76,38,76,41],[76,42,77,43],[76,44,77,55],[77,34,77,36],[77,38,77,40],[74,31,74,32],[74,34,74,35],[74,37,74,38],[74,40,74,41],[74,43,74,44],[74,45,74,46],[74,48,74,49],[74,51,74,52],[74,54,74,55],[72,32,72,34],[72,36,72,37],[72,39,72,40],[72,42,72,43],[72,44,72,46],[72,48,72,49],[72,51,72,52],[72,54,72,55],[73,32,73,34],[73,35,73,55],[70,36,70,37],[70,39,70,40],[70,42,70,43],[70,44,70,46],[70,48,70,49],[70,51,70,52],[70,54,70,55],[71,32,71,34],[71,36,71,37],[71,39,71,40],[71,42,71,43],[71,44,71,46],[71,48,71,49],[71,51,71,52],[71,54,71,55],[67,33,67,35],[67,37,67,39],[67,41,67,43],[67,45,67,47],[67,49,67,51],[67,53,67,55],[68,31,73,31],[68,32,68,34],[68,36,68,37],[68,39,68,40],[68,42,68,43],[68,44,68,46],[68,48,68,49],[68,51,68,52],[68,54,68,55],[69,32,69,34],[69,36,69,37],[69,39,69,40],[69,42,69,43],[69,44,69,46],[69,48,69,49],[69,51,69,52],[69,54,69,55],[70,32,70,34],[64,53,64,55],[65,33,65,35],[65,37,65,39],[65,41,65,43],[65,45,65,47],[65,49,65,51],[65,53,65,55],[66,33,66,35],[66,37,66,39],[66,41,66,43],[66,45,66,47],[66,49,66,51],[66,53,66,55],[61,31,67,32],[61,33,61,35],[61,37,61,39],[61,41,61,43],[61,45,61,47],[61,49,61,51],[61,53,61,55],[62,33,62,35],[62,37,62,39],[62,41,62,43],[62,45,62,47],[62,49,62,51],[62,53,62,55],[63,33,63,35],[63,37,63,39],[63,41,63,43],[63,45,63,47],[63,49,63,51],[63,53,63,55],[64,33,64,35],[64,37,64,39],[64,41,64,43],[64,45,64,47],[64,49,64,51],[59,31,60,33],[59,34,59,35],[59,37,59,38],[59,40,59,41],[59,43,59,44],[59,45,59,46],[59,48,59,49],[59,51,59,52],[59,54,59,55],[60,34,60,35],[60,37,60,38],[60,40,60,41],[60,43,60,44],[60,45,60,46],[60,48,60,49],[60,51,60,52],[60,54,60,55],[55,31,58,31],[55,33,55,35],[55,37,55,39],[55,41,55,43],[55,45,55,47],[55,49,55,51],[55,53,55,55],[56,33,56,35],[56,37,56,39],[56,41,56,43],[56,45,56,47],[56,49,56,51],[56,53,56,55],[57,33,57,35],[57,37,57,39],[57,41,57,43],[57,45,57,47],[57,49,57,51],[57,53,57,55],[58,33,58,35],[58,36,58,47],[58,48,58,50],[58,51,58,55],[49,31,49,44],[49,45,49,48],[49,49,49,55],[50,31,54,44],[50,45,50,51],[50,52,50,55],[51,45,51,48],[51,52,51,55],[52,45,52,48],[52,52,52,55],[53,45,53,48],[53,52,53,55],[54,45,54,48],[54,49,54,55],[45,31,47,34],[46,35,46,37],[46,38,46,40],[46,41,46,43],[46,44,46,46],[46,47,46,49],[46,50,46,52],[46,53,46,55],[47,35,47,37],[47,38,47,40],[47,41,47,43],[47,44,47,46],[47,47,47,49],[47,50,47,52],[47,53,47,55],[41,31,41,34],[41,36,41,39],[41,41,41,44],[41,46,41,49],[41,51,41,55],[42,31,43,34],[42,35,43,55],[44,31,44,34],[44,36,44,38],[33,31,40,34],[33,36,33,46],[33,48,33,49],[33,51,33,52],[33,54,33,55],[34,36,34,46],[34,48,34,49],[34,51,34,52],[34,54,34,55],[35,36,35,46],[36,36,36,55],[40,38,40,54],[28,31,32,32],[28,33,30,34],[28,43,28,44],[28,45,28,46],[28,47,28,53],[29,35,30,42],[29,43,30,44],[29,45,29,46],[29,47,29,53],[30,45,30,46],[30,47,30,53],[31,33,32,34],[31,36,31,38],[32,35,32,55],[23,37,24,38],[23,51,23,53],[24,51,24,55],[25,31,25,34],[25,47,26,48],[26,31,27,34],[27,36,27,38],[27,40,27,42],[27,43,27,45],[16,33,17,34],[16,51,16,55],[17,35,17,37],[17,38,17,42],[17,43,17,46],[17,47,17,48],[17,52,17,55],[18,31,24,32],[18,33,20,34],[18,43,18,44],[18,45,18,53],[18,54,18,55],[19,35,20,42],[19,43,20,44],[19,45,20,53],[19,54,20,55],[21,33,22,34],[21,36,21,38],[21,45,21,46],[21,47,21,53],[22,35,22,55],[23,33,24,34],[23,35,24,35],[23,36,24,36],[13,35,14,45],[13,53,13,55],[14,46,15,48],[14,49,15,49],[14,50,15,50],[14,51,15,51],[14,52,15,52],[14,53,15,53],[14,54,15,55],[15,35,15,36],[15,37,15,43],[3,51,3,55],[5,31,5,32],[5,33,5,37],[5,42,5,43],[5,46,5,47],[8,31,17,32],[8,33,8,34],[8,35,8,43],[8,44,8,45],[8,46,8,55],[9,33,9,34],[9,35,9,43],[9,44,9,45],[10,33,11,34],[10,35,11,43],[10,44,11,45],[10,46,11,47],[10,48,11,50],[10,51,10,55],[11,51,11,55],[12,33,15,34],[12,36,12,38],[12,46,13,47],[12,54,12,55],[67,25,67,27],[66,9,66,11],[66,13,66,15],[66,17,66,19],[67,5,67,7],[67,9,67,11],[67,13,67,15],[67,17,67,19],[67,21,67,23],[66,21,66,23],[66,25,66,27],[62,25,62,27],[61,5,61,7],[63,5,63,7],[63,17,63,19],[63,21,63,23],[64,9,64,11],[64,13,64,15],[96,4,96,8],[86,4,86,8],[85,4,85,8],[87,4,87,8],[88,4,88,8],[84,3,84,8],[78,4,78,15],[79,4,79,15],[80,4,80,15],[91,4,91,8],[92,4,92,8],[89,4,89,8],[90,4,90,8],[81,4,81,15],[82,4,82,15],[95,4,95,8],[74,6,74,7],[74,9,74,10],[74,12,74,13],[74,15,74,16],[74,17,74,18],[74,23,74,24],[74,26,74,27],[78,3,82,3],[75,20,75,21],[75,18,75,19],[75,24,75,25],[76,3,77,5],[76,6,76,9],[76,10,76,13],[76,14,77,15],[76,16,77,27],[77,6,77,8],[77,10,77,12],[78,16,78,27],[79,16,79,27],[75,3,75,4],[75,6,75,7],[75,9,75,10],[75,12,75,13],[75,15,75,16],[94,4,94,8],[70,16,70,18],[73,4,73,6],[72,4,72,6],[73,7,73,27],[71,23,71,24],[71,26,71,27],[71,11,71,12],[71,14,71,15],[71,16,71,18],[70,20,70,21],[71,20,71,21],[70,23,70,24],[72,26,72,27],[70,26,70,27],[82,16,82,27],[74,20,74,21],[81,16,81,27],[74,3,74,4],[34,23,34,24],[34,26,34,27],[35,8,35,18],[12,5,15,6],[12,8,12,10],[15,7,15,8],[31,5,32,6],[68,26,68,27],[69,26,69,27],[69,16,69,18],[69,20,69,21],[65,25,65,27],[66,5,66,7],[61,21,61,23],[62,21,62,23],[61,25,61,27],[64,17,64,19],[64,21,64,23],[64,25,64,27],[65,5,65,7],[65,9,65,11],[64,5,64,7],[61,17,61,19],[65,21,65,23],[28,3,32,4],[14,21,15,21],[14,23,15,23],[15,9,15,15],[5,18,5,19],[5,14,5,15],[10,18,11,19],[10,20,11,22],[10,5,11,6],[8,5,8,6],[9,5,9,6],[10,16,11,17],[10,7,11,15],[16,23,16,27],[29,17,29,18],[29,19,29,25],[30,17,30,18],[30,19,30,25],[14,25,15,25],[14,26,15,27],[14,22,15,22],[12,18,13,19],[12,26,12,27],[16,5,17,6],[25,19,26,20],[5,3,5,4],[8,3,17,4],[18,3,24,4],[10,23,10,27],[11,23,11,27],[23,23,23,25],[21,8,21,10],[18,17,18,25],[22,7,22,27],[17,7,17,9],[19,7,20,14],[17,24,17,27],[17,10,17,14],[17,15,17,18],[17,19,17,20],[42,3,43,6],[42,7,43,27],[41,8,41,11],[41,13,41,16],[41,18,41,21],[41,23,41,27],[41,3,41,6],[5,5,5,9],[40,10,40,26],[27,15,27,17],[23,8,24,8],[23,9,24,10],[21,5,22,6],[19,17,20,25],[32,7,32,27],[8,18,8,27],[8,7,8,15],[9,7,9,15],[9,16,9,17],[8,16,8,17],[14,18,15,20],[13,25,13,27],[13,7,14,17],[14,24,15,24],[58,23,58,27],[51,17,51,20],[52,17,52,20],[50,24,50,27],[51,24,51,27],[44,3,44,6],[44,8,44,10],[45,3,47,6],[60,26,60,27],[59,3,60,5],[57,9,57,11],[57,13,57,15],[57,17,57,19],[57,21,57,23],[47,7,47,9],[47,10,47,12],[47,13,47,15],[47,16,47,18],[47,19,47,21],[47,22,47,24],[47,25,47,27],[59,17,59,18],[59,9,59,10],[59,12,59,13],[59,26,59,27],[63,25,63,27],[60,15,60,16],[60,17,60,18],[60,20,60,21],[60,23,60,24],[62,13,62,15],[62,9,62,11],[62,17,62,19],[60,9,60,10],[60,12,60,13],[59,15,59,16],[59,20,59,21],[59,23,59,24],[61,13,61,15],[61,9,61,11],[58,5,58,7],[59,6,59,7],[62,5,62,7],[55,5,55,7],[57,5,57,7],[68,11,68,12],[68,14,68,15],[58,8,58,19],[46,10,46,12],[46,16,46,18],[46,7,46,9],[46,19,46,21],[60,6,60,7],[56,5,56,7],[55,9,55,11],[58,20,58,22],[46,22,46,24],[68,23,68,24],[65,13,65,15],[63,9,63,11],[63,13,63,15],[52,24,52,27],[55,13,55,15],[55,17,55,19],[71,4,71,6],[71,8,71,9],[68,16,68,18],[70,4,70,6],[70,8,70,9],[70,11,70,12],[70,14,70,15],[69,4,69,6],[69,8,69,9],[69,11,69,12],[69,14,69,15],[80,16,80,27],[72,8,72,9],[72,11,72,12],[72,14,72,15],[49,3,49,16],[49,17,49,20],[49,21,49,27],[50,3,54,16],[50,17,50,23],[54,21,54,27],[53,24,53,27],[54,17,54,20],[53,17,53,20],[69,23,69,24],[68,4,68,6],[61,3,67,4],[65,17,65,19],[68,3,73,3],[72,16,72,18],[72,20,72,21],[72,23,72,24],[68,8,68,9],[68,20,68,21],[55,3,58,3],[55,21,55,23],[55,25,55,27],[56,9,56,11],[56,13,56,15],[56,17,56,19],[56,21,56,23],[56,25,56,27],[21,19,21,25],[57,25,57,27],[46,25,46,27],[27,8,27,10],[27,12,27,14],[28,15,28,16],[28,19,28,25],[29,7,30,14],[29,15,30,16],[28,17,28,18],[33,26,33,27],[46,13,46,15],[34,8,34,18],[33,8,33,18],[33,20,33,21],[33,23,33,24],[34,20,34,21],[14,56,14,61],[15,56,18,61],[1,33,1,34],[1,6,1,7],[37,8,37,27],[38,8,38,27],[37,36,37,55],[38,36,38,55],[33,3,40,6],[36,8,36,27],[31,8,31,10],[3,23,3,27],[18,26,18,27],[23,7,24,7],[18,15,18,16],[19,15,20,16],[18,5,20,6],[24,23,24,27],[23,5,24,6],[25,3,25,6],[19,26,20,27],[21,17,21,18],[26,3,27,6],[28,5,30,6]]}
[]
[null,null,null,null,null,null,"白紙",null,null,null,null,null,null,null,null,null,null,null,null,null,null,null,null,null,null,null,null,null,null,null,null,null,null,"見本"]
[]
[null,null,null,null,null,null,null,null,null,null,null,null,null,null,null,null,null,null,null,null,null,null,null,{"$f":"NOW()","v":"2014-10-23T16:07:07.090"},null,null,null,null,null,null,null,null,null,null,null,null,null,null,null,null,null,null,null,null,null,null,null,null,null,null,null,{"$f":"NOW()","v":"2014-10-23T16:07:07.090"}]
[null,null,null,"様式１－１　（申込用紙）",null,null,null,null,null,null,null,null,"市原市　特別養護老人ホーム入所申込書",null,null,null,null,null,null,null,null,null,null,null,null,null,null,null,null,null,null,"様式１－１　（申込用紙）",null,null,null,null,null,null,null,null,"市原市　特別養護老人ホーム入所申込書"]
[null,null,null,"受付日",null,"",null,null,null,null,null,null,null,"□","新規申込",null,"・","□","変更届",null,"※該当する届に☑をしてください。",null,null,null,null,null,null,null,null,null,null,"受付日",null,"",null,null,null,null,null,null,null,"☑","新規申込",null,"・","□","変更届",null,"※該当する届に☑をしてください。"]
[]
[null,null,null,null,null,null,null,null,null,null,null,null,null,null,null,null,null,null,"※確認のため介護保険証のコピーを添付して下さい。",null,null,null,null,null,null,null,null,null,null,null,null,null,null,null,null,null,null,null,null,null,null,null,null,null,null,null,"※確認のため介護保険証のコピーを添付して下さい。"]
[null,null,null,"◇入所希望者（ご本人）の情報",null,"フリガナ",null,"",null,null,null,null,null,null,null,null,"性別",null,"介護保険証被保険者番号",null,null,null,null,null,null,null,null,null,null,null,null,"◇入所希望者（ご本人）の情報",null,"フリガナ",null,"タツミ　ミドリ",null,null,null,null,null,null,null,null,"性別",null,"介護保険証被保険者番号"]
[null,null,null,null,null,"入所\n希望者\nお名前",null,"",null,null,null,null,null,null,null,null,"",null,"","","","","","","","","","",null,null,null,null,null,"入所\n希望者\nお名前",null,"辰巳みどり",null,null,null,null,null,null,null,null,"女",null,1,2,3,4,5,6,7,8,9,0]
[null,null,null,null,null,"生年\n月日",null,"",null,null,null,null,null,null,null,null,"",null,"要介護度",null,"",null,null,"保険者市町村",null,null,null,null,null,null,null,null,null,"生年\n月日",null,"1928-08-31",null,null,null,null,null,null,null,null,{"$f":"DATEDIF(AJ11,NOW(),\"y\")","v":86},null,"要介護度",null,3,null,null,"保険者市町村"]
[null,null,null,null,null,null,null,null,null,null,null,null,null,null,null,null,null,null,null,null,null,null,null,"",null,null,null,null,null,null,null,null,null,null,null,null,null,null,null,null,null,null,null,null,null,null,null,null,null,null,null,"市原市",null,null,null,null,"食費",null,"０円","第１段階"]
[null,null,null,null,null,"希望者\n住　所",null,"〒","",null,null,null,null,null,null,null,null,null,"認定\n有効\n期限",null,"平成","","年","","月","","日から",null,null,null,null,null,null,"希望者\n住　所",null,"〒","290-0187",null,null,null,null,null,null,null,null,null,"認定\n有効\n期限",null,"平成",26,"年",7,"月",1,"日から",null,null,null,"390円","第２段階"]
[null,null,null,null,null,null,null,"",null,null,null,null,null,null,null,null,null,null,null,null,"平成","","年","","月","末日まで",null,null,null,null,null,null,null,null,null,"市原市神崎２６３番地１　ケアハウス辰巳彩風苑",null,null,null,null,null,null,null,null,null,null,null,null,"平成",28,"年",6,"月","末日まで",null,null,null,null,"660円","第３段階"]
[null,null,null,null,null,null,null,null,null,null,null,null,null,null,null,null,null,null,"介護保険負担\n限度額認定証",null,null,"無","・","有","（","","）段階",null,null,null,null,null,null,null,null,null,null,null,null,null,null,null,null,null,null,null,"介護保険負担\n限度額認定証",null,null,"無","・","有","（",2,"）段階",null,"※介護保険負担限度額認定証とは・・・"]
[null,null,null,null,null,null,null,"電話",null,"",null,null,null,null,null,null,null,null,null,null,null,null,null,null,null,null,null,null,null,null,null,null,null,null,null,"電話",null,"0436-75-2266",null,null,null,null,null,null,null,null,null,null,null,null,null,null,null,null,null,null,"所得が少ない世帯の負担が増えないように市町村が発行する証明書です。詳しくは施設へお問い合わせください。"]
[null,null,null,null,null,"現況",null,"□","独居。",null,"□","７５歳以上老々夫婦介護。",null,null,null,null,"□","自宅で家族と暮らしている。",null,null,null,null,"□","介護施設・病院に入っている。",null,null,null,null,null,null,null,null,null,"現況",null,"□","独居。",null,"☑","７５歳以上老々夫婦介護。",null,null,null,null,"□","自宅で家族と暮らしている。",null,null,null,null,"□","介護施設・病院に入っている。"]
[null,null,null,null,null,null,null,"施設・病院名",null,null,"",null,null,null,null,"入所・入院時期",null,null,null,"",null,"","年","","月頃から入院・入所中。",null,null,null,null,null,null,null,null,null,null,"施設・病院名",null,null,"",null,null,null,null,"入所・入院時期",null,null,null,"",null,"","年","","月頃から入院・入所中。"]
[null,null,null,"◇主たる介護者の情報",null,"お名前",null,"□","介護者はいない。（介護保険使用含む）",null,null,null,null,null,null,"続柄",null,"生　年　月　日",null,null,null,null,null,null,null,null,"年齢",null,null,null,null,"◇主たる介護者の情報",null,"お名前",null,"□","介護者はいない。（介護保険使用含む）",null,null,null,null,null,null,"続柄",null,"生　年　月　日",null,null,null,null,null,null,null,null,"年齢"]
[null,null,null,null,null,null,null,"",null,null,null,null,null,null,null,"",null,"",null,null,null,null,null,null,null,null,"",null,null,null,null,null,null,null,null,"辰巳琢郎",null,null,null,null,null,null,null,"夫",null,"1930-05-09",null,null,null,null,null,null,null,null,{"$f":"DATEDIF(AT20,NOW(),\"y\")","v":84}]
[]
[null,null,null,null,null,"住　所",null,"〒","",null,null,null,null,null,null,null,null,"電話",null,"",null,null,null,null,null,null,null,null,null,null,null,null,null,"住　所",null,"〒","290-0187",null,null,null,null,null,null,null,null,"電話",null,"0436-75-2266"]
[null,null,null,null,null,null,null,"",null,null,null,null,null,null,null,null,null,null,null,null,null,null,null,null,null,null,null,null,null,null,null,null,null,null,null,"市原市神崎２６３番地１　ケアハウス辰巳彩風苑"]
[null,null,null,null,null,"同居\n別居",null,"□","同居","主たる\n介護者が\n通い介護",null,"□","ごく近隣から通ってきている。",null,null,null,null,"","他市等から通ってきている。",null,null,null,null,"頻度：1ヶ月に",null,null,"","日",null,null,null,null,null,"同居\n別居",null,"☑","同居","主たる\n介護者が\n通い介護",null,"□","ごく近隣から通ってきている。",null,null,null,null,"","他市等から通ってきている。",null,null,null,null,"頻度：1ヶ月に",null,null,"","日"]
[null,null,null,null,null,null,null,null,null,null,null,"□","泊まり込みをしている。",null,null,null,null,"頻度：1ヶ月に",null,null,"","泊程度",null,"※同居者は含みません。",null,null,null,null,null,null,null,null,null,null,null,null,null,null,null,"□","泊まり込みをしている。",null,null,null,null,"頻度：1ヶ月に",null,null,"","泊程度",null,"※同居者は含みません。"]
[null,null,null,"他の同居者の介護協力",null,null,null,"□","ほぼ無し。",null,null,"□","ときどきある。",null,null,"□","とてもよくある。",null,null,"近隣者の\n介護協力",null,"□","ほぼ無し。",null,"□","ときどきある。",null,null,null,null,null,"他の同居者の介護協力",null,null,null,"☑","ほぼ無し。",null,null,"□","ときどきある。",null,null,"□","とてもよくある。",null,null,"近隣者の\n介護協力",null,"□","ほぼ無し。",null,"☑","ときどきある。"]
[null,null,null,"別居血縁者の介護協力\n（主たる介護者以外）",null,null,null,"□","ほぼ無し。",null,null,"□","ときどきある。",null,null,"□","とてもよくある。",null,null,null,null,"□","とてもよくある。",null,null,null,null,null,null,null,null,"別居血縁者の介護協力\n（主たる介護者以外）",null,null,null,"□","ほぼ無し。",null,null,"☑","ときどきある。",null,null,"□","とてもよくある。",null,null,null,null,"□","とてもよくある。"]
[null,null,null,null,null,null,null,"□","ごく近隣から通い。",null,null,"□","他市等から通い。",null,null,"訪問頻度：1ヶ月に",null,null,"","日",null,"","泊まり込み頻度：１ヶ月に",null,null,null,"","泊",null,null,null,null,null,null,null,"□","ごく近隣から通い。",null,null,"☑","他市等から通い。",null,null,"訪問頻度：1ヶ月に",null,null,4,"日",null,"","泊まり込み頻度：１ヶ月に",null,null,null,1,"泊"]
[null,null,null,"◇連絡先の情報",null,"お名前",null,"□","主たる介護者と同じ",null,null,null,null,null,null,"続柄",null,"電話",null,"",null,null,null,null,null,null,null,null,null,null,null,"◇連絡先の情報",null,"お名前",null,"□","主たる介護者と同じ",null,null,null,null,null,null,"続柄",null,"電話",null,"0436-22-1111"]
[null,null,null,null,null,null,null,"",null,null,null,null,null,null,null,"",null,"FAX",null,"",null,null,null,null,null,null,null,null,null,null,null,null,null,null,null,"市原花子",null,null,null,null,null,null,null,"長女",null,"FAX",null,"0436-22-9999"]
[null,null,null,null,null,null,null,null,null,null,null,null,null,null,null,null,null,"携帯",null,"",null,null,null,null,null,null,null,null,null,null,null,null,null,null,null,null,null,null,null,null,null,null,null,null,null,"携帯",null,"090-9999-9999"]
[null,null,null,null,null,"連絡先\n住　所",null,"〒","",null,null,null,null,null,null,null,null,null,null,null,null,null,null,null,null,null,null,null,null,null,null,null,null,"連絡先\n住　所",null,"〒","290-8501"]
[null,null,null,null,null,null,null,"",null,null,null,null,null,null,null,null,null,null,null,null,null,null,null,null,null,null,null,null,null,null,null,null,null,null,null,"市原市国分寺台中央1-1"]
[null,null,null,"【入所希望理由】\n\n該当項目を\n全て選んでください",null,null,null,"□","主たる介護者が、他の要介護者または障害者をも介護している。",null,null,null,null,null,null,null,null,null,null,"□","常時",null,"□","頻繁",null,"□","随時",null,null,null,null,"【入所希望理由】\n\n該当項目を\n全て選んでください",null,null,null,"□","主たる介護者が、他の要介護者または障害者をも介護している。",null,null,null,null,null,null,null,null,null,null,"□","常時",null,"□","頻繁",null,"□","随時"]
[null,null,null,null,null,null,null,"□","主たる介護者の家庭内で、現在育児（手伝い）中である。",null,null,null,null,null,null,null,null,null,null,"□","常時",null,"□","頻繁",null,"□","随時",null,null,null,null,null,null,null,null,"□","主たる介護者の家庭内で、現在育児（手伝い）中である。",null,null,null,null,null,null,null,null,null,null,"□","常時",null,"□","頻繁",null,"□","随時"]
[null,null,null,null,null,null,null,"□","主たる介護者は就労していて、十分な介護ができない。",null,null,null,null,null,null,null,null,null,null,null,"労働時間",null,"週","","時間程度",null,null,null,null,null,null,null,null,null,null,"□","主たる介護者は就労していて、十分な介護ができない。",null,null,null,null,null,null,null,null,null,null,null,"労働時間",null,"週","","時間程度"]
[null,null,null,null,null,null,null,"□","介護する者なく介護はほぼ介護サービス事業者まかせである。あるいは、必要と思われる介護サービスを受けていない。",null,null,null,null,null,null,null,null,null,null,null,null,null,null,null,null,null,null,null,null,null,null,null,null,null,null,"☑","介護する者なく介護はほぼ介護サービス事業者まかせである。あるいは、必要と思われる介護サービスを受けていない。"]
[null,null,null,null,null,null,null,"□","主介護者が要支援１以上、または80歳以上、あるいは継続治療の必要な重篤な病気や障害があるため、十分な介護ができないため。",null,null,null,null,null,null,null,null,null,null,null,null,null,null,null,null,null,null,null,null,null,null,null,null,null,null,"☑","主介護者が要支援１以上、または80歳以上、あるいは継続治療の必要な重篤な病気や障害があるため、十分な介護ができないため。"]
[null,null,null,null,null,null,null,"□","施設や病院などから退去を求められているが、在宅における介護は極めて厳しいため。",null,null,null,null,null,null,null,null,null,null,null,null,null,null,null,null,null,null,null,null,null,null,null,null,null,null,"□","施設や病院などから退去を求められているが、在宅における介護は極めて厳しいため。"]
[null,null,null,null,null,null,null,"□","エレベーターがない、改修が必要があるが借家であるなど、居住環境の事情から十分な介護ができないため。",null,null,null,null,null,null,null,null,null,null,null,null,null,null,null,null,null,null,null,null,null,null,null,null,null,null,"□","エレベーターがない、改修が必要があるが借家であるなど、居住環境の事情から十分な介護ができないため。"]
[null,null,null,null,null,null,null,"","その他　（",null,"",null,null,null,null,null,null,null,null,null,null,null,null,null,null,null,null,"）",null,null,null,null,null,null,null,"","その他　（",null,"",null,null,null,null,null,null,null,null,null,null,null,null,null,null,null,null,"）"]
[null,null,null,"【介護者の意見】\n１つだけ選択",null,null,null,"□","介護の継続可能",null,null,null,"□","かなり厳しい毎日である。",null,null,null,"□","体が悲鳴をあげている。",null,null,null,"□","もう介護にはかかわれない。",null,null,null,null,null,null,null,"【介護者の意見】\n１つだけ選択",null,null,null,"□","介護の継続可能",null,null,null,"☑","かなり厳しい毎日である。",null,null,null,"□","体が悲鳴をあげている。",null,null,null,"□","もう介護にはかかわれない。"]
[null,null,null,"介護に関する\n苦労や思い",null,null,null,"",null,null,null,null,null,null,null,null,null,null,null,null,null,null,null,null,null,null,null,null,null,null,null,"介護に関する\n苦労や思い",null,null,null,"ケアハウスに住んでいるのでなんとか頑張れているが、身体介護が増えてきており厳しい。移乗動作ができなくなってきているうえ、認知症も顕著になっている。共倒れの危険性がある。子供は長女が近隣に住んでいるが介護には消極的。"]
[]
[null,null,null,"入所希望時期",null,null,null,"□","すぐ入所したい。",null,null,"□","退院・退所したときにお願いしたい。",null,null,null,null,null,"□","すぐではないが将来の入所を考えている。",null,null,null,null,null,null,null,null,null,null,null,"入所希望時期",null,null,null,"□","すぐ入所したい。",null,null,"□","退院・退所したときにお願いしたい。",null,null,null,null,null,"☑","すぐではないが将来の入所を考えている。"]
[null,null,null,"申込状況\n※特養・老健・ＧＨ",null,null,null,"□","当該施設のみ。",null,null,"□","複数の施設を申し込んでいる、または申し込む予定。",null,null,null,null,null,null,null,null,null,null,null,null,null,null,null,null,null,null,"申込状況\n※特養・老健・ＧＨ",null,null,null,"☑","当該施設のみ。",null,null,"□","複数の施設を申し込んでいる、または申し込む予定。"]
[null,null,null,null,null,null,null,"申込済み",null,null,"",null,null,"",null,null,"",null,null,"",null,null,"",null,null,"",null,null,null,null,null,null,null,null,null,"申込済み",null,null,"辰巳萬緑苑",null,null,"",null,null,"",null,null,"",null,null,"",null,null,""]
[null,null,null,null,null,null,null,"申込予定",null,null,"",null,null,"",null,null,"",null,null,"",null,null,"",null,null,"",null,null,null,null,null,null,null,null,null,"申込予定",null,null,"",null,null,"",null,null,"",null,null,"",null,null,"",null,null,""]
[null,null,null,"様式１－２　（聞き取り調査用）",null,null,null,null,null,null,null,null,null,null,null,null,null,null,null,null,null,null,null,null,null,null,null,null,null,null,null,"様式１－２　（聞き取り調査用）"]
[null,null,null,"治療歴・薬について（判る範囲で）",null,null,null,null,null,null,null,null,null,null,null,null,null,"居宅介護支援事業所",null,null,null,"",null,null,null,null,null,null,null,null,null,"治療歴・薬について（判る範囲で）",null,null,null,null,null,null,null,null,null,null,null,null,null,"居宅介護支援事業所",null,null,null,"介護サポート辰巳"]
[null,null,null,"",null,null,null,null,null,null,null,null,null,null,null,null,null,"介護サービスの利用頻度\n（月３０日としておおよそ）",null,null,null,null,null,null,"事業所名",null,null,null,null,null,null,"高血圧\n脳梗塞（平成２３年８月　→　辰巳病院入院）\n脳血管性認知症（アルツハイマー？）",null,null,null,null,null,null,null,null,null,null,null,null,null,"介護サービスの利用頻度\n（月３０日としておおよそ）",null,null,null,null,null,null,"事業所名"]
[null,null,null,null,null,null,null,null,null,null,null,null,null,null,null,null,null,"ショートステイ\nお泊りデイ",null,null,null,"月","","回","",null,null,null,null,null,null,null,null,null,null,null,null,null,null,null,null,null,null,null,null,"ショートステイ\nお泊りデイ",null,null,null,"月","","回"]
[null,null,null,null,null,null,null,null,null,null,null,null,null,null,null,null,null,"デイケア・デイサービス",null,null,null,"月","","回","",null,null,null,null,null,null,null,null,null,null,null,null,null,null,null,null,null,null,null,null,"デイケア・デイサービス",null,null,null,"月",16,"回","デイサービスたつみの森"]
[null,null,null,null,null,null,null,null,null,null,null,null,null,null,null,null,null,"ヘルパー・訪問介護",null,null,null,"月","","回","",null,null,null,null,null,null,null,null,null,null,null,null,null,null,null,null,null,null,null,null,"ヘルパー・訪問介護",null,null,null,"月",8,"回","辰巳ホームヘルパーST"]
[null,null,null,null,null,null,null,null,null,null,null,null,null,null,null,null,null,"その他",null,null,null,"",null,null,null,null,null,null,null,null,null,null,null,null,null,null,null,null,null,null,null,null,null,null,null,"その他",null,null,null,"たすけあいねこの手（部屋の片づけ）月１回"]
[null,null,null,"医療処置等","□",{"$f":"マスタ変更!I12","v":"ペースメーカー"},null,null,"□",{"$f":"マスタ変更!M12","v":"疼痛管理"},null,null,"□",{"$f":"マスタ変更!Q12","v":"人工肛門"},null,null,"□",{"$f":"マスタ変更!U12","v":"尿カテーテル"},null,null,"□",{"$f":"マスタ変更!Y12","v":"皮膚疾患管理"},null,null,"□",{"$f":"マスタ変更!AC12","v":"看取り"},null,null,null,null,null,"医療処置等","□",{"$f":"F56","v":"ペースメーカー"},null,null,"□",{"$f":"J56","v":"疼痛管理"},null,null,"□",{"$f":"N56","v":"人工肛門"},null,null,"□",{"$f":"R56","v":"尿カテーテル"},null,null,"□",{"$f":"V56","v":"皮膚疾患管理"},null,null,"□",{"$f":"Z56","v":"看取り"}]
[null,null,null,null,"□",{"$f":"マスタ変更!I13","v":"インスリン注射"},null,null,"□",{"$f":"マスタ変更!M13","v":"膀胱洗浄"},null,null,"□",{"$f":"マスタ変更!Q13","v":"導尿"},null,null,"□",{"$f":"マスタ変更!U13","v":"腹膜透析"},null,null,"□",{"$f":"マスタ変更!Y13","v":"人工透析"},null,null,"□",{"$f":"マスタ変更!AC13","v":"摘便・浣腸"},null,null,null,null,null,null,"□",{"$f":"F57","v":"インスリン注射"},null,null,"□","膀胱洗浄",null,null,"□","導尿",null,null,"□","腹膜透析",null,null,"□","人工透析",null,null,"□","摘便・浣腸"]
[null,null,null,null,"□",{"$f":"マスタ変更!I14","v":"胃ろう"},null,null,"□",{"$f":"マスタ変更!M14","v":"経鼻栄養"},null,null,"□",{"$f":"マスタ変更!Q14","v":"ＩＶＨ"},null,null,"□",{"$f":"マスタ変更!U14","v":"在宅酸素"},null,null,"□",{"$f":"マスタ変更!Y14","v":"気管切開"},null,null,"□",{"$f":"マスタ変更!AC14","v":"痰の吸引"},null,null,null,null,null,null,"□","胃ろう",null,null,"□","経鼻栄養",null,null,"□","ＩＶＨ",null,null,"□","在宅酸素",null,null,"□","気管切開",null,null,"□","痰の吸引"]
[null,null,null,null,"□","その他",null,null,"",null,null,null,null,null,null,null,null,null,null,null,"主治医・病院",null,null,"",null,null,null,null,null,null,null,null,"□","その他",null,null,"",null,null,null,null,null,null,null,null,null,null,null,"主治医・病院",null,null,"辰巳病院"]
[null,null,null,"麻痺・拘縮\n運動障害",null,null,"右腕",null,"□","軽度障害",null,"□","中度障害",null,"□","重度障害",null,"左腕",null,"□","軽度障害",null,"□","中度障害",null,"□","重度障害",null,null,null,null,"麻痺・拘縮\n運動障害",null,null,"右腕",null,"□","軽度障害",null,"□","中度障害",null,"□","重度障害",null,"左腕",null,"☑","軽度障害",null,"□","中度障害",null,"□","重度障害"]
[null,null,null,null,null,null,"右脚",null,"□","軽度障害",null,"□","中度障害",null,"□","重度障害",null,"左脚",null,"□","軽度障害",null,"□","中度障害",null,"□","重度障害",null,null,null,null,null,null,null,"右脚",null,"☑","軽度障害",null,"□","中度障害",null,"□","重度障害",null,"左脚",null,"☑","軽度障害",null,"□","中度障害",null,"□","重度障害",null,"この項目を除き、他は"]
[null,null,null,"日常生活能力と介護について",null,"歩行・立位の能力",null,null,"□",{"$f":"マスタ変更!M18","v":"自力歩行"},null,null,"□",{"$f":"マスタ変更!Q18","v":"手引・伝い歩き"},null,null,"□",{"$f":"マスタ変更!U18","v":"立位・支えて移動"},null,null,"□",{"$f":"マスタ変更!Y18","v":"支えて立つ程度"},null,null,"□",{"$f":"マスタ変更!AC18","v":"できない"},null,null,null,null,null,"日常生活能力と介護について",null,"歩行・立位の能力",null,null,"□",{"$f":"J62","v":"自力歩行"},null,null,"□",{"$f":"N62","v":"手引・伝い歩き"},null,null,"☑",{"$f":"R62","v":"立位・支えて移動"},null,null,"□",{"$f":"V62","v":"支えて立つ程度"},null,null,"□",{"$f":"Z62","v":"できない"},null,null,"横一列で一項目チェックです。"]
[null,null,null,null,null,"尿意",null,null,"□",{"$f":"マスタ変更!M19","v":"ある"},null,null,"□",{"$f":"マスタ変更!Q19","v":"曖昧"},null,null,"□",{"$f":"マスタ変更!U19","v":"なし"},null,null,"□","尿カテーテル",null,null,"□","失禁後の掃除\n着替え介助",null,null,null,null,null,null,null,"尿意",null,null,"□","ある",null,null,"☑","曖昧",null,null,"□","なし",null,null,"□","尿カテーテル",null,null,"☑","失禁後の掃除\n着替え介助",null,null,"一番重いものをチェックします。"]
[null,null,null,null,null,"便意",null,null,"□",{"$f":"マスタ変更!M20","v":"ある"},null,null,"□",{"$f":"マスタ変更!Q20","v":"曖昧"},null,null,"□",{"$f":"マスタ変更!U20","v":"なし"},null,null,"□","人工肛門",null,null,"□","失禁後の掃除\n着替え介助",null,null,null,null,null,null,null,"便意",null,null,"☑","ある",null,null,"□","曖昧",null,null,"□","なし",null,null,"□","人工肛門",null,null,"□","失禁後の掃除\n着替え介助"]
[null,null,null,null,null,"排泄（日中）",null,null,"□",{"$f":"マスタ変更!M21","v":"自分で行く"},null,null,"□",{"$f":"マスタ変更!Q21","v":"自分で行くが\n失敗がある"},null,null,"□",{"$f":"マスタ変更!U21","v":"下着をおろす\nお尻を拭く"},null,null,"□",{"$f":"マスタ変更!Y21","v":"抱えて移乗\n全介助"},null,null,"□",{"$f":"マスタ変更!AC21","v":"ベッドで\nおむつ交換"},null,null,null,null,null,null,null,"排泄（日中）",null,null,"□","自分で行く",null,null,"□","自分で行くが\n失敗がある",null,null,"☑","下着をおろす\nお尻を拭く",null,null,"□","抱えて移乗\n全介助",null,null,"□",{"$f":"Z65","v":"ベッドで\nおむつ交換"}]
[null,null,null,null,null,"排泄（夜間）",null,null,"□",{"$f":"マスタ変更!M22","v":"自分で行く"},null,null,"□",{"$f":"マスタ変更!Q22","v":"自分で行くが\n失敗がある"},null,null,"□",{"$f":"マスタ変更!U22","v":"下着をおろす\nお尻を拭く"},null,null,"□",{"$f":"マスタ変更!Y22","v":"抱えて移乗\n全介助"},null,null,"□",{"$f":"マスタ変更!AC22","v":"ベッドで\nおむつ交換"},null,null,null,null,null,null,null,"排泄（夜間）",null,null,"□","自分で行く",null,null,"□","自分で行くが\n失敗がある",null,null,"☑","下着をおろす\nお尻を拭く",null,null,"□","抱えて移乗\n全介助",null,null,"□","ベッドで\nおむつ交換"]
[null,null,null,null,null,"食事摂取",null,null,"□",{"$f":"マスタ変更!M23","v":"自力摂取"},null,null,"□",{"$f":"マスタ変更!Q23","v":"一部介助"},null,null,"□",{"$f":"マスタ変更!U23","v":"半分以上介助"},null,null,"□",{"$f":"マスタ変更!Y23","v":"全介助・経管"},null,null,"□",{"$f":"マスタ変更!AC23","v":"１回３０分以上\n直接介助"},null,null,null,null,null,null,null,"食事摂取",null,null,"☑","自力摂取",null,null,"□","一部介助",null,null,"□","半分以上介助",null,null,"□","全介助・経管",null,null,"□","１回３０分以上\n直接介助"]
[null,null,null,null,null,"日中の\n過ごし方",null,null,"□",{"$f":"マスタ変更!M24","v":"近所なら\n行動できる"},null,null,"□",{"$f":"マスタ変更!Q24","v":"家の中なら\n行動できる"},null,null,"□",{"$f":"マスタ変更!U24","v":"起きて生活できる\n行動の補助必要"},null,null,"□",{"$f":"マスタ変更!Y24","v":"寝たり起きたり\n介助生活"},null,null,"□",{"$f":"マスタ変更!AC24","v":"寝室中心\nほぼ全て介助"},null,null,null,null,null,null,null,"日中の\n過ごし方",null,null,"□","近所なら\n行動できる",null,null,"□","家の中なら\n行動できる",null,null,"☑","起きて生活できる\n行動の補助必要",null,null,"□","寝たり起きたり\n介助生活",null,null,"□","寝室中心\nほぼ全て介助"]
[null,null,null,"認知症ＢＰＳＤ",{"$f":"マスタ変更!H25","v":"幻覚\n幻聴"},null,null,"□","ときどき",null,"□","よくある",null,"□","耐え難い",null,{"$f":"マスタ変更!T25","v":"異食・収集等"},null,null,"□","ときどき",null,"□","よくある",null,"□","耐え難い",null,null,null,null,"認知症ＢＰＳＤ",{"$f":"E69","v":"幻覚\n幻聴"},null,null,"□","ときどき",null,"□","よくある",null,"□","耐え難い",null,{"$f":"Q69","v":"異食・収集等"},null,null,"□","ときどき",null,"□","よくある",null,"□","耐え難い"]
[null,null,null,null,{"$f":"マスタ変更!H26","v":"物盗られ妄想\n被害妄想"},null,null,"□","ときどき",null,"□","よくある",null,"□","耐え難い",null,{"$f":"マスタ変更!T26","v":"精神科症状\nうつなど"},null,null,"□","ときどき",null,"□","よくある",null,"□","耐え難い",null,null,null,null,null,"物盗られ妄想\n被害妄想",null,null,"□","ときどき",null,"☑","よくある",null,"□","耐え難い",null,"精神科症状\nうつなど",null,null,"☑","ときどき",null,"□","よくある",null,"□","耐え難い"]
[null,null,null,null,{"$f":"マスタ変更!H27","v":"不眠行動\n昼夜逆転"},null,null,"□","ときどき",null,"□","よくある",null,"□","耐え難い",null,{"$f":"マスタ変更!T27","v":"同じ話や\n行動繰り返し"},null,null,"□","ときどき",null,"□","よくある",null,"□","耐え難い",null,null,null,null,null,"不眠行動\n昼夜逆転",null,null,"☑","ときどき",null,"□","よくある",null,"□","耐え難い",null,"同じ話や\n行動繰り返し",null,null,"□","ときどき",null,"☑","よくある",null,"□","耐え難い"]
[null,null,null,null,{"$f":"マスタ変更!H28","v":"徘徊行動"},null,null,"□","ときどき",null,"□","よくある",null,"□","耐え難い",null,{"$f":"マスタ変更!T28","v":"不潔行為\n弄便・放尿"},null,null,"□","ときどき",null,"□","よくある",null,"□","耐え難い",null,null,null,null,null,"徘徊行動",null,null,"□","ときどき",null,"□","よくある",null,"□","耐え難い",null,"不潔行為\n弄便・放尿",null,null,"□","ときどき",null,"□","よくある",null,"□","耐え難い"]
[null,null,null,null,{"$f":"マスタ変更!H29","v":"激しい抵抗\n暴言・暴行"},null,null,"□","ときどき",null,"□","よくある",null,"□","耐え難い",null,{"$f":"マスタ変更!T29","v":"奇声\n不快な音"},null,null,"□","ときどき",null,"□","よくある",null,"□","耐え難い",null,null,null,null,null,"激しい抵抗\n暴言・暴行",null,null,"□","ときどき",null,"□","よくある",null,"□","耐え難い",null,"奇声\n不快な音",null,null,"□","ときどき",null,"□","よくある",null,"□","耐え難い"]
[null,null,null,null,"その他",null,null,"",null,null,null,null,null,null,null,null,null,null,null,null,null,null,null,null,null,null,null,null,null,null,null,null,"その他",null,null,"短期記憶がなく、同じ話を何度もしている。最近は毎日のように食事を食べていないというようになったが、性格が穏やかなので喧嘩にはならない。認知症は相当進んでいる。物をなくしたといって真夜中にごぞごそ家探しをしていることが増えた。（月２回ぐらい）"]
[null,null,null,"聴力",null,"□","問題なし",null,"□","遠い",null,"□","ひどく遠い",null,"□","聴力なし\n確認不能",null,"視力",null,"□","年齢相応",null,"□","かなり悪い\n半盲",null,"□","失明",null,null,null,null,"聴力",null,"□","問題なし",null,"☑","遠い",null,"□","ひどく遠い",null,"□","聴力なし\n確認不能",null,"視力",null,"☑","年齢相応",null,"□","かなり悪い\n半盲",null,"□","失明"]
[null,null,null,"意思疎通",null,"□","問題なし",null,"□","なんとか\n通じる",null,"□","かなり\n厳しい",null,"□","ほぼ不可能",null,"□","錯乱状態",null,"身長",null,"","㎝","体重",null,"","Kg",null,null,null,"意思疎通",null,"□","問題なし",null,"☑","なんとか\n通じる",null,"□","かなり\n厳しい",null,"□","ほぼ不可能",null,"□","錯乱状態",null,"身長",null,155,"㎝","体重",null,45,"Kg"]
[null,null,null,"経済状況",null,null,"本人月収",null,null,null,"1ヶ月に本人と親族が\n支出できる限界金額",null,null,null,"特別な\n事情",null,"",null,null,null,null,null,null,null,null,null,null,null,null,null,null,"経済状況",null,null,"本人月収",null,null,null,"1ヶ月に本人と親族が\n支出できる限界金額",null,null,null,"特別な\n事情",null,"夫は要支援１であり、十分な介護は出来ていない。"]
[null,null,null,null,null,null,"",null,null,"円","",null,null,"円",null,null,null,null,null,null,null,null,null,null,null,null,null,null,null,null,null,null,null,null,120000,null,null,"円",120000,null,null,"円"]
[null,null,null,"MEMO","",null,null,null,null,null,null,null,null,null,null,null,"",null,null,null,null,null,null,null,null,null,null,null,null,null,null,"MEMO","長男は東京都在住。",null,null,null,null,null,null,null,null,null,null,null,"普段は自走型車いすを使用。"]
[null,null,null,null,"",null,null,null,null,null,null,null,null,null,null,null,"",null,null,null,null,null,null,null,null,null,null,null,null,null,null,null,"次女は館山市在住で介護には参加していない。",null,null,null,null,null,null,null,null,null,null,null,"普通食で嚥下は問題ない。"]
[null,null,null,null,"",null,null,null,null,null,null,null,null,null,null,null,"",null,null,null,null,null,null,null,null,null,null,null,null,null,null,null,"被害妄想でケアハウス職員のことを泥棒だと思っている。",null,null,null,null,null,null,null,null,null,null,null,""]
[null,null,null,null,"",null,null,null,null,null,null,null,null,null,null,null,"",null,null,null,null,null,null,null,null,null,null,null,null,null,null,null,"",null,null,null,null,null,null,null,null,null,null,null,""]
[null,null,null,null,"",null,null,null,null,null,null,null,null,null,null,null,"",null,null,null,null,null,null,null,null,null,null,null,null,null,null,null,"",null,null,null,null,null,null,null,null,null,null,null,""]
[]
[null,null,null,"評価項目",null,null,null,null,null,null,null,null,null,null,null,null,null,null,null,null,null,null,null,null,null,null,null,null,null,null,null,"評価項目"]
[null,null,null,1,"要介護度評価",null,null,null,null,null,null,null,null,null,null,null,null,null,null,null,null,null,null,null,null,null,null,null,null,null,null,1,"要介護度評価"]
[null,null,null,2,"認知症のBPSD等",null,null,null,null,null,null,null,null,null,null,null,null,null,null,null,null,null,null,null,null,null,null,null,null,null,null,2,"認知症のBPSD等"]
[null,null,null,3,"在宅サービスの利用",null,null,null,null,null,null,null,null,null,null,null,null,null,null,null,null,null,null,null,null,null,null,null,null,null,null,3,"在宅サービスの利用"]
[null,null,null,4,"主たる介護者の年齢",null,null,null,null,null,null,null,null,null,null,null,null,null,null,null,null,null,null,null,null,null,null,null,null,null,null,4,"主たる介護者の年齢"]
[null,null,null,5,"介護者の介護負担",null,null,null,null,null,null,null,null,null,null,null,null,null,null,null,null,null,null,null,null,null,null,null,null,null,null,5,"介護者の介護負担"]
[null,null,null,6,"介護者の障害や疾病",null,null,null,null,null,null,null,null,null,null,null,null,null,null,null,null,null,null,null,null,null,null,null,null,null,null,6,"介護者の障害や疾病"]
[null,null,null,7,"介護者の就労",null,null,null,null,null,null,null,null,null,null,null,null,null,null,null,null,null,null,null,null,null,null,null,null,null,null,7,"介護者の就労"]
[null,null,null,8,"育児・家族の病気",null,null,null,null,null,null,null,null,null,null,null,null,null,null,null,null,null,null,null,null,null,null,null,null,null,null,8,"育児・家族の病気"]
[null,null,null,9,"介護者の介護の関わり方",null,null,null,null,null,null,null,null,null,null,null,null,null,null,null,null,null,null,null,null,null,null,null,null,null,null,9,"介護者の介護の関わり方"]
[null,null,null,10,"他の同居介護補助者",null,null,null,null,null,null,null,null,null,null,null,null,null,null,null,null,null,null,null,null,null,null,null,null,null,null,10,"他の同居介護補助者"]
[null,null,null,11,"別居血縁者介護協力",null,null,null,null,null,null,null,null,null,null,null,null,null,null,null,null,null,null,null,null,null,null,null,null,null,null,11,"別居血縁者介護協力"]
[null,null,null,12,"近隣者等の介護協力",null,null,null,null,null,null,null,null,null,null,null,null,null,null,null,null,null,null,null,null,null,null,null,null,null,null,12,"近隣者等の介護協力"]

{"sheet":"マスタ変更","index":1,"n_rows":72,"n_cols":58,"rows_kept":72,"cut":false,"hidden":false,"merged":[[38,19,38,30],[1,5,1,11],[1,35,1,37],[34,6,38,6],[34,7,34,18],[34,19,34,30],[35,7,35,18],[35,19,35,30],[36,7,36,18],[36,19,36,30],[37,7,37,18],[37,19,37,30],[38,7,38,18],[31,27,31,28],[32,6,33,8],[32,9,32,12],[32,13,32,16],[32,17,33,18],[32,19,33,30],[33,9,33,11],[33,13,33,15],[30,23,30,24],[30,26,30,27],[30,29,30,30],[31,6,31,7],[31,9,31,10],[31,12,31,13],[31,15,31,16],[31,18,31,19],[31,21,31,22],[31,23,31,24],[28,26,28,27],[28,29,28,30],[29,7,29,9],[29,10,29,30],[30,6,30,7],[30,9,30,10],[30,12,30,13],[30,15,30,16],[30,18,30,19],[30,20,30,21],[24,6,29,6],[28,7,28,9],[28,11,28,12],[28,14,28,15],[28,17,28,18],[28,19,28,21],[28,23,28,24],[27,7,27,9],[27,11,27,12],[27,14,27,15],[27,17,27,18],[26,7,26,9],[26,11,26,12],[26,14,26,15],[26,17,26,18],[26,19,26,21],[26,23,26,24],[26,26,26,27],[26,29,26,30],[27,19,27,21],[27,23,27,24],[27,26,27,27],[27,29,27,30],[24,23,24,24],[24,26,24,27],[24,29,24,30],[25,29,25,30],[25,7,25,9],[25,11,25,12],[25,14,25,15],[25,17,25,18],[25,19,25,21],[25,23,25,24],[25,26,25,27],[24,7,24,9],[24,11,24,12],[24,14,24,15],[24,17,24,18],[24,19,24,21],[21,28,21,30],[20,8,20,10],[20,12,20,14],[20,16,20,18],[20,20,20,22],[20,24,20,26],[20,28,20,30],[23,8,23,10],[23,12,23,14],[23,16,23,18],[23,20,23,22],[23,24,23,26],[23,28,23,30],[22,8,22,10],[22,12,22,14],[22,16,22,18],[22,20,22,22],[22,24,22,26],[22,28,22,30],[17,6,23,7],[17,8,17,10],[17,12,17,14],[17,16,17,18],[17,20,17,22],[17,24,17,26],[17,28,17,30],[18,8,18,10],[18,12,18,14],[18,16,18,18],[18,20,18,22],[18,24,18,26],[18,28,18,30],[19,8,19,10],[19,12,19,14],[19,16,19,18],[19,20,19,22],[19,24,19,26],[19,28,19,30],[21,8,21,10],[21,12,21,14],[21,16,21,18],[21,20,21,22],[21,24,21,26],[15,6,16,8],[15,9,15,10],[15,12,15,13],[15,15,15,16],[15,18,15,19],[15,20,15,21],[15,23,15,24],[15,26,15,27],[15,29,15,30],[16,9,16,10],[16,12,16,13],[16,15,16,16],[16,18,16,19],[16,20,16,21],[16,23,16,24],[16,26,16,27],[16,29,16,30],[13,28,13,30],[11,28,11,30],[12,8,12,10],[12,12,12,14],[12,16,12,18],[12,20,12,22],[12,24,12,26],[12,28,12,30],[14,8,14,10],[14,11,14,22],[14,23,14,25],[14,26,14,30],[11,6,14,6],[11,8,11,10],[11,12,11,14],[11,16,11,18],[11,20,11,22],[11,24,11,26],[13,8,13,10],[13,12,13,14],[13,16,13,18],[13,20,13,22],[13,24,13,26],[5,6,5,19],[5,20,5,23],[5,24,5,30],[6,6,10,19],[6,20,6,26],[6,27,6,30],[7,20,7,23],[7,27,7,30],[8,20,8,23],[8,27,8,30],[9,20,9,23],[9,27,9,30],[10,20,10,23],[10,24,10,30],[30,44,30,45],[30,46,30,47],[27,48,27,49],[28,48,28,49],[29,48,29,49],[30,48,30,49],[1,44,1,48],[27,44,27,45],[27,46,27,47],[28,44,28,45],[28,46,28,47],[29,44,29,45],[29,46,29,47]]}
[]
[null,null,null,null,null,"マスター変更シート",null,null,null,null,null,null,null,"危険！　むやみな変更は慎みましょう！",null,null,null,null,null,null,null,null,null,null,null,null,null,null,null,null,null,null,null,null,null,"入力補助リスト",null,null,"こちらは変更しても安全です！",null,null,null,null,null,"自動計算における配点等の根拠"]
[]
[null,null,null,null,null,null,null,null,null,null,null,null,null,null,null,null,null,null,null,null,null,null,null,null,null,null,null,null,null,null,null,null,null,null,"番号","性別","要介護度","地域","続柄","病院","施設名",null,null,null,"要介護度",null,"介護度は単純に当てはめただけだが、要支援にも配点をした。"]
[null,null,null,null,null,null,"様式１－２　（聞き取り調査用）",null,null,null,null,null,null,null,null,null,null,null,null,null,null,null,null,null,null,null,null,null,null,null,null,null,null,null,1,"男",1,"市原市","妻","病院１","施設１",null,null,null,5,4,3,2,1,"要支援２","要支援１","他"]
[null,null,null,null,null,null,"治療歴・薬について（判る範囲で）",null,null,null,null,null,null,null,null,null,null,null,null,null,"居宅介護支援事業所",null,null,null,null,null,null,null,null,null,null,null,null,null,2,"女",2,"千葉市緑区","夫","病院２","施設２",null,null,null,14,12,10,6,4,3,1,"-"]
[null,null,null,null,null,null,null,null,null,null,null,null,null,null,null,null,null,null,null,null,"介護サービスの利用頻度\n（月３０日としておおよそ）",null,null,null,null,null,null,"事業所名",null,null,null,null,null,null,3,null,3,"千葉市若葉区","長男","病院３","施設３"]
[null,null,null,null,null,null,null,null,null,null,null,null,null,null,null,null,null,null,null,null,"ショートステイ\nお泊りデイ",null,null,null,"月",null,"回",null,null,null,null,null,null,null,4,null,4,"千葉市美浜区","次男","病院４","施設４"]
[null,null,null,null,null,null,null,null,null,null,null,null,null,null,null,null,null,null,null,null,"デイケア・デイサービス",null,null,null,"月",null,"回",null,null,null,null,null,null,null,5,null,5,"千葉市中央区","三男","病院５","施設５",null,null,null,"認知症",null,"A",null,null,null,"B",null,"歩行能力による基礎加点",null,null,null,null,"C"]
[null,null,null,null,null,null,null,null,null,null,null,null,null,null,null,null,null,null,null,null,"ヘルパー・訪問介護",null,null,null,"月",null,"回",null,null,null,null,null,null,null,6,null,"要支援１","袖ヶ浦市","長女","病院６","施設６",null,null,null,"ときどき","よくある","我慢できない",null,"失明","錯乱","意思疎通",null,"歩行能力","昼夜逆転\nよくある",null,"9点以上","6点以上","3点以上"]
[null,null,null,null,null,null,null,null,null,null,null,null,null,null,null,null,null,null,null,null,"その他",null,null,null,null,null,null,null,null,null,null,null,null,null,7,null,"要支援２","長生郡長柄町","次女","病院７","施設７",null,null,null,1,2,3,null,2,2,1,null,"1～2",1,null,12,8,4]
[null,null,null,null,null,null,"医療処置等","□","ペースメーカー",null,null,"□","疼痛管理",null,null,"□","人工肛門",null,null,"□","尿カテーテル",null,null,"□","皮膚疾患管理",null,null,null,"看取り",null,null,null,null,null,8,null,"申請中","木更津市","三女","病院８","施設８",null,null,null,"表Aの配点に従い、BPSDを加点。表Bに従い加点。とくに歩行能力の高い徘徊は基礎点そのものに加点しています。"]
[null,null,null,null,null,null,null,"□","インスリン注射",null,null,"□","膀胱洗浄",null,null,"□","導尿",null,null,"□","腹膜透析",null,null,"□","人工透析",null,null,"□","摘便・浣腸",null,null,null,null,null,9,null,"変更中",null,"長男嫁","病院９","施設９",null,null,null,"総合点数を表Cにあてはめ該当点数を配分。"]
[null,null,null,null,null,null,null,"□","胃ろう",null,null,"□","経鼻栄養",null,null,"□","ＩＶＨ",null,null,"□","在宅酸素",null,null,"□","気管切開",null,null,"□","痰の吸引",null,null,null,null,null,10,null,null,null,"妹","病院１０","施設１０"]
[null,null,null,null,null,null,null,"□","その他",null,null,null,null,null,null,null,null,null,null,null,null,null,null,"主治医・病院",null,null,null,null,null,null,null,null,null,null,11,null,null,null,"甥","病院１１","施設１１",null,null,null,"在宅サービスの利用",null,null,null,null,null,null,null,null,null,null,"配点率が高く、正直言って疑問です。"]
[null,null,null,null,null,null,"麻痺・拘縮\n運動障害",null,null,"右腕",null,"□","軽度障害",null,"□","中度障害",null,"□","重度障害",null,"左腕",null,"□","軽度障害",null,"□","中度障害",null,"□","重度障害",null,null,null,null,12,null,null,null,"姪","病院１２","施設１２",null,null,null,"ショート系","デイ系","ヘルパー系",null,"入院",null,0.6,0.5,0.3,"以下"]
[null,null,null,null,null,null,null,null,null,"右脚",null,"□","軽度障害",null,"□","中度障害",null,"□","重度障害",null,"左脚",null,"□","軽度障害",null,"□","中度障害",null,"□","重度障害",null,null,null,null,13,null,null,null,"孫","病院１３","施設１３",null,null,null,1,0.7,0.6,null,0.5,null,20,16,12,8]
[null,null,null,null,null,null,"日常生活能力と介護について",null,"歩行・立位の能力",null,null,"□","自力歩行",null,null,"□","手引・伝い歩き",null,null,"□","立位・支えて移動",null,null,"□","支えて立つ程度",null,null,"□","できない",null,null,null,null,null,14,null,null,null,"知人","病院１４","施設１４",null,null,null,"在宅サービスの利用回数に上記の％をそれぞれかけ在宅介護率の指数（目安）を求める。（在宅指数）"]
[null,null,null,null,null,null,null,null,"尿意",null,null,"□","ある",null,null,"□","曖昧",null,null,"□","なし",null,null,"□","尿カテーテル",null,null,"□","失禁後の掃除\n着替え介助",null,null,null,null,null,15,null,null,null,null,"病院１５","施設１５",null,null,null,"入院の場合は出た指数を５０％減額する。",null,null,null,null,"算出された指数に利用率を当てはめ配点する。"]
[null,null,null,null,null,null,null,null,"便意",null,null,"□","ある",null,null,"□","曖昧",null,null,"□","なし",null,null,"□","人工肛門",null,null,"□","失禁後の掃除\n着替え介助",null,null,null,null,null,null,null,null,null,null,null,null,null,null,null,"この指数は単純にサービス点数を考えるだけでなく、どれくらいの時間在宅していた（在宅サービスだけで耐えられたか）かも反映するようにした。"]
[null,null,null,null,null,null,null,null,"排泄（日中）",null,null,"□","自分で行く",null,null,"□","自分で行くが\n失敗がある",null,null,"□","下着をおろす\nお尻を拭く",null,null,"□","抱えて移乗\n全介助",null,null,"□","ベッドで\nおむつ交換",null,null,null,null,null,null,null,"医療負担度の配点変更"]
[null,null,null,null,null,null,null,null,"排泄（夜間）",null,null,"□","自分で行く",null,null,"□","自分で行くが\n失敗がある",null,null,"□","下着をおろす\nお尻を拭く",null,null,"□","抱えて移乗\n全介助",null,null,"□","ベッドで\nおむつ交換",null,null,null,null,null,null,null,{"$f":"I12","v":"ペースメーカー"},{"$f":"M12","v":"疼痛管理"},{"$f":"Q12","v":"人工肛門"},{"$f":"U12","v":"尿カテーテル"},{"$f":"Y12","v":"皮膚疾患管理"},{"$f":"AC12","v":"看取り"},null,null,"主たる介護者の年齢",null,null,null,"配点が甘いので後に出てくる老々介護加点を８０歳に引き上げている。"]
[null,null,null,null,null,null,null,null,"食事摂取",null,null,"□","自力摂取",null,null,"□","一部介助",null,null,"□","半分以上介助",null,null,"□","全介助・経管",null,null,"□","１回３０分以上\n直接介助",null,null,null,null,null,null,null,1,1,1,1,1,3,null,null,70,60,"－"]
[null,null,null,null,null,null,null,null,"日中の\n過ごし方",null,null,"□","近所なら\n行動できる",0,0,"□","家の中なら\n行動できる",0,0,"□","起きて生活できる\n行動の補助必要",0,0,"□","寝たり起きたり\n介助生活",0,0,"□","寝室中心\nほぼ全て介助",0,0,null,null,null,null,null,{"$f":"I13","v":"インスリン注射"},{"$f":"M13","v":"膀胱洗浄"},{"$f":"Q13","v":"導尿"},{"$f":"U13","v":"腹膜透析"},{"$f":"Y13","v":"人工透析"},{"$f":"AC13","v":"摘便・浣腸"},null,null,6,4,2]
[null,null,null,null,null,null,"認知症ＢＰＳＤ","幻覚\n幻聴",null,null,"□","ときどき",null,"□","よくある",null,"□","耐え難い",null,"異食・収集等",null,null,"□","ときどき",null,"□","よくある",null,"□","耐え難い",null,null,null,null,null,null,2,2,3,3,3,1,null,null,"凡例に上記の表の通りとした。"]
[null,null,null,null,null,null,null,"物盗られ妄想\n被害妄想",null,null,"□","ときどき",null,"□","よくある",null,"□","耐え難い",null,"精神科症状\nうつなど",null,null,"□","ときどき",null,"□","よくある",null,"□","耐え難い",null,null,null,null,null,null,{"$f":"I14","v":"胃ろう"},{"$f":"M14","v":"経鼻栄養"},{"$f":"Q14","v":"ＩＶＨ"},{"$f":"U14","v":"在宅酸素"},{"$f":"Y14","v":"気管切開"},{"$f":"AC14","v":"痰の吸引"},"その他"]
[null,null,null,null,null,null,null,"不眠行動\n昼夜逆転",null,null,"□","ときどき",null,"□","よくある",null,"□","耐え難い",null,"同じ話や\n行動繰り返し",null,null,"□","ときどき",null,"□","よくある",null,"□","耐え難い",null,null,null,null,null,null,1,2,3,1,3,2,1,null,"介護者の負担"]
[null,null,null,null,null,null,null,"徘徊行動",null,null,"□","ときどき",null,"□","よくある",null,"□","耐え難い",null,"不潔行為\n弄便・放尿",null,null,"□","ときどき",null,"□","よくある",null,"□","耐え難い",null,null,null,null,null,null,"※医療負担度は参考指標のため、点数を変更しても影響はあまりありません。自施設事情に合わせてこの項目は変更可能です。",null,null,null,null,null,null,null,"脱衣介助\n汚物処理",null,"ベッドで\nおむつ交換",null,"抱えて移乗\n全介助",null,null,"訪問回数",null,null,null,"宿泊回数"]
[null,null,null,null,null,null,null,"激しい抵抗\n暴言・暴行",null,null,"□","ときどき",null,"□","よくある",null,"□","耐え難い",null,"奇声\n不快な音",null,null,"□","ときどき",null,"□","よくある",null,"□","耐え難い",null,null,null,null,null,null,null,null,null,null,null,null,null,null,"半分以上介助",null,"全介助・経管",null,"１回３０分以上直接介助",null,null,"１０回以上","１５回以上","２０回以上",null,"５泊以上","１０泊以上","１５泊以上"]
[null,null,null,null,null,null,null,"その他",null,null,null,null,null,null,null,null,null,null,null,null,null,null,null,null,null,null,null,null,null,null,null,null,null,null,null,null,null,null,null,null,null,null,null,null,"立位\n支えて移動",null,"支えて\n立つ程度",null,"失禁後の掃除\n着替え介助",null,null,1,2,3,null,2,4,6]
[null,null,null,null,null,null,"聴力",null,"□","問題なし",null,"□","遠い",null,"□","ひどく遠い",null,"□","聴力なし\n確認不能",null,"視力",null,"□","年齢相応",null,"□","かなり悪い\n半盲",null,"□","失明",null,null,null,null,null,null,null,null,null,null,null,null,null,null,4,null,5,null,6]
[null,null,null,null,null,null,"意思疎通",null,"□","問題なし",null,"□","なんとか\n通じる",null,"□","かなり\n厳しい",null,"□","ほぼ不可能",null,"□","錯乱状態",null,"身長",null,null,"㎝","体重",null,null,"Kg",null,null,null,null,null,null,null,null,null,null,null,null,null,"排泄・食事・移乗の基本動作の困難なものに上記配点。",null,null,null,null,null,null,"失明","意思\n疎通","体重"]
[null,null,null,null,null,null,"経済状況",null,null,"本人月収",null,null,null,"1ヶ月に本人と親族が\n支出できる限界金額",null,null,null,"特別な\n事情",null,null,null,null,null,null,null,null,null,null,null,null,null,null,null,null,null,null,null,null,null,null,null,null,null,null,"訪問回数、宿泊回数も介護の手間として加点した。",null,null,null,null,null,null,1,1,"５０Kg～"]
[null,null,null,null,null,null,null,null,null,null,null,null,"円",null,null,null,"円",null,null,null,null,null,null,null,null,null,null,null,null,null,null,null,null,null,null,null,null,null,null,null,null,null,null,null,"失明・意思疎通困難以上はそれぞれ1点加点。"]
[null,null,null,null,null,null,"MEMO",null,null,null,null,null,null,null,null,null,null,null,null,null,null,null,null,null,null,null,null,null,null,null,null,null,null,null,null,null,null,null,null,null,null,null,null,null,"体重は50Kg以上で１０Kgごとに１点加点している。"]
[null,null,null,null,null,null,null,null,null,null,null,null,null,null,null,null,null,null,null,null,null,null,null,null,null,null,null,null,null,null,null,null,null,null,null,null,null,null,null,null,null,null,null,null,"これから求められた数値に在宅指数を乗じた。（入院、ショート利用時間分の減額）。すなわちこれが家族が手間暇かけた目安の指数となる。"]
[null,null,null,null,null,null,null,null,null,null,null,null,null,null,null,null,null,null,null,null,null,null,null,null,null,null,null,null,null,null,null,null,null,null,null,null,null,null,null,null,null,null,null,null,"算出された数値の上限を６とし、整数にして加点した。ただしこの上限数値は低すぎると思う。"]
[]
[null,null,null,null,null,null,null,null,null,null,null,null,null,null,null,null,null,null,null,null,null,null,null,null,null,null,null,null,null,null,null,null,null,null,null,null,null,null,null,null,null,null,null,null,"介護者の障害"]
[null,null,null,null,null,null,null,null,null,null,null,null,null,null,null,null,null,null,null,null,null,null,null,null,null,null,null,null,null,null,null,null,null,null,null,null,null,null,null,null,null,null,null,null,"無理","変調","厳しい",null,"家族に障害がありと答えた人に限定し"]
[null,null,null,null,null,null,null,null,null,null,null,null,null,null,null,null,null,null,null,null,null,null,null,null,null,null,null,null,null,null,null,null,null,null,null,null,null,null,null,null,null,null,null,null,6,4,2,null,"それぞれの回答により加点配分をしているが判断が難しいと思う。"]
[]
[]
[null,null,null,null,null,null,null,null,null,null,null,null,null,null,null,null,null,null,null,null,null,null,null,null,null,null,null,null,null,null,null,null,null,null,null,null,null,null,null,null,null,null,null,null,"介護者の就労"]
[null,null,null,null,null,null,null,null,null,null,null,null,null,null,null,null,null,null,null,null,null,null,null,null,null,null,null,null,null,null,null,null,null,null,null,null,null,null,null,null,null,null,null,null,40,20,19,null,null,"凡例に従い労働時間数によって配点。"]
[null,null,null,null,null,null,null,null,null,null,null,null,null,null,null,null,null,null,null,null,null,null,null,null,null,null,null,null,null,null,null,null,null,null,null,null,null,null,null,null,null,null,null,null,6,4,2]
[]
[null,null,null,null,null,null,null,null,null,null,null,null,null,null,null,null,null,null,null,null,null,null,null,null,null,null,null,null,null,null,null,null,null,null,null,null,null,null,null,null,null,null,null,null,"育児世帯と老々介護"]
[null,null,null,null,null,null,null,null,null,null,null,null,null,null,null,null,null,null,null,null,null,null,null,null,null,null,null,null,null,null,null,null,null,null,null,null,null,null,null,null,null,null,null,null,"老々","常時","頻繁","随時",null,"凡例に従い左の区分で配点。最高点は6点。"]
[null,null,null,null,null,null,null,null,null,null,null,null,null,null,null,null,null,null,null,null,null,null,null,null,null,null,null,null,null,null,null,null,null,null,null,null,null,null,null,null,null,null,null,null,6,6,4,2,null,"なお、この場合の老々とは７５歳以上としている。"]
[]
[null,null,null,null,null,null,null,null,null,null,null,null,null,null,null,null,null,null,null,null,null,null,null,null,null,null,null,null,null,null,null,null,null,null,null,null,null,null,null,null,null,null,null,null,"複数介護世帯"]
[null,null,null,null,null,null,null,null,null,null,null,null,null,null,null,null,null,null,null,null,null,null,null,null,null,null,null,null,null,null,null,null,null,null,null,null,null,null,null,null,null,null,null,null,"常時","頻繁","随時",null,null,"左の区分で配点。"]
[null,null,null,null,null,null,null,null,null,null,null,null,null,null,null,null,null,null,null,null,null,null,null,null,null,null,null,null,null,null,null,null,null,null,null,null,null,null,null,null,null,null,null,null,6,4,2]
[]
[null,null,null,null,null,null,null,null,null,null,null,null,null,null,null,null,null,null,null,null,null,null,null,null,null,null,null,null,null,null,null,null,null,null,null,null,null,null,null,null,null,null,null,null,"介護者の介護の関わり",null,null,null,null,null,null,null,null,"在宅指数","在宅指数"]
[null,null,null,null,null,null,null,null,null,null,null,null,null,null,null,null,null,null,null,null,null,null,null,null,null,null,null,null,null,null,null,null,null,null,null,null,null,null,null,null,null,null,null,null,"かかわれない","育児なし","障害なし","同居",null,"近住","就労時間少",null,"かかわれない",0.15,0.3]
[null,null,null,null,null,null,null,null,null,null,null,null,null,null,null,null,null,null,null,null,null,null,null,null,null,null,null,null,null,null,null,null,null,null,null,null,null,null,null,null,null,null,null,null,"YES","YES","YES","YES",null,"４回以下の訪問","20時間未満",null,6,4,2]
[]
[null,null,null,null,null,null,null,null,null,null,null,null,null,null,null,null,null,null,null,null,null,null,null,null,null,null,null,null,null,null,null,null,null,null,null,null,null,null,null,null,null,null,null,null,"上記の回答をした場合、在宅指数が極端に低い場合、時間があるのにほとんど入所系・介護サービスにゆだねていることになる。"]
[null,null,null,null,null,null,null,null,null,null,null,null,null,null,null,null,null,null,null,null,null,null,null,null,null,null,null,null,null,null,null,null,null,null,null,null,null,null,null,null,null,null,null,null,"したがって家族の関わりが希薄と判定するようにした。"]
[]
[null,null,null,null,null,null,null,null,null,null,null,null,null,null,null,null,null,null,null,null,null,null,null,null,null,null,null,null,null,null,null,null,null,null,null,null,null,null,null,null,null,null,null,null,"他の同居介護補助者",null,null,null,"他の非同居介護補助者",null,null,null,"近隣者の協力"]
[null,null,null,null,null,null,null,null,null,null,null,null,null,null,null,null,null,null,null,null,null,null,null,null,null,null,null,null,null,null,null,null,null,null,null,null,null,null,null,null,null,null,null,null,"なし","随時","常時",null,"なし","随時","常時",null,"なし","随時","常時"]
[null,null,null,null,null,null,null,null,null,null,null,null,null,null,null,null,null,null,null,null,null,null,null,null,null,null,null,null,null,null,null,null,null,null,null,null,null,null,null,null,null,null,null,null,6,4,2,null,6,4,2,null,6,4,2]
[null,null,null,null,null,null,null,null,null,null,null,null,null,null,null,null,null,null,null,null,null,null,null,null,null,null,null,null,null,null,null,null,null,null,null,null,null,null,null,null,null,null,null,null,"千葉県の配点に従ったが、ウェイトが同じだとは大いに疑問のある配点である。"]
[]
[null,null,null,null,null,null,null,null,null,null,null,null,null,null,null,null,null,null,null,null,null,null,null,null,null,null,null,null,null,null,null,null,null,null,null,null,null,null,null,null,null,null,null,null,"千葉県方式の配点の問題点"]
[null,null,null,null,null,null,null,null,null,null,null,null,null,null,null,null,null,null,null,null,null,null,null,null,null,null,null,null,null,null,null,null,null,null,null,null,null,null,null,null,null,null,null,null,"在宅サービスの利用が多いほど配点が高くなるが、サービス利用を拒否していて家族が疲弊している場合や"]
[null,null,null,null,null,null,null,null,null,null,null,null,null,null,null,null,null,null,null,null,null,null,null,null,null,null,null,null,null,null,null,null,null,null,null,null,null,null,null,null,null,null,null,null,"無理な家族介護を行っている場合、経済的理由がある家庭は不利になります。"]
[null,null,null,null,null,null,null,null,null,null,null,null,null,null,null,null,null,null,null,null,null,null,null,null,null,null,null,null,null,null,null,null,null,null,null,null,null,null,null,null,null,null,null,null,"家族の介護力については単純にいるいないではなく、無理があるか否かの判断も必要だと思います。"]
[null,null,null,null,null,null,null,null,null,null,null,null,null,null,null,null,null,null,null,null,null,null,null,null,null,null,null,null,null,null,null,null,null,null,null,null,null,null,null,null,null,null,null,null,"介護の大変さはBPSDの有無を軸に、ADL・・・排泄・移乗動作・食事を重点的に見るべきだと思います。"]

{"sheet":"入力シート","index":2,"n_rows":179,"n_cols":324,"rows_kept":179,"cut":false,"hidden":false,"merged":[[174,61,174,62],[174,64,174,65],[174,67,174,68],[174,70,174,71],[174,73,174,74],[175,64,175,65],[175,67,175,68],[175,70,175,71],[175,73,175,74],[175,61,175,62],[178,61,178,62],[178,64,178,65],[178,67,178,68],[170,76,170,77],[171,76,171,77],[174,76,174,77],[176,61,176,62],[176,67,176,68],[176,70,176,71],[176,73,176,74],[176,64,176,65],[178,70,178,71],[177,61,177,62],[177,64,177,65],[177,67,177,68],[177,70,177,71],[177,73,177,74],[167,59,167,62],[169,61,169,62],[169,64,169,65],[170,61,170,62],[170,64,170,65],[171,61,171,62],[171,64,171,65],[170,67,170,68],[170,70,170,71],[171,67,171,68],[171,70,171,71],[172,61,172,62],[172,64,172,65],[173,61,173,62],[173,64,173,65],[170,73,170,74],[171,73,171,74],[2,4,2,5],[75,122,75,123],[75,125,75,126],[79,113,83,113],[79,114,79,125],[79,126,79,137],[80,114,80,125],[80,126,80,137],[81,114,81,125],[81,126,81,137],[82,114,82,125],[82,126,82,137],[83,114,83,125],[83,126,83,137],[76,113,76,114],[76,116,76,117],[76,119,76,120],[76,122,76,123],[76,125,76,126],[76,128,76,129],[76,130,76,131],[76,134,76,135],[77,113,78,115],[77,116,77,119],[77,120,77,123],[77,124,78,125],[77,126,78,137],[78,116,78,118],[78,120,78,122],[75,127,75,128],[75,130,75,131],[75,133,75,134],[75,136,75,137],[73,133,73,134],[73,136,73,137],[74,114,74,116],[74,117,74,137],[71,118,71,119],[71,121,71,122],[71,124,71,125],[71,126,71,128],[71,130,71,131],[71,133,71,134],[71,136,71,137],[72,114,72,116],[72,118,72,119],[72,121,72,122],[72,124,72,125],[72,126,72,128],[72,130,72,131],[72,133,72,134],[72,136,72,137],[75,113,75,114],[75,116,75,117],[75,119,75,120],[68,119,68,121],[68,123,68,125],[68,127,68,129],[68,131,68,133],[68,135,68,137],[69,113,74,113],[69,114,69,116],[69,118,69,119],[69,121,69,122],[69,124,69,125],[69,126,69,128],[69,130,69,131],[69,133,69,134],[69,136,69,137],[70,114,70,116],[70,118,70,119],[70,121,70,122],[70,124,70,125],[70,126,70,128],[70,130,70,131],[70,133,70,134],[70,136,70,137],[71,114,71,116],[73,114,73,116],[73,118,73,119],[73,121,73,122],[73,124,73,125],[73,126,73,128],[73,130,73,131],[66,115,66,117],[66,119,66,121],[66,123,66,125],[66,127,66,129],[66,131,66,133],[66,135,66,137],[67,115,67,117],[67,119,67,121],[67,123,67,125],[67,127,67,129],[67,131,67,133],[67,135,67,137],[62,113,68,114],[62,115,62,117],[62,119,62,121],[62,123,62,125],[62,127,62,129],[62,131,62,133],[62,135,62,137],[63,115,63,117],[63,119,63,121],[63,123,63,125],[63,127,63,129],[63,131,63,133],[63,135,63,137],[64,115,64,117],[64,119,64,121],[64,123,64,125],[64,127,64,129],[64,131,64,133],[64,135,64,137],[68,115,68,117],[65,115,65,117],[65,119,65,121],[65,123,65,125],[65,127,65,129],[65,131,65,133],[60,113,61,115],[60,116,60,117],[60,119,60,120],[60,122,60,123],[60,125,60,126],[60,127,60,128],[60,130,60,131],[60,133,60,134],[60,136,60,137],[61,116,61,117],[61,119,61,120],[61,122,61,123],[61,125,61,126],[61,127,61,128],[61,130,61,131],[61,133,61,134],[61,136,61,137],[65,135,65,137],[56,113,59,113],[56,115,56,117],[56,119,56,121],[56,123,56,125],[56,127,56,129],[56,131,56,133],[56,135,56,137],[57,115,57,117],[57,119,57,121],[57,123,57,125],[57,127,57,129],[57,131,57,133],[57,135,57,137],[58,115,58,117],[58,119,58,121],[58,123,58,125],[58,127,58,129],[58,131,58,133],[58,135,58,137],[59,115,59,117],[59,118,59,129],[59,130,59,132],[59,133,59,137],[50,113,50,126],[50,127,50,130],[50,131,50,137],[51,113,55,126],[51,127,51,133],[51,134,51,137],[52,127,52,130],[52,134,52,137],[53,127,53,130],[53,134,53,137],[54,127,54,130],[54,134,54,137],[55,127,55,130],[55,131,55,137],[46,113,48,116],[47,117,47,119],[47,120,47,122],[47,123,47,125],[47,126,47,128],[47,129,47,131],[47,132,47,134],[47,135,47,137],[48,117,48,119],[48,120,48,122],[48,123,48,125],[48,126,48,128],[48,129,48,131],[48,132,48,134],[48,135,48,137],[42,113,42,116],[42,118,42,121],[42,123,42,126],[42,128,42,131],[42,133,42,137],[43,113,44,116],[43,117,44,137],[45,113,45,116],[45,118,45,120],[34,113,41,116],[34,118,34,128],[34,130,34,131],[34,133,34,134],[34,136,34,137],[35,118,35,128],[35,130,35,131],[35,133,35,134],[35,136,35,137],[36,118,36,128],[37,118,37,137],[41,120,41,136],[38,118,38,137],[39,118,39,137],[40,118,40,137],[26,113,26,116],[26,129,27,130],[27,113,28,116],[28,118,28,120],[28,122,28,124],[29,113,33,114],[29,115,31,116],[29,125,29,126],[29,127,29,128],[29,129,29,135],[30,117,31,124],[30,125,31,126],[30,127,30,128],[30,129,30,135],[31,127,31,128],[31,129,31,135],[32,115,33,116],[32,118,32,120],[33,117,33,137],[17,115,18,116],[18,117,18,119],[18,120,18,124],[18,125,18,128],[18,129,18,130],[18,134,18,137],[19,113,25,114],[19,115,21,116],[19,125,19,126],[19,127,19,135],[19,136,19,137],[20,117,21,124],[20,125,21,126],[20,127,21,135],[20,136,21,137],[22,115,23,116],[22,118,22,120],[22,127,22,128],[22,129,22,135],[23,117,23,137],[24,115,25,116],[24,117,25,117],[24,118,25,118],[24,119,25,120],[24,133,24,135],[25,133,25,137],[13,136,13,137],[14,117,15,127],[14,135,14,137],[15,128,16,130],[15,131,16,131],[15,132,16,132],[15,133,16,133],[15,134,16,134],[15,135,16,135],[15,136,16,137],[16,117,16,118],[16,119,16,125],[4,133,4,137],[6,113,6,114],[6,115,6,119],[6,124,6,125],[6,128,6,129],[9,113,18,114],[9,115,9,116],[9,117,9,125],[9,126,9,127],[9,128,9,137],[10,115,10,116],[10,117,10,125],[10,126,10,127],[10,128,10,137],[11,115,12,116],[11,117,12,125],[11,126,12,127],[11,128,12,129],[11,130,12,132],[11,133,11,137],[12,133,12,137],[13,115,16,116],[13,118,13,120],[13,128,14,129],[79,32,83,32],[82,33,82,44],[82,45,82,56],[83,33,83,44],[80,33,80,44],[80,45,80,56],[13,55,13,56],[20,55,21,56],[18,48,18,49],[18,53,18,56],[72,55,72,56],[27,32,28,35],[71,33,71,35],[75,49,75,50],[75,52,75,53],[75,55,75,56],[74,33,74,35],[75,32,75,33],[66,59,66,60],[67,38,67,40],[67,42,67,44],[67,46,67,48],[67,50,67,52],[67,54,67,56],[69,49,69,50],[62,46,62,48],[62,50,62,52],[62,54,62,56],[4,52,4,56],[10,47,10,56],[91,33,91,37],[92,33,92,37],[93,33,93,37],[94,33,94,37],[96,33,96,37],[87,33,87,37],[88,33,88,37],[89,33,89,37],[90,33,90,37],[11,45,12,46],[76,53,76,54],[73,52,73,53],[73,55,73,56],[71,52,71,53],[71,55,71,56],[72,45,72,47],[72,49,72,50],[72,52,72,53],[71,37,71,38],[71,40,71,41],[71,45,71,47],[71,49,71,50],[75,35,75,36],[75,38,75,39],[75,41,75,42],[75,44,75,45],[75,46,75,47],[68,50,68,52],[68,54,68,56],[67,34,67,36],[0,45,0,46],[0,48,0,49],[0,51,0,52],[0,54,0,55],[71,43,71,44],[70,33,70,35],[70,37,70,38],[70,40,70,41],[70,43,70,44],[69,33,69,35],[69,37,69,38],[69,40,69,41],[69,43,69,44],[62,32,68,33],[62,34,62,36],[62,38,62,40],[62,42,62,44],[64,34,64,36],[64,38,64,40],[41,39,41,55],[69,45,69,47],[70,55,70,56],[69,52,69,53],[28,37,28,39],[66,54,66,56],[65,34,65,36],[70,49,70,50],[70,52,70,53],[68,34,68,36],[68,38,68,40],[68,42,68,44],[68,46,68,48],[63,38,63,40],[63,42,63,44],[63,46,63,48],[66,38,66,40],[66,42,66,44],[66,46,66,48],[66,50,66,52],[137,59,137,62],[98,33,98,37],[77,32,78,34],[77,35,77,38],[77,39,77,42],[77,43,78,44],[77,45,78,56],[78,35,78,37],[78,39,78,41],[127,59,127,62],[97,33,97,37],[92,61,92,63],[76,32,76,33],[76,35,76,36],[76,38,76,39],[76,41,76,42],[76,44,76,45],[116,59,116,62],[119,59,119,62],[120,59,120,62],[73,45,73,47],[69,55,69,56],[91,44,91,45],[33,36,33,56],[28,41,28,43],[31,48,31,54],[35,49,35,50],[35,52,35,53],[35,55,35,56],[36,37,36,47],[37,37,37,56],[47,51,47,53],[56,50,56,52],[58,34,58,36],[58,38,58,40],[58,42,58,44],[58,46,58,48],[58,50,58,52],[57,34,57,36],[57,38,57,40],[57,42,57,44],[57,46,57,48],[57,50,57,52],[56,34,56,36],[56,38,56,40],[56,42,56,44],[56,46,56,48],[50,32,50,45],[50,46,50,49],[50,50,50,56],[47,39,47,41],[47,42,47,44],[16,36,16,37],[16,38,16,44],[12,61,12,70],[34,37,34,47],[34,49,34,50],[34,52,34,53],[34,55,34,56],[22,46,22,47],[22,48,22,54],[34,32,41,35],[26,32,26,35],[24,34,25,35],[24,36,25,36],[24,52,24,54],[25,52,25,56],[19,32,25,33],[19,34,21,35],[19,44,19,45],[20,46,21,54],[29,32,33,33],[29,34,31,35],[29,44,29,45],[29,46,29,47],[30,36,31,43],[30,44,31,45],[30,46,30,47],[35,37,35,47],[26,48,27,49],[22,34,23,35],[22,37,22,39],[23,36,23,56],[32,34,33,35],[6,32,6,33],[6,34,6,38],[9,32,18,33],[9,34,9,35],[10,34,10,35],[11,34,12,35],[17,34,18,35],[18,36,18,38],[18,39,18,43],[18,44,18,47],[13,34,16,35],[11,36,12,44],[19,46,19,54],[31,46,31,47],[29,48,29,54],[30,48,30,54],[32,37,32,39],[6,43,6,44],[6,47,6,48],[10,36,10,44],[10,45,10,46],[9,36,9,44],[9,45,9,46],[9,47,9,56],[14,36,15,46],[14,54,14,56],[15,47,16,49],[15,50,16,50],[15,51,16,51],[15,52,16,52],[13,37,13,39],[13,47,14,48],[119,78,119,80],[119,73,119,75],[109,76,109,77],[110,76,110,77],[58,54,58,56],[56,54,56,56],[57,54,57,56],[61,55,61,56],[81,45,81,56],[79,45,79,56],[63,54,63,56],[99,49,99,52],[48,51,48,53],[48,54,48,56],[42,52,42,56],[43,32,44,35],[43,36,44,56],[47,36,47,38],[73,49,73,50],[72,33,72,35],[72,37,72,38],[72,40,72,41],[72,43,72,44],[70,45,70,47],[59,34,59,36],[59,37,59,48],[59,49,59,51],[59,52,59,56],[65,50,65,52],[65,54,65,56],[60,32,61,34],[60,35,60,36],[64,42,64,44],[64,46,64,48],[64,50,64,52],[64,54,64,56],[66,34,66,36],[47,45,47,47],[47,48,47,50],[42,37,42,40],[42,42,42,45],[42,47,42,50],[42,32,42,35],[45,32,45,35],[45,37,45,39],[46,32,48,35],[48,36,48,38],[48,39,48,41],[48,42,48,44],[48,45,48,47],[48,48,48,50],[60,38,60,39],[60,41,60,42],[60,44,60,45],[60,46,60,47],[60,49,60,50],[60,52,60,53],[60,55,60,56],[61,35,61,36],[61,38,61,39],[61,41,61,42],[61,44,61,45],[61,46,61,47],[63,34,63,36],[51,46,51,52],[51,53,51,56],[65,38,65,40],[65,42,65,44],[65,46,65,48],[61,49,61,50],[61,52,61,53],[56,32,59,32],[69,32,74,32],[73,33,73,35],[73,37,73,38],[73,40,73,41],[73,43,73,44],[132,59,132,62],[90,61,90,63],[90,73,90,75],[96,59,96,62],[101,59,101,62],[123,59,123,62],[93,61,93,63],[93,73,93,75],[94,61,94,63],[94,73,94,75],[91,61,91,63],[108,73,108,74],[109,73,109,74],[110,73,110,74],[127,67,127,70],[127,75,127,78],[91,73,91,75],[118,65,118,67],[63,50,63,52],[19,55,19,56],[20,36,21,43],[20,44,21,45],[18,60,18,80],[15,78,16,78],[47,54,47,56],[13,86,16,87],[13,89,13,91],[13,99,14,100],[13,107,13,108],[14,88,15,98],[14,106,14,108],[15,99,16,101],[15,102,16,102],[110,79,110,80],[108,76,108,77],[109,79,109,80],[108,79,108,80],[105,59,105,62],[109,59,109,62],[52,46,52,49],[52,53,52,56],[53,46,53,49],[53,53,53,56],[54,46,54,49],[54,53,54,56],[55,46,55,49],[55,50,55,56],[83,45,83,56],[88,59,88,62],[92,73,92,75],[51,32,55,45],[6,86,6,90],[6,95,6,96],[6,99,6,100],[9,84,18,85],[9,86,9,87],[9,88,9,96],[9,97,9,98],[9,99,9,108],[10,86,10,87],[10,88,10,96],[10,97,10,98],[10,99,10,108],[11,86,12,87],[11,47,12,48],[11,49,12,51],[11,52,11,56],[12,52,12,56],[15,74,16,74],[15,80,16,80],[15,76,16,76],[15,53,16,53],[15,54,16,54],[15,55,16,56],[15,106,16,106],[15,107,16,108],[16,88,16,89],[16,90,16,96],[24,104,24,106],[25,104,25,108],[17,86,18,87],[18,88,18,90],[18,91,18,95],[18,96,18,99],[18,100,18,101],[18,105,18,108],[19,84,25,85],[19,86,21,87],[19,96,19,97],[19,98,19,106],[19,107,19,108],[20,88,21,95],[20,96,21,97],[20,107,21,108],[22,86,23,87],[23,88,23,108],[22,89,22,91],[22,98,22,99],[22,100,22,106],[35,107,35,108],[36,89,36,99],[37,89,37,108],[41,91,41,107],[42,84,42,87],[42,89,42,92],[42,94,42,97],[42,99,42,102],[42,104,42,108],[26,84,26,87],[26,100,27,101],[27,84,28,87],[28,89,28,91],[28,93,28,95],[24,86,25,87],[24,88,25,88],[24,89,25,89],[24,90,25,91],[29,84,33,85],[29,86,31,87],[29,96,29,97],[29,98,29,99],[29,100,29,106],[30,88,31,95],[30,96,31,97],[30,98,30,99],[30,100,30,106],[31,98,31,99],[31,100,31,106],[32,86,33,87],[32,89,32,91],[33,88,33,108],[58,102,58,104],[43,84,44,87],[43,88,44,108],[45,84,45,87],[45,89,45,91],[46,84,48,87],[47,88,47,90],[47,91,47,93],[47,94,47,96],[47,97,47,99],[47,100,47,102],[47,103,47,105],[47,106,47,108],[48,88,48,90],[48,91,48,93],[48,94,48,96],[48,97,48,99],[48,100,48,102],[48,103,48,105],[48,106,48,108],[61,107,61,108],[50,84,50,97],[50,98,50,101],[50,102,50,108],[51,84,55,97],[51,98,51,104],[51,105,51,108],[52,98,52,101],[52,105,52,108],[53,98,53,101],[53,105,53,108],[54,98,54,101],[54,105,54,108],[55,98,55,101],[55,102,55,108],[56,84,59,84],[56,86,56,88],[56,90,56,92],[56,94,56,96],[56,98,56,100],[56,102,56,104],[56,106,56,108],[57,86,57,88],[57,90,57,92],[57,94,57,96],[57,98,57,100],[57,102,57,104],[57,106,57,108],[58,86,58,88],[58,90,58,92],[58,94,58,96],[58,98,58,100],[62,90,62,92],[62,94,62,96],[62,98,62,100],[62,102,62,104],[62,106,62,108],[63,86,63,88],[63,90,63,92],[63,94,63,96],[63,98,63,100],[63,102,63,104],[63,106,63,108],[58,106,58,108],[59,86,59,88],[59,89,59,100],[59,101,59,103],[59,104,59,108],[60,84,61,86],[60,87,60,88],[60,90,60,91],[60,93,60,94],[60,96,60,97],[60,98,60,99],[60,101,60,102],[60,104,60,105],[60,107,60,108],[61,87,61,88],[61,90,61,91],[61,93,61,94],[61,96,61,97],[61,98,61,99],[61,101,61,102],[61,104,61,105],[68,86,68,88],[68,90,68,92],[68,94,68,96],[68,98,68,100],[68,102,68,104],[68,106,68,108],[69,85,69,87],[69,89,69,90],[69,92,69,93],[69,95,69,96],[69,97,69,99],[69,101,69,102],[69,104,69,105],[69,107,69,108],[70,85,70,87],[64,86,64,88],[64,90,64,92],[64,94,64,96],[64,98,64,100],[64,102,64,104],[64,106,64,108],[65,86,65,88],[65,90,65,92],[65,94,65,96],[65,98,65,100],[65,102,65,104],[65,106,65,108],[70,95,70,96],[70,97,70,99],[70,101,70,102],[70,104,70,105],[70,107,70,108],[27,4,28,7],[34,4,41,7],[34,9,34,19],[34,21,34,22],[71,85,71,87],[71,89,71,90],[71,92,71,93],[71,95,71,96],[71,97,71,99],[71,101,71,102],[71,104,71,105],[71,107,71,108],[72,85,72,87],[72,89,72,90],[72,92,72,93],[66,86,66,88],[66,90,66,92],[66,94,66,96],[66,98,66,100],[66,102,66,104],[66,106,66,108],[67,86,67,88],[67,90,67,92],[67,94,67,96],[67,98,67,100],[67,102,67,104],[67,106,67,108],[72,95,72,96],[72,97,72,99],[72,101,72,102],[72,104,72,105],[72,107,72,108],[79,84,83,84],[79,85,79,96],[79,97,79,108],[80,85,80,96],[80,97,80,108],[81,85,81,96],[81,97,81,108],[82,85,82,96],[82,97,82,108],[83,85,83,96],[83,97,83,108],[76,84,76,85],[76,87,76,88],[76,90,76,91],[76,93,76,94],[76,96,76,97],[76,99,76,100],[76,101,76,102],[76,105,76,106],[77,84,78,86],[77,87,77,90],[77,91,77,94],[50,4,50,17],[50,18,50,21],[50,22,50,28],[11,19,12,20],[15,24,16,24],[15,25,16,25],[15,26,16,26],[12,24,12,28],[13,9,13,11],[13,19,14,20],[13,27,13,28],[14,8,15,18],[14,26,14,28],[15,19,16,21],[15,22,16,22],[15,23,16,23],[15,27,16,28],[16,8,16,9],[16,10,16,16],[29,18,29,19],[26,20,27,21],[28,9,28,11],[28,13,28,15],[28,16,28,18],[18,11,18,15],[18,16,18,19],[18,20,18,21],[18,25,18,28],[17,24,17,28],[11,8,12,16],[38,9,38,28],[39,9,39,28],[61,18,61,19],[60,4,61,6],[60,7,60,8],[60,10,60,11],[60,13,60,14],[60,16,60,17],[60,21,60,22],[59,6,59,8],[59,9,59,20],[59,21,59,23],[59,24,59,28],[57,6,57,8],[57,10,57,12],[57,14,57,16],[57,18,57,20],[57,22,57,24],[57,26,57,28],[58,6,58,8],[58,10,58,12],[58,14,58,16],[58,18,58,20],[58,22,58,24],[58,26,58,28],[60,27,60,28],[60,18,60,19],[51,4,55,17],[51,18,51,24],[51,25,51,28],[52,18,52,21],[52,25,52,28],[53,18,53,21],[53,25,53,28],[54,18,54,21],[54,25,54,28],[55,18,55,21]],"merged_total":1335,"flags":["merged_cut"]}
[null,null,null,null,null,null,null,null,null,null,null,null,null,null,null,null,null,null,null,null,null,null,null,null,null,null,null,null,null,null,null,null,null,null,null,null,null,null,null,null,null,null,null,null,null,"手動入力",null,null,"クリック入力",null,null,"クリック入力",null,null,"リスト入力",null,null,null,null,null,null,null,null,null,null,null,null,null,null,null,null,null,null,null,null,null,null,null,null,null,null,null,null,null,null,{"$f":"$AI$7","v":"00:00:00"},null,null,{"$f":"$AK$10","v":0},{"$f":"$AK$11","v":0},{"$f":"$AT$11","v":0},{"$f":"$AV$11","v":0},{"$f":"$AK$12","v":"00:00:00"},{"$f":"$AX$12","v":0},{"$f":"$BA$13","v":0},{"$f":"$AY$14","v":0},{"$f":"$BA$14","v":0},{"$f":"$BC$14","v":1},{"$f":"$AY$15","v":0},{"$f":"$BA$15","v":0},{"$f":"$BW$16","v":""},{"$f":"$BY$16","v":""},{"$f":"$BC$16","v":0},{"$f":"$AL$14","v":0},{"$f":"$AK$15","v":0},{"$f":"$AM$17","v":0},null,null,null,null,{"$f":"IF($AN$19=\"\",\"-\",$AN$19)","v":"-"},{"$f":"$AW$19","v":"平成"},{"$f":"$AY$19","v":0},{"$f":"$BA$19","v":0},null,{"$f":"$AK$21","v":0},{"$f":"$AS$21","v":0},{"$f":"$AU$21","v":"00:00:00"},{"$f":"$AL$23","v":0},{"$f":"$AK$24","v":0},{"$f":"$AW$23","v":0},null,null,null,{"$f":"$BD$25","v":0},null,{"$f":"$AX$26","v":0},null,null,null,null,null,null,null,null,{"$f":"$AV$29","v":0},null,{"$f":"$BD$29","v":0},null,null,null,null,{"$f":"$AK$31","v":0},{"$f":"$AS$31","v":0},{"$f":"$AW$30","v":0},{"$f":"$AW$31","v":0},{"$f":"$AW$32","v":0},{"$f":"$AL$33","v":0},{"$f":"$AK$34","v":0},null,null,null,null,null,null,null,null,null,{"$f":"$BA$37","v":0},null,null,null,null,null,{"$f":"$AN$42","v":0},null,null,null,null,{"$f":"$AK$44","v":0},null,null,null,null,null,{"$f":"$AN$48","v":0},{"$f":"$AQ$48","v":0},{"$f":"$AT$48","v":0},{"$f":"$AW$48","v":0},{"$f":"$AZ$48","v":0},{"$f":"$BC$48","v":0},{"$f":"$AN$49","v":0},{"$f":"$AQ$49","v":0},{"$f":"$AT$49","v":0},{"$f":"$AW$49","v":0},{"$f":"$AZ$49","v":0},{"$f":"$BC$49","v":0},{"$f":"$AY$51","v":0},{"$f":"$AG$52","v":0},{"$f":"$AZ$53","v":0},{"$f":"$BB$53","v":0},{"$f":"$AZ$54","v":0},{"$f":"$BB$54","v":0},{"$f":"$AZ$55","v":0},{"$f":"$BB$55","v":0},{"$f":"$AY$56","v":0},null,null,null,null,null,null,null,null,null,null,null,null,null,null,null,null,null,null,null,{"$f":"$AL$60","v":0},{"$f":"$BA$60","v":0},null,null,null,null,null,null,null,null,null,null,null,null,null,null,null,null,null,null,null,null,null,null,null,null,null,null,null,null,null,null,null,null,null,null,null,null,null,null,null,null,null,null,null,null,null,null,null,null,null,null,null,null,null,null,null,null,null,null,null,null,null,null,null,null,null,null,null,null,null,null,null,null,null,null,null,null,null,{"$f":"$AK$75","v":0},null,null,null,null,null,null,null,null,null,null,null,null,{"$f":"$AZ$77","v":0},{"$f":"$BD$77","v":0},{"$f":"$AJ$79","v":0},{"$f":"$AN$79","v":0},{"$f":"$AT$78","v":0},{"$f":"$AH$80","v":0},{"$f":"$AT$80","v":0},{"$f":"$AH$81","v":0},{"$f":"$AT$81","v":0},{"$f":"$AH$82","v":0},{"$f":"$AT$82","v":0},{"$f":"$AH$83","v":0},{"$f":"$AT$83","v":0},{"$f":"$AH$84","v":0},{"$f":"$AT$84","v":0},{"$f":"$AT$90","v":0},{"$f":"$BB$98","v":0}]
[null,null,null,null,null,null,null,null,null,null,null,null,null,null,null,null,null,null,null,null,null,null,null,null,null,null,null,null,null,null,null,null,null,null,null,null,null,null,null,null,null,null,null,null,null,null,null,null,null,null,null,null,null,null,null,null,null,null,null,null,null,null,null,null,null,null,null,null,null,null,null,null,null,null,null,null,null,null,null,null,null,null,null,"番号","点数","受付日","新規申込","変更届","ふりがな","希望者\nお名前","性別","介護保険証","生年\n月日","要介護度","市町村","年","月","日","年","月","無","有","段階","〒","住所","電話","独居。","老々夫婦","家族同居","入院","施設・病院名","入所・入院時期","年","月","介護者なし","介護者","続柄","生年月日","〒","住所","電話","同居","近隣","通っている","頻度","泊まり","頻度","無","ときどき","とても","無","ときどき","とても","近隣から","他市から","頻度","泊まり","頻度","無","ときどき","とても","同じ","名前","続柄","電話","FAX","携帯","〒","住所","複数介護","常時","頻繁","随時","育児","常時","頻繁","随時","就労","労働時間","同居者なし","介護者障害","退去勧告","住宅事情","その他","内容","我慢できる","我慢と努力","限界","戸惑い","介護者意見","今すぐ入所","退院したら","将来入所","当該施設のみ","複数",1,2,3,4,5,6,1,2,3,4,5,6,"居宅介護支援事業所","既往歴","ショートステイ","事業所名","デイケア・デイサービス","事業所名","ヘルパー・訪問介護","事業所名","その他","ペースメーカー","精神疾患管理","胃瘻","疼痛管理","アレルギー疾患","摘便・浣腸","糖尿病管理","在宅酸素療法","経鼻栄養","喀痰吸引","褥瘡処置","気管切開","人工肛門処置","尿カテーテル処置","ＩＶＨ","膀胱洗浄","導尿","透析","その他","内容","主治医・病院","軽度障害","中度障害","重度障害","軽度障害","中度障害","重度障害","軽度障害","中度障害","重度障害","軽度障害","中度障害","重度障害","自力歩行","手引・伝い歩き","立位・支えて移動","支えて立つ程度","抱えて移乗","ある","曖昧","なし","尿カテーテル","失禁後の掃除\n着替え介助","ある","曖昧","なし","人工肛門","失禁後の掃除\n着替え介助","自分で行く","失敗がある","脱衣介助","抱えて移乗\n全介助","ベッドで交換","自分で行く","失敗がある","脱衣介助","抱えて移乗\n全介助","ベッドで交換","自力摂取","一部介助","半分以上介助","全介助・経管","１回３０分以上\n直接介助","近所なら\n行動できる","家の中なら\n行動できる","起きて生活\n屋外は補助必要","寝たり起きたり\n屋外は介助","寝室中心\nの生活","ときどき","よくある","耐え難い","ときどき","よくある","耐え難い","ときどき","よくある","耐え難い","ときどき","よくある","耐え難い","ときどき","よくある","耐え難い","ときどき","よくある","耐え難い","ときどき","よくある","耐え難い","ときどき","よくある","耐え難い","ときどき","よくある","耐え難い","ときどき","よくある","耐え難い","その他","問題なし","遠い","ひどく遠い","聴力なし\n確認不能","年齢相応","かなり悪い\n半盲","失明","問題なし","なんとか\n通じる","かなり\n厳しい","ほぼ不可能","錯乱状態","身長","体重","本人月収","1ヶ月に本人と親族が\n支出できる限界金額","特別な\n事情","MEMO1","MEMO2","MEMO3","MEMO4","MEMO5","MEMO6","MEMO7","MEMO8","MEMO9","MEMO10","補正","参考指標"]
[null,null,null,null,"番号",null,null,null,null,null,null,null,null,null,null,null,null,null,null,null,null,null,null,null,null,null,null,null,null,null,null,"※赤文字は必須入力項目",null,null,null,null,null,null,null,null,null,null,null,null,null,null,null,null,null,null,null,null,null,null,null,null,null,null,null,null,null,null,null,null,null,null,null,null,null,null,null,null,null,null,null,null,null,null,null,null,null,null,null,{"$f":"ROW()-5","v":-2},{"$f":"$AT$100","v":0},{"$f":"IF($CH$1=0,\"\",$CH$1)","v":""},{"$f":"$AQ$7","v":"□"},{"$f":"$AU$7","v":"□"},{"$f":"IF($CK$1=0,\"\",$CK$1)","v":""},{"$f":"IF($CL$1=0,\"\",$CL$1)","v":""},{"$f":"IF($CM$1=0,\"\",$CM$1)","v":""},{"$f":"IF($CN$1=0,\"\",$CN$1)","v":""},{"$f":"IF($CO$1=0,\"\",$CO$1)","v":""},{"$f":"IF($CP$1=0,\"\",$CP$1)","v":""},{"$f":"IF($CQ$1=0,\"\",$CQ$1)","v":""},{"$f":"IF($CR$1=0,\"\",$CR$1)","v":""},{"$f":"IF($CS$1=0,\"\",$CS$1)","v":""},{"$f":"IF($CT$1=0,\"\",$CT$1)","v":1},{"$f":"IF($CU$1=0,\"\",$CU$1)","v":""},{"$f":"IF($CV$1=0,\"\",$CV$1)","v":""},{"$f":"IF($CW$1=0,\"\",$CW$1)","v":""},{"$f":"IF($CX$1=0,\"\",$CX$1)","v":""},{"$f":"IF($CY$1=0,\"\",$CY$1)","v":""},{"$f":"IF($CZ$1=0,\"\",$CZ$1)","v":""},{"$f":"IF($DA$1=0,\"\",$DA$1)","v":""},{"$f":"IF($DB$1=0,\"\",$DB$1)","v":""},{"$f":"$AK$18","v":"□"},{"$f":"$AN$18","v":"□"},{"$f":"$AT$18","v":"□"},{"$f":"$AZ$18","v":"□"},{"$f":"IF($DG$1=0,\"\",$DG$1)","v":"-"},{"$f":"IF($DH$1=0,\"\",$DH$1)","v":"平成"},{"$f":"IF($DI$1=0,\"\",$DI$1)","v":""},{"$f":"IF($DJ$1=0,\"\",$DJ$1)","v":""},{"$f":"$AK$20","v":"□"},{"$f":"IF($DL$1=0,\"\",$DL$1)","v":""},{"$f":"IF($DM$1=0,\"\",$DM$1)","v":""},{"$f":"IF($DN$1=0,\"\",$DN$1)","v":""},{"$f":"IF($DO$1=0,\"\",$DO$1)","v":""},{"$f":"IF($DP$1=0,\"\",$DP$1)","v":""},{"$f":"IF($DQ$1=0,\"\",$DQ$1)","v":""},{"$f":"$AK$25","v":"□"},{"$f":"$AO$25","v":"□"},{"$f":"$AU$25","v":"□"},{"$f":"$DU$1","v":0},{"$f":"$AO$26","v":"□"},{"$f":"$DW$1","v":0},{"$f":"$AK$27","v":"□"},{"$f":"$AO$27","v":"□"},{"$f":"$AS$27","v":"□"},{"$f":"$AK$28","v":"□"},{"$f":"$AO$28","v":"□"},{"$f":"$AS$28","v":"□"},{"$f":"$AK$29","v":"□"},{"$f":"$AO$29","v":"□"},{"$f":"$EF$1","v":0},{"$f":"$AY$29","v":"□"},{"$f":"$EH$1","v":0},{"$f":"$AY$27","v":"□"},{"$f":"$BB$27","v":"□"},{"$f":"$AY$28","v":"□"},{"$f":"$AK$30","v":"□"},{"$f":"IF($EM$1=0,\"\",$EM$1)","v":""},{"$f":"IF($EN$1=0,\"\",$EN$1)","v":""},{"$f":"IF($EO$1=0,\"\",$EO$1)","v":""},{"$f":"IF($EP$1=0,\"\",$EP$1)","v":""},{"$f":"IF($EQ$1=0,\"\",$EQ$1)","v":""},{"$f":"IF($ER$1=0,\"\",$ER$1)","v":""},{"$f":"IF($ES$1=0,\"\",$ES$1)","v":""},{"$f":"$AK$35","v":"□"},{"$f":"$AW$35","v":"□"},{"$f":"$AZ$35","v":"□"},{"$f":"$BC$35","v":"□"},{"$f":"$AK$36","v":"□"},{"$f":"$AW$36","v":"□"},{"$f":"$AZ$36","v":"□"},{"$f":"$BC$36","v":"□"},{"$f":"$AK$37","v":"□"},{"$f":"$FC$1","v":0},{"$f":"$AK$38","v":"□"},{"$f":"$AK$39","v":"□"},{"$f":"$AK$40","v":"□"},{"$f":"$AK$41","v":"□"},{"$f":"$AK$42","v":"□"},{"$f":"IF($FI$1=0,\"\",$FI$1)","v":""},{"$f":"$AK$43","v":"□"},{"$f":"$AP$43","v":"□"},{"$f":"$AU$43","v":"□"},{"$f":"$AZ$43","v":"□"},{"$f":"IF($FN$1=0,\"\",$FN$1)","v":""},{"$f":"$AK$46","v":"□"},{"$f":"$AO$46","v":"□"},{"$f":"$AV$46","v":"□"},{"$f":"$AK$47","v":"□"},{"$f":"$AO$47","v":"□"},{"$f":"IF($FT$1=0,\"\",$FT$1)","v":""},{"$f":"IF($FU$1=0,\"\",$FU$1)","v":""},{"$f":"IF($FV$1=0,\"\",$FV$1)","v":""},{"$f":"IF($FW$1=0,\"\",$FW$1)","v":""},{"$f":"IF($FX$1=0,\"\",$FX$1)","v":""},{"$f":"IF($FY$1=0,\"\",$FY$1)","v":""},{"$f":"IF($FZ$1=0,\"\",$FZ$1)","v":""},{"$f":"IF($GA$1=0,\"\",$GA$1)","v":""},{"$f":"IF($GB$1=0,\"\",$GB$1)","v":""},{"$f":"IF($GC$1=0,\"\",$GC$1)","v":""},{"$f":"IF($GD$1=0,\"\",$GD$1)","v":""},{"$f":"IF($GE$1=0,\"\",$GE$1)","v":""},{"$f":"IF($GF$1=0,\"\",$GF$1)","v":""},{"$f":"IF($GG$1=0,\"\",$GG$1)","v":""},{"$f":"$GH$1","v":0},{"$f":"IF($GI$1=0,\"\",$GI$1)","v":""},{"$f":"$GJ$1","v":0},{"$f":"IF($GK$1=0,\"\",$GK$1)","v":""},{"$f":"$GL$1","v":0},{"$f":"IF($GM$1=0,\"\",$GM$1)","v":""},{"$f":"IF($GN$1=0,\"\",$GN$1)","v":""},{"$f":"$AH$57","v":"□"},{"$f":"$AL$57","v":"□"},{"$f":"$AP$57","v":"□"},{"$f":"$AT$57","v":"□"},{"$f":"$AX$57","v":"□"},{"$f":"$BB$57","v":"□"},{"$f":"$AH$58","v":"□"},{"$f":"$AL$58","v":"□"},{"$f":"$AP$58","v":"□"},{"$f":"$AT$58","v":"□"},{"$f":"$AX$58","v":"□"},{"$f":"$BB$58","v":"□"},{"$f":"$AH$59","v":"□"},{"$f":"$AL$59","v":"□"},{"$f":"$AP$59","v":"□"},{"$f":"$AT$59","v":"□"},{"$f":"$AX$59","v":"□"},{"$f":"$AL$59","v":"□"},{"$f":"$AH$60","v":"□"},{"$f":"IF($HH$1=0,\"\",$HH$1)","v":""},{"$f":"IF($HI$1=0,\"\",$HI$1)","v":""},{"$f":"$AL$61","v":"□"},{"$f":"$AO$61","v":"□"},{"$f":"$AR$61","v":"□"},{"$f":"$AW$61","v":"□"},{"$f":"$AZ$61","v":"□"},{"$f":"$BC$61","v":"□"},{"$f":"$AL$62","v":"□"},{"$f":"$AO$62","v":"□"},{"$f":"$AR$62","v":"□"},{"$f":"$AW$62","v":"□"},{"$f":"$AZ$62","v":"□"},{"$f":"$BC$62","v":"□"},{"$f":"$AL$63","v":"□"},{"$f":"$AP$63","v":"□"},{"$f":"$AT$63","v":"□"},{"$f":"$AX$63","v":"□"},{"$f":"$BB$63","v":"□"},{"$f":"$AL$64","v":"□"},{"$f":"$AP$64","v":"□"},{"$f":"$AT$64","v":"□"},{"$f":"$AX$64","v":"□"},{"$f":"$BB$64","v":"□"},{"$f":"$AL$65","v":"□"},{"$f":"$AP$65","v":"□"},{"$f":"$AT$65","v":"□"},{"$f":"$AX$65","v":"□"},{"$f":"$BB$65","v":"□"},{"$f":"$AL$66","v":"□"},{"$f":"$AP$66","v":"□"},{"$f":"$AT$66","v":"□"},{"$f":"$AX$66","v":"□"},{"$f":"$BB$66","v":"□"},{"$f":"$AL$67","v":"□"},{"$f":"$AP$67","v":"□"},{"$f":"$AT$67","v":"□"},{"$f":"$AX$67","v":"□"},{"$f":"$BB$67","v":"□"},{"$f":"$AL$68","v":"□"},{"$f":"$AP$68","v":"□"},{"$f":"$AT$68","v":"□"},{"$f":"$AX$68","v":"□"},{"$f":"$BB$68","v":"□"},{"$f":"$AL$69","v":"□"},{"$f":"$AP$69","v":"□"},{"$f":"$AT$69","v":"□"},{"$f":"$AX$69","v":"□"},{"$f":"$BB$69","v":"□"},{"$f":"$AK$70","v":"□"},{"$f":"$AN$70","v":"□"},{"$f":"$AQ$70","v":"□"},{"$f":"$AW$70","v":"□"},{"$f":"$AZ$70","v":"□"},{"$f":"$BC$70","v":"□"},{"$f":"$AK$71","v":"□"},{"$f":"$AN$71","v":"□"},{"$f":"$AQ$71","v":"□"},{"$f":"$AW$71","v":"□"},{"$f":"$AZ$71","v":"□"},{"$f":"$BC$71","v":"□"},{"$f":"$AK$72","v":"□"},{"$f":"$AN$72","v":"□"},{"$f":"$AQ$72","v":"□"},{"$f":"$AW$72","v":"□"},{"$f":"$AZ$72","v":"□"},{"$f":"$BC$72","v":"□"},{"$f":"$AK$73","v":"□"},{"$f":"$AN$73","v":"□"},{"$f":"$AQ$73","v":"□"},{"$f":"$AW$73","v":"□"},{"$f":"$AZ$73","v":"□"},{"$f":"$BC$73","v":"□"},{"$f":"$AK$74","v":"□"},{"$f":"$AN$74","v":"□"},{"$f":"$AQ$74","v":"□"},{"$f":"$AW$74","v":"□"},{"$f":"$AZ$74","v":"□"},{"$f":"$BC$74","v":"□"},{"$f":"IF($KI$1=0,\"\",$KI$1)","v":""},{"$f":"$AI$76","v":"□"},{"$f":"$AL$76","v":"□"},{"$f":"$AO$76","v":"□"},{"$f":"$AR$76","v":"□"},{"$f":"$AW$76","v":"□"},{"$f":"$AZ$76","v":"□"},{"$f":"$BC$76","v":"□"},{"$f":"$AI$77","v":"□"},{"$f":"$AL$77","v":"□"},{"$f":"$AO$77","v":"□"},{"$f":"$AR$77","v":"□"},{"$f":"$AU$77","v":"□"},{"$f":"$KV$1","v":0},{"$f":"$KW$1","v":0},{"$f":"$KX$1","v":0},{"$f":"$KY$1","v":0},{"$f":"IF($KZ$1=0,\"\",$KZ$1)","v":""},{"$f":"IF($LA$1=0,\"\",$LA$1)","v":""},{"$f":"IF($LB$1=0,\"\",$LB$1)","v":""},{"$f":"IF($LC$1=0,\"\",$LC$1)","v":""},{"$f":"IF($LD$1=0,\"\",$LD$1)","v":""},{"$f":"IF($LE$1=0,\"\",$LE$1)","v":""},{"$f":"IF($LF$1=0,\"\",$LF$1)","v":""},{"$f":"IF($LG$1=0,\"\",$LG$1)","v":""},{"$f":"IF($LH$1=0,\"\",$LH$1)","v":""},{"$f":"IF($LI$1=0,\"\",$LI$1)","v":""},{"$f":"IF($LJ$1=0,\"\",$LJ$1)","v":""},{"$f":"$LK$1","v":0},{"$f":"$LL$1","v":0}]
[null,null,null,null,null,null,null,null,"新規入力",null,null,"呼出修正",null,null,"参照入力",null,null,null,null,null,null,"連続印刷",null,null,null,null,"～",null,null,null,null,null,null,null,null,null,"転記",null,null,"戻る",null,null,null,null,null,null,null,null,null,null,null,null,null,null,null,null,null,null,null,null,null,{"$f":"COUNTA(保存記録!$D$6:$D$506)","v":0},null,null,null,null,null,null,null,null,null,null,null,null,null,null,null,null,null,null,null,null,null,"初期化画面",null,null,null,null,null,null,null,null,null,null,null,null,null,null,null,null,null,null,null,null,null,null,null,null,null,null,null,null,"転写用画面"]
[null,null,null,null,null,null,null,null,null,null,null,null,null,null,null,null,null,null,null,null,null,null,null,null,null,null,null,null,null,null,null,null,null,null,null,null,null,null,null,null,null,null,null,null,null,null,null,null,null,null,null,null,"2014-10-23T11:08:19.560",null,null,null,null,null,null,null,null,null,null,null,null,null,null,null,null,null,null,null,null,null,null,null,null,null,null,null,null,null,null,null,null,null,null,null,null,null,null,null,null,null,null,null,null,null,null,null,null,null,null,null,{"$f":"NOW()","v":"2014-10-23T16:07:07.090"},null,null,null,null,null,null,null,null,null,null,null,null,null,null,null,null,null,null,null,null,null,null,null,null,null,null,null,null,{"$f":"NOW()","v":"2014-10-23T16:07:07.090"}]
[null,null,null,null,"様式１－１　（申込用紙）",null,null,null,null,null,null,null,null,"市原市　特別養護老人ホーム入所申込書",null,null,null,null,null,null,null,null,null,null,null,null,null,null,null,null,null,null,"様式１－１　（申込用紙）",null,null,null,null,null,null,null,null,"市原市　特別養護老人ホーム入所申込書",null,null,null,null,null,null,null,null,null,null,null,null,null,null,null,null,null,null,null,null,null,null,null,null,null,null,null,null,null,null,null,null,null,null,null,null,null,null,null,null,null,null,"様式１－１　（申込用紙）",null,null,null,null,null,null,null,null,"市原市　特別養護老人ホーム入所申込書",null,null,null,null,null,null,null,null,null,null,null,null,null,null,null,null,null,null,null,"様式１－１　（申込用紙）",null,null,null,null,null,null,null,null,"市原市　特別養護老人ホーム入所申込書"]
[null,null,null,null,"受付日",null,{"$f":"IF($E$4=\"\",\"\",VLOOKUP($E$4,保存記録!$D$5:$IK$506,3))","v":""},null,null,null,null,null,null,null,{"$f":"IF($E$4=\"\",\"□\",VLOOKUP($E$4,保存記録!$D$5:$II$6,4))","v":"□"},"新規申込",null,"・",{"$f":"IF($E$4=\"\",\"□\",VLOOKUP($E$4,保存記録!$D$5:$II$6,5))","v":"□"},"変更届",null,"※該当する届に☑をしてください。",null,null,null,null,null,null,null,null,null,null,"受付日",null,null,null,null,null,null,null,null,null,"□","新規申込",null,"・","□","変更届",null,"※該当する届に☑をしてください。",null,null,null,null,null,null,null,null,null,null,null,null,null,null,null,null,null,null,null,null,null,null,null,null,null,null,null,null,null,null,null,null,null,null,"受付日",null,null,null,null,null,null,null,null,null,"□","新規申込",null,"・","□","変更届",null,"※該当する届に☑をしてください。",null,null,null,null,null,null,null,null,null,null,null,"受付日",null,{"$f":"$G$7","v":""},{"$f":"H7","v":"00:00:00"},"00:00:00","00:00:00","00:00:00",null,null,null,{"$f":"$O$7","v":"□"},"新規申込",null,"・",{"$f":"$S$7","v":"□"},"変更届",null,"※該当する届に☑をしてください。"]
[]
[null,null,null,null,null,null,null,null,null,null,null,null,null,null,null,null,null,null,null,"※確認のため介護保険証のコピーを添付して下さい。",null,null,null,null,null,null,null,null,null,null,null,null,null,null,null,null,null,null,null,null,null,null,null,null,null,null,null,"※確認のため介護保険証のコピーを添付して下さい。",null,null,null,null,null,null,null,null,null,null,null,null,null,null,null,null,null,null,null,null,null,null,null,null,null,null,null,null,null,null,null,null,null,null,null,null,null,null,null,null,null,null,null,null,null,null,null,null,null,null,null,"※確認のため介護保険証のコピーを添付して下さい。",null,null,null,null,null,null,null,null,null,null,null,null,null,null,null,null,null,null,null,null,null,null,null,null,null,null,null,null,"※確認のため介護保険証のコピーを添付して下さい。"]
[null,null,null,null,"◇入所希望者（ご本人）の情報",null,"フリガナ",null,{"$f":"IF($E$4=\"\",\"\",VLOOKUP($E$4,保存記録!$D$5:$IK$506,6))","v":""},null,null,null,null,null,null,null,null,"性別",null,"介護保険証被保険者番号",null,null,null,null,null,null,null,null,null,null,null,null,"◇入所希望者（ご本人）の情報",null,"フリガナ",null,null,null,null,null,null,null,null,null,null,"性別",null,"介護保険証被保険者番号",null,null,null,null,null,null,null,null,null,null,null,null,null,null,null,null,null,null,null,null,null,null,null,null,null,null,null,null,null,null,null,null,null,null,null,null,"◇入所希望者（ご本人）の情報",null,"フリガナ",null,null,null,null,null,null,null,null,null,null,"性別",null,"介護保険証被保険者番号",null,null,null,null,null,null,null,null,null,null,null,null,null,"◇入所希望者（ご本人）の情報",null,"フリガナ",null,{"$f":"$I$10","v":""},{"$f":"J10","v":0},0,0,0,0,0,0,0,"性別",null,"介護保険証被保険者番号"]
[null,null,null,null,null,null,"入所\n希望者\nお名前",null,{"$f":"IF($E$4=\"\",\"\",VLOOKUP($E$4,保存記録!$D$5:$IK$506,7))","v":""},null,null,null,null,null,null,null,null,{"$f":"IF($E$4=\"\",\"\",VLOOKUP($E$4,保存記録!$D$5:$IK$506,8))","v":""},null,{"$f":"IF($E$4=\"\",\"\",ROUNDDOWN(VLOOKUP($E$4,保存記録!$D$5:$IK$506,9),-9)/1000000000)","v":""},{"$f":"IF($E$4=\"\",\"\",ROUNDDOWN(VLOOKUP($E$4,保存記録!$D$5:$IK$506,9),-8)/100000000-T11*10)","v":""},{"$f":"IF($E$4=\"\",\"\",ROUNDDOWN(VLOOKUP($E$4,保存記録!$D$5:$IK$506,9),-7)/10000000-T11*100-U11*10)","v":""},{"$f":"IF($E$4=\"\",\"\",ROUNDDOWN(VLOOKUP($E$4,保存記録!$D$5:$IK$506,9),-6)/1000000-T11*1000-U11*100-V11*10)","v":""},{"$f":"IF($E$4=\"\",\"\",ROUNDDOWN(VLOOKUP($E$4,保存記録!$D$5:$IK$506,9),-5)/100000-T11*10000-U11*1000-V11*100-W11*10)","v":""},{"$f":"IF($E$4=\"\",\"\",ROUNDDOWN(VLOOKUP($E$4,保存記録!$D$5:$IK$506,9),-4)/10000-T11*100000-U11*10000-V11*1000-W11*100-X11*10)","v":""},{"$f":"IF($E$4=\"\",\"\",ROUNDDOWN(VLOOKUP($E$4,保存記録!$D$5:$IK$506,9),-3)/1000-T11*1000000-U11*100000-V11*10000-W11*1000-X11*100-Y11*10)","v":""},{"$f":"IF($E$4=\"\",\"\",ROUNDDOWN(VLOOKUP($E$4,保存記録!$D$5:$IK$506,9),-2)/100-T11*10000000-U11*1000000-V11*100000-W11*10000-X11*1000-Y11*100-Z11*10)","v":""},{"$f":"IF($E$4=\"\",\"\",ROUNDDOWN(VLOOKUP($E$4,保存記録!$D$5:$IK$506,9),-1)/10-T11*100000000-U11*10000000-V11*1000000-W11*100000-X11*10000-Y11*1000-Z11*100-AA11*10)","v":""},{"$f":"IF($E$4=\"\",\"\",ROUNDDOWN(VLOOKUP($E$4,保存記録!$D$5:$IK$506,9),0)-T11*1000000000-U11*100000000-V11*10000000-W11*1000000-X11*100000-Y11*10000-Z11*1000-AA11*100-AB11*10)","v":""},null,null,null,null,null,"入所希望者\nお名前",null,null,null,null,null,null,null,null,null,null,null,null,null,null,null,null,null,null,null,null,null,null,null,null,null,null,{"$f":"IF(OR(AK10=\"\",AK10=0),0,1)","v":0},{"$f":"IF(OR(AI7=\"\",AI7=0),0,1)","v":0},{"$f":"IF(OR(AK11=\"\",AK11=0),0,1)","v":0},{"$f":"IF(OR(AK31=\"\",AK31=0),0,1)","v":0},{"$f":"IF(OR(AK34=\"\",AK34=0),0,1)","v":0},null,{"$f":"PRODUCT(BJ11:BN11)","v":0},null,null,null,null,null,null,null,null,null,null,null,null,null,null,null,null,null,null,"入所希望者\nお名前",null,null,null,null,null,null,null,null,null,null,null,null,null,null,null,null,null,null,null,null,null,null,null,null,null,null,null,null,"入所希望者\nお名前",null,{"$f":"$I$11","v":""},0,0,0,0,0,0,0,0,{"$f":"$R$11","v":""},{"$f":"S11","v":0},{"$f":"$BJ$13","v":""}]
[null,null,null,null,null,null,"生年\n月日",null,{"$f":"IF($E$4=\"\",\"\",VLOOKUP($E$4,保存記録!$D$5:$IK$506,10))","v":""},null,null,null,null,null,null,null,null,{"$f":"IF(E4=\"\",\"\",DATEDIF(I12,NOW(),\"Y\"))","v":""},null,"要介護度",null,{"$f":"IF($E$4=\"\",\"\",VLOOKUP($E$4,保存記録!$D$5:$IK$506,11))","v":""},null,null,"保険者市町村",null,null,null,null,null,null,null,null,null,"生年\n月日",null,null,null,null,null,null,null,null,null,null,{"$f":"IF(AK12=\"\",\"\",DATEDIF(AK12,NOW(),\"Y\"))","v":""},null,"要介護度",null,null,null,null,"保険者市町村",null,null,null,null,null,null,null,null,null,null,null,null,null,null,null,null,null,null,null,null,null,null,null,null,null,null,null,null,null,null,null,null,null,"生年\n月日",null,null,null,null,null,null,null,null,null,null,{"$f":"IF(CK12=\"\",\"\",DATEDIF(CK12,NOW(),\"Y\"))","v":""},null,"要介護度",null,null,null,null,"保険者市町村",null,null,null,null,null,null,null,null,null,null,"生年\n月日",null,{"$f":"$I$12","v":""},"00:00:00","00:00:00","00:00:00","00:00:00","00:00:00","00:00:00","00:00:00","00:00:00",{"$f":"IF(DN12=\"\",\"\",DATEDIF(DN12,NOW(),\"Y\"))","v":""},null,"要介護度",null,{"$f":"$V$12","v":""},{"$f":"W12","v":0},{"$f":"X12","v":0},"保険者市町村"]
[null,null,null,null,null,null,null,null,null,null,null,null,null,null,null,null,null,null,null,null,null,null,null,null,{"$f":"IF($E$4=\"\",\"\",VLOOKUP($E$4,保存記録!$D$5:$IK$506,12))","v":""},null,null,null,null,null,null,null,null,null,null,null,null,null,null,null,null,null,null,null,null,null,null,null,null,null,null,null,null,null,null,null,null,null,null,null,null,{"$f":"IF($E$4=\"\",\"\",VLOOKUP($E$4,保存記録!$D$5:$IK$506,9))","v":""},null,null,null,null,null,null,null,null,null,null,null,null,null,null,null,null,null,null,null,null,null,null,null,null,null,null,null,null,null,null,null,null,null,null,null,null,null,null,null,null,null,null,null,null,null,null,null,null,null,null,null,null,null,null,null,"00:00:00","00:00:00","00:00:00","00:00:00","00:00:00","00:00:00","00:00:00","00:00:00","00:00:00",null,null,null,null,{"$f":"V13","v":0},0,0,{"$f":"$Y$13","v":""},{"$f":"Z13","v":0},0,0,0]
[null,null,null,null,null,null,"希望者\n住　所",null,"〒",{"$f":"IF($E$4=\"\",\"\",VLOOKUP($E$4,保存記録!$D$5:$IK$506,21))","v":""},null,null,null,null,null,null,null,null,null,"認定\n有効\n期限",null,"平成",{"$f":"IF($E$4=\"\",\"\",VLOOKUP($E$4,保存記録!$D$5:$IK$506,13))","v":""},"年",{"$f":"IF($E$4=\"\",\"\",VLOOKUP($E$4,保存記録!$D$5:$IK$506,14))","v":""},"月",{"$f":"IF($E$4=\"\",\"\",VLOOKUP($E$4,保存記録!$D$5:$IK$506,15))","v":""},"日から",null,null,null,null,null,null,"希望者\n住　所",null,"〒",null,null,null,null,null,null,null,null,null,null,"認定\n有効\n期限",null,"平成",null,"年",null,"月",1,"日から",null,null,null,null,null,null,null,null,null,null,null,null,null,null,null,null,null,null,null,null,null,null,null,null,null,null,null,null,null,null,"希望者\n住　所",null,"〒",null,null,null,null,null,null,null,null,null,null,"認定\n有効\n期限",null,"平成",null,"年",null,"月",1,"日から",null,null,null,null,null,null,null,"希望者\n住　所",null,"〒",{"$f":"$J$14","v":""},0,0,null,null,null,null,null,null,null,"認定\n有効\n期限",null,"平成",{"$f":"IF($W$14=0,\"\",$W$14)","v":""},"年",{"$f":"IF($Y$14=0,\"\",$Y$14)","v":""},"月",{"$f":"$AA$14","v":""},"日から"]
[null,null,null,null,null,null,null,null,{"$f":"IF($E$4=\"\",\"\",VLOOKUP($E$4,保存記録!$D$5:$IK$506,22))","v":""},null,null,null,null,null,null,null,null,null,null,null,null,"平成",{"$f":"IF($E$4=\"\",\"\",VLOOKUP($E$4,保存記録!$D$5:$IK$506,16))","v":""},"年",{"$f":"IF($E$4=\"\",\"\",VLOOKUP($E$4,保存記録!$D$5:$IK$506,17))","v":""},"月","末日まで",null,null,null,null,null,null,null,null,null,null,null,null,null,null,null,null,null,null,null,null,null,null,"平成",null,"年",null,"月","末日まで",null,null,null,null,null,null,null,null,null,null,null,null,null,null,null,null,null,null,null,null,null,null,null,null,null,null,null,null,null,null,null,null,null,null,null,null,null,null,null,null,null,null,null,null,null,null,"平成",null,"年",null,"月","末日まで",null,null,null,null,null,null,null,null,null,null,{"$f":"$I$15","v":""},0,0,0,{"$f":"M15","v":0},{"$f":"N15","v":0},{"$f":"O15","v":0},{"$f":"P15","v":0},{"$f":"Q15","v":0},{"$f":"R15","v":0},{"$f":"S15","v":0},null,null,"平成",{"$f":"IF($W$15=0,\"\",$W$15)","v":""},"年",{"$f":"IF($Y$15=0,\"\",$Y$15)","v":""},"月","末日まで"]
[null,null,null,null,null,null,null,null,null,null,null,null,null,null,null,null,null,null,null,"介護保険負担\n限度額認定証",null,null,"無","・","有","（",{"$f":"IF($E$4=\"\",\"\",VLOOKUP($E$4,保存記録!$D$5:$IK$506,20))","v":""},"）段階",null,null,null,null,null,null,null,null,null,null,null,null,null,null,null,null,null,null,null,"介護保険負担\n限度額認定証",null,null,"無","・","有","（",null,"）段階",null,null,null,null,null,null,null,null,null,null,null,null,null,null,null,null,null,null,"",null,"",null,{"$f":"IF($E$4=\"\",\"\",VLOOKUP($E$4,保存記録!$D$5:$IK$506,18))","v":""},null,{"$f":"IF($E$4=\"\",\"\",VLOOKUP($E$4,保存記録!$D$5:$IK$506,19))","v":""},null,null,null,null,null,null,null,null,null,null,null,null,null,null,null,null,null,null,"介護保険負担\n限度額認定証",null,null,"無","・","有","（",null,"）段階",null,null,null,null,null,null,null,null,null,{"$f":"I16","v":0},0,0,0,0,0,0,0,0,0,0,"介護保険負担\n限度額認定証",null,null,"無","・","有","（",{"$f":"IF($AA$16=0,\"\",$AA$16)","v":""},"）段階"]
[null,null,null,null,null,null,null,null,"電話",null,{"$f":"IF($E$4=\"\",\"\",VLOOKUP($E$4,保存記録!$D$5:$IK$506,23))","v":""},null,null,null,null,null,null,null,null,null,null,null,null,null,null,null,null,null,null,null,null,null,null,null,null,null,"電話",null,null,null,null,null,null,null,null,null,null,null,null,null,null,null,null,null,null,null,null,null,null,null,null,null,null,null,null,null,null,null,null,null,null,null,null,null,null,null,null,null,null,null,null,null,null,null,null,null,null,null,"電話",null,null,null,null,null,null,null,null,null,null,null,null,null,null,null,null,null,null,null,null,null,null,null,null,null,null,null,null,"電話",null,{"$f":"IF($K$17=0,\"\",$K$17)","v":""},0,0,0,0,0,0,null,null,null,null,null,null,null,null,null,{"$f":"AA17","v":0}]
[null,null,null,null,null,null,"現況",null,{"$f":"IF($E$4=\"\",\"□\",VLOOKUP($E$4,保存記録!$D$5:$IK$506,24))","v":"□"},"独居。",null,{"$f":"IF($E$4=\"\",\"□\",VLOOKUP($E$4,保存記録!$D$5:$IK$506,25))","v":"□"},"７５歳以上老々夫婦介護。",null,null,null,null,{"$f":"IF($E$4=\"\",\"□\",VLOOKUP($E$4,保存記録!$D$5:$IK$506,26))","v":"□"},"自宅で家族と暮らしている。",null,null,null,null,{"$f":"IF($E$4=\"\",\"□\",VLOOKUP($E$4,保存記録!$D$5:$IK$506,27))","v":"□"},"介護施設・病院に入っている。",null,null,null,null,null,null,null,null,null,"現況",null,"□","独居。",null,"□","７５歳以上老々夫婦介護。",null,null,null,null,"□","自宅で家族と暮らしている。",null,null,null,null,"□","介護施設・病院に入っている。",null,null,null,null,null,null,null,null,null,null,null,null,null,null,null,null,null,null,null,null,null,null,null,null,null,null,null,null,null,null,null,null,null,"現況",null,"□","独居。",null,"□","７５歳以上老々夫婦介護。",null,null,null,null,"□","自宅で家族と暮らしている。",null,null,null,null,"□","介護施設・病院に入っている。",null,null,null,null,null,null,null,null,null,null,"現況",null,{"$f":"$I$18","v":"□"},"独居。",null,{"$f":"$L$18","v":"□"},"７５歳以上老々夫婦介護。",null,null,null,null,{"$f":"$R$18","v":"□"},"自宅で家族と暮らしている。",null,null,null,null,{"$f":"$X$18","v":"□"},"介護施設・病院に入っている。"]
[null,null,null,null,null,null,null,null,"施設・病院名",null,null,{"$f":"IF($E$4=\"\",\"\",VLOOKUP($E$4,保存記録!$D$5:$IK$506,28))","v":""},null,null,null,null,"入所・入院時期",null,null,null,{"$f":"IF($E$4=\"\",\"\",VLOOKUP($E$4,保存記録!$D$5:$IK$506,29))","v":""},null,{"$f":"IF($E$4=\"\",\"\",VLOOKUP($E$4,保存記録!$D$5:$IK$506,30))","v":""},"年",{"$f":"IF($E$4=\"\",\"\",VLOOKUP($E$4,保存記録!$D$5:$IK$506,31))","v":""},"月頃から入院・入所中。",null,null,null,null,null,null,null,null,null,null,"施設・病院名",null,null,null,null,null,null,null,"入所・入院時期",null,null,null,"平成",null,null,"年",null,"月頃から入院・入所中。",null,null,null,null,null,null,{"$f":"$AK$15","v":0},null,null,null,null,null,null,null,null,null,null,null,null,null,null,null,null,null,null,null,null,null,null,null,null,null,null,null,"施設・病院名",null,null,null,null,null,null,null,"入所・入院時期",null,null,null,"平成",null,null,"年",null,"月頃から入院・入所中。",null,null,null,null,null,null,null,null,null,null,null,"施設・病院名",null,null,{"$f":"IF($L$19=0,\"\",$L$19)","v":""},{"$f":"M19","v":0},0,0,0,"入所・入院時期",null,null,null,{"$f":"$U$19","v":""},{"$f":"V19","v":0},{"$f":"IF($W$19=0,\"\",$W$19)","v":""},"年",{"$f":"IF($Y$19=0,\"\",$Y$19)","v":""},"月頃から入院・入所中。"]
[null,null,null,null,"◇主たる介護者の情報",null,"お名前",null,{"$f":"IF($E$4=\"\",\"□\",VLOOKUP($E$4,保存記録!$D$5:$IK$506,32))","v":"□"},"介護者はいない。（介護保険使用含む）",null,null,null,null,null,null,"続柄",null,"生　年　月　日",null,null,null,null,null,null,null,null,"年齢",null,null,null,null,"◇主たる介護者の情報",null,"お名前",null,"□","介護者はいない。（介護保険使用含む）",null,null,null,null,null,null,"続柄",null,"生　年　月　日",null,null,null,null,null,null,null,null,"年齢",null,null,null,null,null,null,null,null,null,null,null,null,null,null,null,null,null,null,null,null,null,null,null,null,null,null,null,null,"◇主たる介護者の情報",null,"お名前",null,"□","介護者はいない。（介護保険使用含む）",null,null,null,null,null,null,"続柄",null,"生　年　月　日",null,null,null,null,null,null,null,null,"年齢",null,null,null,null,null,"◇主たる介護者の情報",null,"お名前",null,{"$f":"$I$20","v":"□"},"介護者はいない。（介護保険使用含む）",null,null,null,null,null,null,"続柄",null,"生　年　月　日",null,null,null,null,null,null,null,null,"年齢"]
[null,null,null,null,null,null,null,null,{"$f":"IF($E$4=\"\",\"\",VLOOKUP($E$4,保存記録!$D$5:$IK$506,33))","v":""},null,null,null,null,null,null,null,{"$f":"IF($E$4=\"\",\"\",VLOOKUP($E$4,保存記録!$D$5:$IK$506,34))","v":""},null,{"$f":"IF(OR(I21=\"\",I21=0),\"\",VLOOKUP($E$4,保存記録!$D$5:$IK$506,35))","v":""},null,null,null,null,null,null,null,null,{"$f":"IF(OR(S21=\"\",S21=0),\"\",DATEDIF(S21,NOW(),\"Y\"))","v":""},null,null,null,null,null,null,null,null,null,null,null,null,null,null,null,null,null,null,null,null,null,null,null,null,null,null,null,{"$f":"IF(OR(AU21=\"\",AU21=0),\"\",DATEDIF(AU21,NOW(),\"Y\"))","v":""},null,null,null,null,null,null,null,null,null,null,null,null,null,null,null,null,null,null,null,null,null,null,null,null,null,null,null,null,null,null,null,null,null,null,null,null,null,null,null,null,null,null,null,null,null,null,null,null,null,null,null,{"$f":"IF(CU21=\"\",\"\",DATEDIF(CU21,NOW(),\"Y\"))","v":""},null,null,null,null,null,null,null,null,null,{"$f":"IF($I$21=0,\"\",$I$21)","v":""},{"$f":"J21","v":0},{"$f":"K21","v":0},{"$f":"L21","v":0},{"$f":"M21","v":0},{"$f":"N21","v":0},{"$f":"O21","v":0},{"$f":"P21","v":0},{"$f":"IF($Q$21=0,\"\",$Q$21)","v":""},{"$f":"R21","v":0},{"$f":"IF($S$21=0,\"\",$S$21)","v":""},{"$f":"T21","v":"00:00:00"},{"$f":"U21","v":"00:00:00"},{"$f":"V21","v":"00:00:00"},{"$f":"W21","v":"00:00:00"},{"$f":"X21","v":"00:00:00"},{"$f":"Y21","v":"00:00:00"},{"$f":"Z21","v":"00:00:00"},{"$f":"AA21","v":"00:00:00"},{"$f":"IF(OR(DX21=\"\",DX21=0),\"\",DATEDIF(DX21,NOW(),\"Y\"))","v":""}]
[null,null,null,null,null,null,null,null,null,null,null,null,null,null,null,null,null,null,null,null,null,null,null,null,null,null,null,null,null,null,null,null,null,null,null,null,null,null,null,null,null,null,null,null,null,null,null,null,null,null,null,null,null,null,null,null,null,null,null,null,null,null,null,null,null,null,null,null,null,null,null,null,null,null,null,null,null,null,null,null,null,null,null,null,null,null,null,null,null,null,null,null,null,null,null,null,null,null,null,null,null,null,null,null,null,null,null,null,null,null,null,null,null,null,null,null,null,{"$f":"I22","v":0},0,0,0,0,0,0,0,{"$f":"Q22","v":0},0,{"$f":"S22","v":"00:00:00"},"00:00:00","00:00:00","00:00:00","00:00:00","00:00:00","00:00:00","00:00:00","00:00:00"]
[null,null,null,null,null,null,"住　所",null,"〒",{"$f":"IF($E$4=\"\",\"\",VLOOKUP($E$4,保存記録!$D$5:$IK$506,36))","v":""},null,null,null,null,null,null,null,null,"電話",null,{"$f":"IF($E$4=\"\",\"\",VLOOKUP($E$4,保存記録!$D$5:$IK$506,38))","v":""},null,null,null,null,null,null,null,null,null,null,null,null,null,"住　所",null,"〒",null,null,null,"☆","（←同居の場合はクリック）",null,null,null,null,"電話",null,null,null,null,null,null,null,null,null,null,null,null,null,null,null,null,null,null,null,null,null,null,null,null,null,null,null,null,null,null,null,null,null,null,null,null,null,null,null,"住　所",null,"〒",null,null,null,"☆","（←同居の場合はクリック）",null,null,null,null,"電話",null,null,null,null,null,null,null,null,null,null,null,null,null,null,null,null,"住　所",null,"〒",{"$f":"IF($J$23=0,\"\",$J$23)","v":""},0,0,"☆","（←同居の場合はクリック）",null,null,null,null,"電話",null,{"$f":"IF($U$23=0,\"\",$U$23)","v":""},0,0,0,0,0,0]
[null,null,null,null,null,null,null,null,{"$f":"IF($E$4=\"\",\"\",VLOOKUP($E$4,保存記録!$D$5:$IK$506,37))","v":""},null,null,null,null,null,null,null,null,null,null,null,null,null,null,null,null,null,null,null,null,null,null,null,null,null,null,null,null,null,null,null,null,null,null,null,null,null,null,null,null,null,null,null,null,null,null,null,null,null,null,null,null,null,null,null,null,null,null,null,null,null,null,null,null,null,null,null,null,null,null,null,null,null,null,null,null,null,null,null,null,null,null,null,null,null,null,null,null,null,null,null,null,null,null,null,null,null,null,null,null,null,null,null,null,null,null,null,null,{"$f":"IF($I$24=0,\"\",$I$24)","v":""},0,0,0,{"$f":"M24","v":0},0,0,0,0,0,0,0,0,0,0,0,0,0,0,0,0]
[null,null,null,null,null,null,"同居\n別居",null,{"$f":"IF($E$4=\"\",\"□\",VLOOKUP($E$4,保存記録!$D$5:$IK$506,39))","v":"□"},"同居","主たる\n介護者が\n通い介護",null,{"$f":"IF($E$4=\"\",\"□\",VLOOKUP($E$4,保存記録!$D$5:$IK$506,40))","v":"□"},"ごく近隣から通ってきている。",null,null,null,null,{"$f":"IF($E$4=\"\",\"□\",VLOOKUP($E$4,保存記録!$D$5:$IK$506,41))","v":"□"},"他市等から通ってきている。",null,null,null,null,"頻度：1ヶ月に",null,null,{"$f":"IF($E$4=\"\",0,VLOOKUP($E$4,保存記録!$D$5:$IK$506,42))","v":0},"日",null,null,null,null,null,"同居\n別居",null,"□","同居","主たる\n介護者が\n通い介護",null,"□","ごく近隣から通ってきている。",null,null,null,null,"□","他市等から通ってきている。",null,null,null,null,"頻度：1ヶ月に",null,null,0,"日",null,null,null,1,{"$f":"マスタ変更!AJ5","v":"男"},{"$f":"マスタ変更!AK5","v":1},{"$f":"マスタ変更!AL5","v":"市原市"},{"$f":"マスタ変更!AM5","v":"妻"},{"$f":"マスタ変更!AN5","v":"病院１"},{"$f":"マスタ変更!AO5","v":"施設１"},null,null,null,null,null,null,null,null,null,null,null,null,null,null,null,null,null,null,null,"同居\n別居",null,"□","同居","主たる\n介護者が\n通い介護",null,"□","ごく近隣から通ってきている。",null,null,null,null,"□","他市等から通ってきている。",null,null,null,null,"頻度：1ヶ月に",null,null,0,"日",null,null,null,null,null,null,"同居\n別居",null,{"$f":"$I$25","v":"□"},"同居","主たる\n介護者が\n通い介護",null,{"$f":"$M$25","v":"□"},"ごく近隣から通ってきている。",null,null,null,null,{"$f":"$S$25","v":"□"},"他市等から通ってきている。",null,null,null,null,"頻度：1ヶ月に",null,null,{"$f":"$AB$25","v":0},"日"]
[null,null,null,null,null,null,null,null,null,null,null,null,{"$f":"IF($E$4=\"\",\"□\",VLOOKUP($E$4,保存記録!$D$5:$IK$506,43))","v":"□"},"泊まり込みをしている。",null,null,null,null,"頻度：1ヶ月に",null,null,{"$f":"IF($E$4=\"\",0,VLOOKUP($E$4,保存記録!$D$5:$IK$506,44))","v":0},"泊程度",null,"※同居者は含みません。",null,null,null,null,null,null,null,null,null,null,null,null,null,null,null,"□","泊まり込みをしている。",null,null,null,null,"頻度：1ヶ月に",null,null,0,"泊程度",null,"※同居者は含みません。",null,null,null,null,null,null,null,2,{"$f":"マスタ変更!AJ6","v":"女"},{"$f":"マスタ変更!AK6","v":2},{"$f":"マスタ変更!AL6","v":"千葉市緑区"},{"$f":"マスタ変更!AM6","v":"夫"},{"$f":"マスタ変更!AN6","v":"病院２"},{"$f":"マスタ変更!AO6","v":"施設２"},null,null,null,null,null,null,null,null,null,null,null,null,null,null,null,null,null,null,null,null,null,null,null,null,null,"□","泊まり込みをしている。",null,null,null,null,"頻度：1ヶ月に",null,null,0,"泊程度",null,"※同居者は含みません。",null,null,null,null,null,null,null,null,null,null,null,null,{"$f":"I26","v":0},null,null,null,{"$f":"$M$26","v":"□"},"泊まり込みをしている。",null,null,null,null,"頻度：1ヶ月に",null,null,{"$f":"$V$26","v":0},"泊程度",null,"※同居者は含みません。"]
[null,null,null,null,"他の同居者の介護協力",null,null,null,{"$f":"IF($E$4=\"\",\"□\",VLOOKUP($E$4,保存記録!$D$5:$IK$506,45))","v":"□"},"ほぼ無し。",null,null,{"$f":"IF($E$4=\"\",\"□\",VLOOKUP($E$4,保存記録!$D$5:$IK$506,46))","v":"□"},"ときどきある。",null,null,{"$f":"IF($E$4=\"\",\"□\",VLOOKUP($E$4,保存記録!$D$5:$IK$506,47))","v":"□"},"とてもよくある。",null,null,"近隣者の\n介護協力",null,{"$f":"IF($E$4=\"\",\"□\",VLOOKUP($E$4,保存記録!$D$5:$IK$506,56))","v":"□"},"ほぼ無し。",null,{"$f":"IF($E$4=\"\",\"□\",VLOOKUP($E$4,保存記録!$D$5:$IK$506,57))","v":"□"},"ときどきある。",null,null,null,null,null,"他の同居者の介護協力",null,null,null,"□","ほぼ無し。",null,null,"□","ときどきある。",null,null,"□","とてもよくある。",null,null,"近隣者の\n介護協力",null,"□","ほぼ無し。",null,"□","ときどきある。",null,null,null,null,null,3,{"$f":"マスタ変更!AJ7","v":0},{"$f":"マスタ変更!AK7","v":3},{"$f":"マスタ変更!AL7","v":"千葉市若葉区"},{"$f":"マスタ変更!AM7","v":"長男"},{"$f":"マスタ変更!AN7","v":"病院３"},{"$f":"マスタ変更!AO7","v":"施設３"},null,null,null,null,null,null,null,null,null,null,null,null,null,null,null,null,null,"他の同居者の介護協力",null,null,null,"□","ほぼ無し。",null,null,"□","ときどきある。",null,null,"□","とてもよくある。",null,null,"近隣者の\n介護協力",null,"□","ほぼ無し。",null,"□","ときどきある。",null,null,null,null,null,null,"他の同居者の介護協力",null,null,null,{"$f":"$I$27","v":"□"},"ほぼ無し。（いない。）",null,null,{"$f":"$M$27","v":"□"},"ときどきある。",null,null,{"$f":"$Q$27","v":"□"},"とてもよくある。",null,null,"近隣者の\n介護協力",null,{"$f":"$W$27","v":"□"},"ほぼ無し。",null,{"$f":"$Z$27","v":"□"},"ときどきある。"]
[null,null,null,null,"別居血縁者の介護協力\n（主たる介護者以外）",null,null,null,{"$f":"IF($E$4=\"\",\"□\",VLOOKUP($E$4,保存記録!$D$5:$IK$506,48))","v":"□"},"ほぼ無し。",null,null,{"$f":"IF($E$4=\"\",\"□\",VLOOKUP($E$4,保存記録!$D$5:$IK$506,49))","v":"□"},"ときどきある。",null,null,{"$f":"IF($E$4=\"\",\"□\",VLOOKUP($E$4,保存記録!$D$5:$IK$506,50))","v":"□"},"とてもよくある。",null,null,null,null,{"$f":"IF($E$4=\"\",\"□\",VLOOKUP($E$4,保存記録!$D$5:$IK$506,58))","v":"□"},"とてもよくある。",null,null,null,null,null,null,null,null,"別居血縁者の介護協力\n（主たる介護者以外）",null,null,null,"□","ほぼ無し。",null,null,"□","ときどきある。",null,null,"□","とてもよくある。",null,null,null,null,"□","とてもよくある。",null,null,null,null,null,null,null,null,4,{"$f":"マスタ変更!AJ8","v":0},{"$f":"マスタ変更!AK8","v":4},{"$f":"マスタ変更!AL8","v":"千葉市美浜区"},{"$f":"マスタ変更!AM8","v":"次男"},{"$f":"マスタ変更!AN8","v":"病院４"},{"$f":"マスタ変更!AO8","v":"施設４"},null,null,null,null,null,null,null,null,null,null,null,null,null,null,null,null,null,"別居血縁者の介護協力\n（主たる介護者以外）",null,null,null,"□","ほぼ無し。",null,null,"□","ときどきある。",null,null,"□","とてもよくある。",null,null,null,null,"□","とてもよくある。",null,null,null,null,null,null,null,null,null,"別居血縁者の介護協力\n（主たる介護者以外）",null,null,null,{"$f":"$I$28","v":"□"},"ほぼ無し。",null,null,{"$f":"$M$28","v":"□"},"ときどきある。",null,null,{"$f":"$Q$28","v":"□"},"とてもよくある。",null,null,null,null,{"$f":"$W$28","v":"□"},"とてもよくある。"]
[null,null,null,null,null,null,null,null,{"$f":"IF($E$4=\"\",\"□\",VLOOKUP($E$4,保存記録!$D$5:$IK$506,51))","v":"□"},"ごく近隣から通い。",null,null,{"$f":"IF($E$4=\"\",\"□\",VLOOKUP($E$4,保存記録!$D$5:$IK$506,52))","v":"□"},"他市等から通い。",null,null,"訪問頻度：1ヶ月に",null,null,{"$f":"IF($E$4=\"\",0,VLOOKUP($E$4,保存記録!$D$5:$IK$506,53))","v":0},"日",null,{"$f":"IF($E$4=\"\",\"\",VLOOKUP($E$4,保存記録!$D$5:$IK$506,54))","v":""},"泊まり込み頻度：１ヶ月に",null,null,null,{"$f":"IF($E$4=\"\",0,VLOOKUP($E$4,保存記録!$D$5:$IK$506,55))","v":0},"泊",null,null,null,null,null,null,null,"□","近隣から通い。",null,null,"□","離れた地から通い。",null,null,"訪問頻度：1ヶ月に",null,null,0,"日",null,"□","泊まり込み頻度：１ヶ月に",null,null,null,0,"泊",null,null,null,5,{"$f":"マスタ変更!AJ9","v":0},{"$f":"マスタ変更!AK9","v":5},{"$f":"マスタ変更!AL9","v":"千葉市中央区"},{"$f":"マスタ変更!AM9","v":"三男"},{"$f":"マスタ変更!AN9","v":"病院５"},{"$f":"マスタ変更!AO9","v":"施設５"},null,null,null,null,null,null,null,null,null,null,null,null,null,null,null,null,null,null,null,null,null,"□","近隣から通い。",null,null,"□","離れた地から通い。",null,null,"訪問頻度：1ヶ月に",null,null,0,"日",null,"□","泊まり込み頻度：１ヶ月に",null,null,null,0,"泊",null,null,null,null,null,null,null,null,{"$f":"$I$29","v":"□"},"近隣から通い。",null,null,{"$f":"$M$29","v":"□"},"離れた地から通い。",null,null,"訪問頻度：1ヶ月に",null,null,{"$f":"$T$29","v":0},"日",null,{"$f":"$W$29","v":""},"泊まり込み頻度：１ヶ月に",null,null,null,{"$f":"$AB$29","v":0},"泊"]
[null,null,null,null,"◇連絡先の情報",null,"お名前",null,{"$f":"IF($E$4=\"\",\"□\",VLOOKUP($E$4,保存記録!$D$5:$IK$506,59))","v":"□"},"主たる介護者と同じ",null,null,null,null,null,null,"続柄",null,"電話",null,{"$f":"IF($E$4=\"\",\"\",VLOOKUP($E$4,保存記録!$D$5:$IK$506,62))","v":""},null,null,null,null,null,null,null,null,null,null,null,"◇連絡先の情報",null,"お名前",null,"□","主たる介護者と同じ",null,null,null,null,null,null,"続柄",null,"電話",null,null,null,null,null,null,null,null,null,null,null,null,null,6,{"$f":"マスタ変更!AJ10","v":0},{"$f":"マスタ変更!AK10","v":"要支援１"},{"$f":"マスタ変更!AL10","v":"袖ヶ浦市"},{"$f":"マスタ変更!AM10","v":"長女"},{"$f":"マスタ変更!AN10","v":"病院６"},{"$f":"マスタ変更!AO10","v":"施設６"},null,null,null,null,null,null,null,null,null,null,null,null,null,null,null,null,null,"◇連絡先の情報",null,"お名前",null,"□","主たる介護者と同じ",null,null,null,null,null,null,"続柄",null,"電話",null,null,null,null,null,null,null,null,null,null,null,null,null,null,"◇連絡先の情報",null,"お名前",null,{"$f":"$I$30","v":"□"},"主たる介護者と同じ",null,null,null,null,null,null,"続柄",null,"電話",null,{"$f":"IF($U$30=0,\"\",$U$30)","v":""},{"$f":"V30","v":0},0,0,0,0,0]
[null,null,null,null,null,null,null,null,{"$f":"IF($E$4=\"\",\"\",VLOOKUP($E$4,保存記録!$D$5:$IK$506,60))","v":""},null,null,null,null,null,null,null,{"$f":"IF($E$4=\"\",\"\",VLOOKUP($E$4,保存記録!$D$5:$IK$506,61))","v":""},null,"FAX",null,{"$f":"IF($E$4=\"\",\"\",VLOOKUP($E$4,保存記録!$D$5:$IK$506,63))","v":""},null,null,null,null,null,null,null,null,null,null,null,null,null,null,null,null,null,null,null,null,null,null,null,null,null,"FAX",null,null,null,null,null,null,null,null,null,null,null,null,null,7,{"$f":"マスタ変更!AJ11","v":0},{"$f":"マスタ変更!AK11","v":"要支援２"},{"$f":"マスタ変更!AL11","v":"長生郡長柄町"},{"$f":"マスタ変更!AM11","v":"次女"},{"$f":"マスタ変更!AN11","v":"病院７"},{"$f":"マスタ変更!AO11","v":"施設７"},null,null,null,null,null,null,null,null,null,null,null,null,null,null,null,null,null,null,null,null,null,null,null,null,null,null,null,null,null,null,null,"FAX",null,null,null,null,null,null,null,null,null,null,null,null,null,null,null,null,null,null,{"$f":"$I$31","v":""},{"$f":"J31","v":0},{"$f":"K31","v":0},{"$f":"L31","v":0},{"$f":"M31","v":0},{"$f":"N31","v":0},{"$f":"O31","v":0},{"$f":"P31","v":0},{"$f":"$Q$31","v":""},{"$f":"R31","v":0},"FAX",null,{"$f":"IF($U$31=0,\"\",$U$31)","v":""},0,0,0,0,0,0]
[null,null,null,null,null,null,null,null,null,null,null,null,null,null,null,null,null,null,"携帯",null,{"$f":"IF($E$4=\"\",\"\",VLOOKUP($E$4,保存記録!$D$5:$IK$506,64))","v":""},null,null,null,null,null,null,null,null,null,null,null,null,null,null,null,null,null,null,null,null,null,null,null,null,null,"携帯",null,null,null,null,null,null,null,null,null,null,null,null,null,8,{"$f":"マスタ変更!AJ12","v":0},{"$f":"マスタ変更!AK12","v":"申請中"},{"$f":"マスタ変更!AL12","v":"木更津市"},{"$f":"マスタ変更!AM12","v":"三女"},{"$f":"マスタ変更!AN12","v":"病院８"},{"$f":"マスタ変更!AO12","v":"施設８"},null,null,null,null,null,null,null,null,null,null,null,null,null,null,null,null,null,null,null,null,null,null,null,null,null,null,null,null,null,null,null,"携帯",null,null,null,null,null,null,null,null,null,null,null,null,null,null,null,null,null,null,{"$f":"I32","v":0},0,0,0,0,0,0,0,{"$f":"Q32","v":0},0,"携帯",null,{"$f":"IF($U$32=0,\"\",$U$32)","v":""},0,0,0,0,0,0]
[null,null,null,null,null,null,"連絡先\n住　所",null,"〒",{"$f":"IF($E$4=\"\",\"\",VLOOKUP($E$4,保存記録!$D$5:$IK$506,65))","v":""},null,null,null,null,null,null,null,null,null,null,null,null,null,null,null,null,null,null,null,null,null,null,null,null,"連絡先\n住　所",null,"〒",null,null,null,null,null,null,null,null,null,null,null,null,null,null,null,null,null,null,null,null,null,null,null,9,{"$f":"マスタ変更!AJ13","v":0},{"$f":"マスタ変更!AK13","v":"変更中"},{"$f":"マスタ変更!AL13","v":0},{"$f":"マスタ変更!AM13","v":"長男嫁"},{"$f":"マスタ変更!AN13","v":"病院９"},{"$f":"マスタ変更!AO13","v":"施設９"},null,null,null,null,null,null,null,null,null,null,null,null,null,null,null,null,null,null,null,"連絡先\n住　所",null,"〒",null,null,null,null,null,null,null,null,null,null,null,null,null,null,null,null,null,null,null,null,null,null,null,null,null,null,"連絡先\n住　所",null,"〒",{"$f":"$J$33","v":""},0,0]
[null,null,null,null,null,null,null,null,{"$f":"IF($E$4=\"\",\"\",VLOOKUP($E$4,保存記録!$D$5:$IK$506,66))","v":""},null,null,null,null,null,null,null,null,null,null,null,null,null,null,null,null,null,null,null,null,null,null,null,null,null,null,null,null,null,null,null,null,null,null,null,null,null,null,null,null,null,null,null,null,null,null,null,null,null,null,null,10,{"$f":"マスタ変更!AJ14","v":0},{"$f":"マスタ変更!AK14","v":0},{"$f":"マスタ変更!AL14","v":0},{"$f":"マスタ変更!AM14","v":"妹"},{"$f":"マスタ変更!AN14","v":"病院１０"},{"$f":"マスタ変更!AO14","v":"施設１０"},null,null,null,null,null,null,null,null,null,null,null,null,null,null,null,null,null,null,null,null,null,null,null,null,null,null,null,null,null,null,null,null,null,null,null,null,null,null,null,null,null,null,null,null,null,null,null,null,null,null,{"$f":"$I$34","v":""},0,0,0,{"$f":"M34","v":0},0,0,0,0,0,0,0,0,0,0,0,0,0,0,0,0]
[null,null,null,null,"【入所希望理由】\n\n該当項目を\n全て選んでください",null,null,null,{"$f":"IF($E$4=\"\",\"□\",VLOOKUP($E$4,保存記録!$D$5:$IK$506,67))","v":"□"},"主たる介護者が、他の要介護者または障害者をも介護しているため。",null,null,null,null,null,null,null,null,null,null,{"$f":"IF($E$4=\"\",\"□\",VLOOKUP($E$4,保存記録!$D$5:$IK$506,68))","v":"□"},"常時",null,{"$f":"IF($E$4=\"\",\"□\",VLOOKUP($E$4,保存記録!$D$5:$IK$506,69))","v":"□"},"頻繁",null,{"$f":"IF($E$4=\"\",\"□\",VLOOKUP($E$4,保存記録!$D$5:$IK$506,70))","v":"□"},"随時",null,null,null,null,"【入所希望理由】\n\n該当項目を\n全て選んでください",null,null,null,"□","主たる介護者が、他の要介護者または障害者をも介護している。",null,null,null,null,null,null,null,null,null,null,"□","常時",null,"□","頻繁",null,"□","随時",null,null,null,null,11,{"$f":"マスタ変更!AJ15","v":0},{"$f":"マスタ変更!AK15","v":0},{"$f":"マスタ変更!AL15","v":0},{"$f":"マスタ変更!AM15","v":"甥"},{"$f":"マスタ変更!AN15","v":"病院１１"},{"$f":"マスタ変更!AO15","v":"施設１１"},null,null,null,null,null,null,null,null,null,null,null,null,null,null,null,null,null,"【入所希望理由】\n\n該当項目を\n全て選んでください",null,null,null,"□","主たる介護者が、他の要介護者または障害者をも介護している。",null,null,null,null,null,null,null,null,null,null,"□","常時",null,"□","頻繁",null,"□","随時",null,null,null,null,null,"【入所希望理由】\n\n該当項目を\n全て選んでください",null,null,null,{"$f":"$I$35","v":"□"},"主たる介護者が、他の要介護者または障害者をも介護している。",null,null,null,null,null,null,null,null,null,null,{"$f":"$U$35","v":"□"},"常時",null,{"$f":"$X$35","v":"□"},"頻繁",null,{"$f":"$AA$35","v":"□"},"随時"]
[null,null,null,null,null,null,null,null,{"$f":"IF($E$4=\"\",\"□\",VLOOKUP($E$4,保存記録!$D$5:$IK$506,71))","v":"□"},"主たる介護者の家庭内で育児中であり、十分な介護ができないため。",null,null,null,null,null,null,null,null,null,null,{"$f":"IF($E$4=\"\",\"□\",VLOOKUP($E$4,保存記録!$D$5:$IK$506,72))","v":"□"},"常時",null,{"$f":"IF($E$4=\"\",\"□\",VLOOKUP($E$4,保存記録!$D$5:$IK$506,73))","v":"□"},"頻繁",null,{"$f":"IF($E$4=\"\",\"□\",VLOOKUP($E$4,保存記録!$D$5:$IK$506,74))","v":"□"},"随時",null,null,null,null,null,null,null,null,"□","主たる介護者の家庭内で、現在育児（手伝い）中である。",null,null,null,null,null,null,null,null,null,null,"□","常時",null,"□","頻繁",null,"□","随時",null,null,null,null,12,{"$f":"マスタ変更!AJ16","v":0},{"$f":"マスタ変更!AK16","v":0},{"$f":"マスタ変更!AL16","v":0},{"$f":"マスタ変更!AM16","v":"姪"},{"$f":"マスタ変更!AN16","v":"病院１２"},{"$f":"マスタ変更!AO16","v":"施設１２"},null,null,null,null,null,null,null,null,null,null,null,null,null,null,null,null,null,null,null,null,null,"□","主たる介護者の家庭内で、現在育児（手伝い）中である。",null,null,null,null,null,null,null,null,null,null,"□","常時",null,"□","頻繁",null,"□","随時",null,null,null,null,null,null,null,null,null,{"$f":"$I$36","v":"□"},"主たる介護者の家庭内で、現在育児（手伝い）中である。",null,null,null,null,null,null,null,null,null,null,{"$f":"$U$36","v":"□"},"常時",null,{"$f":"$X$36","v":"□"},"頻繁",null,{"$f":"$AA$36","v":"□"},"随時"]
[null,null,null,null,null,null,null,null,{"$f":"IF($E$4=\"\",\"□\",VLOOKUP($E$4,保存記録!$D$5:$IK$506,75))","v":"□"},"主たる介護者が就労していて、十分な介護ができないため。",null,null,null,null,null,null,null,null,null,null,null,"労働時間",null,"週",{"$f":"IF($E$4=\"\",0,VLOOKUP($E$4,保存記録!$D$5:$IK$506,76))","v":0},"時間程度",null,null,null,null,null,null,null,null,null,null,"□","主たる介護者は就労していて、十分な介護ができない。",null,null,null,null,null,null,null,null,null,null,null,"労働時間",null,"週",0,"時間程度",null,null,null,null,null,null,13,{"$f":"マスタ変更!AJ17","v":0},{"$f":"マスタ変更!AK17","v":0},{"$f":"マスタ変更!AL17","v":0},{"$f":"マスタ変更!AM17","v":"孫"},{"$f":"マスタ変更!AN17","v":"病院１３"},{"$f":"マスタ変更!AO17","v":"施設１３"},null,null,null,null,null,null,null,null,null,null,null,null,null,null,null,null,null,null,null,null,null,"□","主たる介護者は就労していて、十分な介護ができない。",null,null,null,null,null,null,null,null,null,null,null,"労働時間",null,"週",0,"時間程度",null,null,null,null,null,null,null,null,null,null,null,{"$f":"$I$37","v":"□"},"主たる介護者は就労していて、十分な介護ができない。",null,null,null,null,null,null,null,null,null,null,null,"労働時間",null,"週",{"$f":"$Y$37","v":0},"時間程度"]
[null,null,null,null,null,null,null,null,{"$f":"IF($E$4=\"\",\"□\",VLOOKUP($E$4,保存記録!$D$5:$IK$506,77))","v":"□"},"介護する者なく介護はほぼ介護サービス事業者まかせである。あるいは、必要と思われる介護サービスを受けていない。",null,null,null,null,null,null,null,null,null,null,null,null,null,null,null,null,null,null,null,null,null,null,null,null,null,null,"□","介護する者なく介護はほぼ介護サービス事業者まかせである。あるいは、必要と思われる介護サービスを受けていない。",null,null,null,null,null,null,null,null,null,null,null,null,null,null,null,null,null,null,null,null,null,null,14,{"$f":"マスタ変更!AJ18","v":0},{"$f":"マスタ変更!AK18","v":0},{"$f":"マスタ変更!AL18","v":0},{"$f":"マスタ変更!AM18","v":"知人"},{"$f":"マスタ変更!AN18","v":"病院１４"},{"$f":"マスタ変更!AO18","v":"施設１４"},null,null,null,null,null,null,null,null,null,null,null,null,null,null,null,null,null,null,null,null,null,"□","介護する者なく介護はほぼ介護サービス事業者まかせである。あるいは、必要と思われる介護サービスを受けていない。",null,null,null,null,null,null,null,null,null,null,null,null,null,null,null,null,null,null,null,null,null,null,null,null,null,null,null,{"$f":"$I$38","v":"□"},"介護する者なく介護はほぼ介護サービス事業者まかせである。あるいは、必要と思われる介護サービスを受けていない。"]
[null,null,null,null,null,null,null,null,{"$f":"IF($E$4=\"\",\"□\",VLOOKUP($E$4,保存記録!$D$5:$IK$506,78))","v":"□"},"主介護者が要支援１以上、または80歳以上、あるいは継続治療の必要な重篤な病気や障害があるため、十分な介護ができないため。",null,null,null,null,null,null,null,null,null,null,null,null,null,null,null,null,null,null,null,null,null,null,null,null,null,null,"□","主介護者が要支援１以上、または80歳以上、あるいは継続治療の必要な重篤な病気や障害があるため、十分な介護ができないため。",null,null,null,null,null,null,null,null,null,null,null,null,null,null,null,null,null,null,null,null,null,null,15,{"$f":"マスタ変更!AJ19","v":0},{"$f":"マスタ変更!AK19","v":0},{"$f":"マスタ変更!AL19","v":0},{"$f":"マスタ変更!AM19","v":0},{"$f":"マスタ変更!AN19","v":"病院１５"},{"$f":"マスタ変更!AO19","v":"施設１５"},null,null,null,null,null,null,null,null,null,null,null,null,null,null,null,null,null,null,null,null,null,"□","主介護者が要支援１以上、または80歳以上、あるいは継続治療の必要な重篤な病気や障害があるため、十分な介護ができないため。",null,null,null,null,null,null,null,null,null,null,null,null,null,null,null,null,null,null,null,null,null,null,null,null,null,null,null,{"$f":"$I$39","v":"□"},"主介護者が要支援１以上、または80歳以上、あるいは継続治療の必要な重篤な病気や障害があるため、十分な介護ができないため。"]
[null,null,null,null,null,null,null,null,{"$f":"IF($E$4=\"\",\"□\",VLOOKUP($E$4,保存記録!$D$5:$IK$506,79))","v":"□"},"施設や病院などから退去を求められているが、在宅における介護は極めて厳しいため。",null,null,null,null,null,null,null,null,null,null,null,null,null,null,null,null,null,null,null,null,null,null,null,null,null,null,"□","施設や病院などから退去を求められているが、在宅における介護は極めて厳しいため。",null,null,null,null,null,null,null,null,null,null,null,null,null,null,null,null,null,null,null,null,null,null,null,null,null,null,null,null,null,null,null,null,null,null,null,null,null,null,null,null,null,null,null,null,null,null,null,null,null,null,"□","施設や病院などから退去を求められているが、在宅における介護は極めて厳しいため。",null,null,null,null,null,null,null,null,null,null,null,null,null,null,null,null,null,null,null,null,null,null,null,null,null,null,null,{"$f":"$I$40","v":"□"},"施設や病院などから退去を求められているが、在宅における介護は極めて厳しいため。"]
[null,null,null,null,null,null,null,null,{"$f":"IF($E$4=\"\",\"□\",VLOOKUP($E$4,保存記録!$D$5:$IK$506,80))","v":"□"},"エレベーターがない、改修が必要があるが借家であるなど、居住環境の事情から十分な介護ができないため。",null,null,null,null,null,null,null,null,null,null,null,null,null,null,null,null,null,null,null,null,null,null,null,null,null,null,"□","エレベーターがない、改修が必要があるが借家であるなど、居住環境の事情から十分な介護ができないため。",null,null,null,null,null,null,null,null,null,null,null,null,null,null,null,null,null,null,null,null,null,null,null,null,null,null,null,null,null,null,null,null,null,null,null,null,null,null,null,null,null,null,null,null,null,null,null,null,null,null,"□","エレベーターがない、改修が必要があるが借家であるなど、居住環境の事情から十分な介護ができないため。",null,null,null,null,null,null,null,null,null,null,null,null,null,null,null,null,null,null,null,null,null,null,null,null,null,null,null,{"$f":"$I$41","v":"□"},"エレベーターがない、改修が必要があるが借家であるなど、居住環境の事情から十分な介護ができないため。"]
[null,null,null,null,null,null,null,null,{"$f":"IF($E$4=\"\",\"\",VLOOKUP($E$4,保存記録!$D$5:$IK$506,81))","v":""},"その他　（",null,{"$f":"IF($E$4=\"\",\"\",VLOOKUP($E$4,保存記録!$D$5:$IK$506,82))","v":""},null,null,null,null,null,null,null,null,null,null,null,null,null,null,null,null,"）",null,null,null,null,null,null,null,"□","その他　（",null,null,null,null,null,null,null,null,null,null,null,null,null,null,null,null,null,null,"）",null,null,null,null,null,null,null,null,null,null,null,null,null,null,null,null,null,null,null,null,null,null,null,null,null,null,null,null,null,null,null,"□","その他　（",null,null,null,null,null,null,null,null,null,null,null,null,null,null,null,null,null,null,"）",null,null,null,null,null,null,null,null,{"$f":"$I$42","v":""},"その他　（",null,{"$f":"IF($L$42=0,\"\",$L$42)","v":""},{"$f":"M42","v":0},0,0,0,0,0,0,0,0,0,0,0,0,0,0,0,"）"]
[null,null,null,null,"【介護者の意見】\n１つだけ選択",null,null,null,{"$f":"IF($E$4=\"\",\"□\",VLOOKUP($E$4,保存記録!$D$5:$IK$506,83))","v":"□"},"介護の継続可能",null,null,null,{"$f":"IF($E$4=\"\",\"□\",VLOOKUP($E$4,保存記録!$D$5:$IK$506,84))","v":"□"},"かなり厳しい毎日である。",null,null,null,{"$f":"IF($E$4=\"\",\"□\",VLOOKUP($E$4,保存記録!$D$5:$IK$506,85))","v":"□"},"体が悲鳴をあげている。",null,null,null,{"$f":"IF($E$4=\"\",\"□\",VLOOKUP($E$4,保存記録!$D$5:$IK$506,86))","v":"□"},"もう介護にはかかわれない。",null,null,null,null,null,null,null,"【介護者の意見】\n１つだけ選択",null,null,null,"□","介護の継続可能",null,null,null,"□","かなり厳しい毎日である。",null,null,null,"□","体が悲鳴をあげていて無理。",null,null,null,"□","もう介護にはかかわれない。",null,null,null,null,null,null,null,null,null,null,null,null,null,null,null,null,null,null,null,null,null,null,null,null,null,null,null,null,null,null,null,"【介護者の意見】\n１つだけ選択",null,null,null,"□","介護の継続可能",null,null,null,"□","かなり厳しい毎日である。",null,null,null,"□","体が悲鳴をあげていて無理。",null,null,null,"□","もう介護にはかかわれない。",null,null,null,null,null,null,null,null,"【介護者の意見】\n１つだけ選択",null,null,null,{"$f":"$I$43","v":"□"},"介護の継続可能",null,null,null,{"$f":"$N$43","v":"□"},"かなり厳しい毎日である。",null,null,null,{"$f":"$S$43","v":"□"},"体が悲鳴をあげていて無理。",null,null,null,{"$f":"$X$43","v":"□"},"もう介護にはかかわれない。"]
[null,null,null,null,"介護に関する\n苦労や思い",null,null,null,{"$f":"IF($E$4=\"\",\"\",VLOOKUP($E$4,保存記録!$D$5:$IK$506,87))","v":""},null,null,null,null,null,null,null,null,null,null,null,null,null,null,null,null,null,null,null,null,null,null,null,"介護に関する\n苦労や思い",null,null,null,null,null,null,null,null,null,null,null,null,null,null,null,null,null,null,null,null,null,null,null,null,null,null,null,null,null,null,null,null,null,null,null,null,null,null,null,null,null,null,null,null,null,null,null,null,null,null,null,"介護に関する\n苦労や思い",null,null,null,null,null,null,null,null,null,null,null,null,null,null,null,null,null,null,null,null,null,null,null,null,null,null,null,null,"介護に関する\n苦労や思い",null,null,null,{"$f":"IF($I$44=0,\"\",$I$44)","v":""},{"$f":"J44","v":0},{"$f":"K44","v":0},{"$f":"L44","v":0},{"$f":"M44","v":0},{"$f":"N44","v":0},{"$f":"O44","v":0},{"$f":"P44","v":0},{"$f":"Q44","v":0},{"$f":"R44","v":0},{"$f":"S44","v":0},{"$f":"T44","v":0},{"$f":"U44","v":0},{"$f":"V44","v":0},{"$f":"W44","v":0},{"$f":"X44","v":0},{"$f":"Y44","v":0},{"$f":"Z44","v":0},{"$f":"AA44","v":0},{"$f":"AB44","v":0},{"$f":"AC44","v":0}]
[null,null,null,null,null,null,null,null,null,null,null,null,null,null,null,null,null,null,null,null,null,null,null,null,null,null,null,null,null,null,null,null,null,null,null,null,null,null,null,null,null,null,null,null,null,null,null,null,null,null,null,null,null,null,null,null,null,null,null,null,null,null,null,null,null,null,null,null,null,null,null,null,null,null,null,null,null,null,null,null,null,null,null,null,null,null,null,null,null,null,null,null,null,null,null,null,null,null,null,null,null,null,null,null,null,null,null,null,null,null,null,null,null,null,null,null,null,{"$f":"I45","v":0},0,0,0,0,0,0,0,0,0,0,0,0,0,0,0,0,0,0,0,0]
[null,null,null,null,"入所希望時期",null,null,null,{"$f":"IF($E$4=\"\",\"□\",VLOOKUP($E$4,保存記録!$D$5:$IK$506,88))","v":"□"},"すぐ入所したい。",null,null,{"$f":"IF($E$4=\"\",\"□\",VLOOKUP($E$4,保存記録!$D$5:$IK$506,89))","v":"□"},"退院・退所したときにお願いしたい。",null,null,null,null,null,{"$f":"IF($E$4=\"\",\"□\",VLOOKUP($E$4,保存記録!$D$5:$IK$506,90))","v":"□"},"すぐではないが将来の入所を考えている。",null,null,null,null,null,null,null,null,null,null,null,"入所希望時期",null,null,null,"□","すぐ入所したい。",null,null,"□","退院・退所したときにお願いしたい。",null,null,null,null,null,"□","すぐではないが将来の入所を考えている。",null,null,null,null,null,null,null,null,null,null,null,null,null,null,null,null,null,null,null,null,null,null,null,null,null,null,null,null,null,null,null,null,null,null,null,"入所希望時期",null,null,null,"□","すぐ入所したい。",null,null,"□","退院・退所したときにお願いしたい。",null,null,null,null,null,"□","すぐではないが将来の入所を考えている。",null,null,null,null,null,null,null,null,null,null,null,null,"入所希望時期",null,null,null,{"$f":"$I$46","v":"□"},"すぐ入所したい。",null,null,{"$f":"$M$46","v":"□"},"退院・退所したときにお願いしたい。",null,null,null,null,null,{"$f":"$T$46","v":"□"},"すぐではないが将来の入所を考えている。"]
[null,null,null,null,"申込状況\n※特養・老健・ＧＨ",null,null,null,{"$f":"IF($E$4=\"\",\"□\",VLOOKUP($E$4,保存記録!$D$5:$IK$506,91))","v":"□"},"当該施設のみ。",null,null,{"$f":"IF($E$4=\"\",\"□\",VLOOKUP($E$4,保存記録!$D$5:$IK$506,92))","v":"□"},"複数の施設を申し込んでいる、または申し込む予定。",null,null,null,null,null,null,null,null,null,null,null,null,null,null,null,null,null,null,"申込状況\n※特養・老健・ＧＨ",null,null,null,"□","当該施設のみ。",null,null,"□","複数の施設を申し込んでいる、または申し込む予定。",null,null,null,null,null,null,null,null,null,null,null,null,null,null,null,null,null,null,null,null,null,null,null,null,null,null,null,null,null,null,null,null,null,null,null,null,null,null,null,null,null,null,"申込状況\n※特養・老健・ＧＨ",null,null,null,"□","当該施設のみ。",null,null,"□","複数の施設を申し込んでいる、または申し込む予定。",null,null,null,null,null,null,null,null,null,null,null,null,null,null,null,null,null,null,null,"申込状況\n※特養・老健・ＧＨ",null,null,null,{"$f":"$I$47","v":"□"},"当該施設のみ。",null,null,{"$f":"$M$47","v":"□"},"複数の施設を申し込んでいる、または申し込む予定。"]
[null,null,null,null,null,null,null,null,"申込済み",null,null,{"$f":"IF($E$4=\"\",\"\",VLOOKUP($E$4,保存記録!$D$5:$IK$506,93))","v":""},null,null,{"$f":"IF($E$4=\"\",\"\",VLOOKUP($E$4,保存記録!$D$5:$IK$506,94))","v":""},null,null,{"$f":"IF($E$4=\"\",\"\",VLOOKUP($E$4,保存記録!$D$5:$IK$506,95))","v":""},null,null,{"$f":"IF($E$4=\"\",\"\",VLOOKUP($E$4,保存記録!$D$5:$IK$506,96))","v":""},null,null,{"$f":"IF($E$4=\"\",\"\",VLOOKUP($E$4,保存記録!$D$5:$IK$506,97))","v":""},null,null,{"$f":"IF($E$4=\"\",\"\",VLOOKUP($E$4,保存記録!$D$5:$IK$506,98))","v":""},null,null,null,null,null,null,null,null,null,"申込済み",null,null,null,null,null,null,null,null,null,null,null,null,null,null,null,null,null,null,null,null,null,null,null,null,null,null,null,null,null,null,null,null,null,null,null,null,null,null,null,null,null,null,null,null,null,null,null,null,null,null,null,"申込済み",null,null,null,null,null,null,null,null,null,null,null,null,null,null,null,null,null,null,null,null,null,null,null,null,null,null,null,null,"申込済み",null,null,{"$f":"IF($L$48=0,\"\",$L$48)","v":""},{"$f":"M48","v":0},0,{"$f":"IF($O$48=0,\"\",$O$48)","v":""},0,0,{"$f":"IF($R$48=0,\"\",$R$48)","v":""},0,0,{"$f":"IF($U$48=0,\"\",$U$48)","v":""},0,0,{"$f":"IF($X$48=0,\"\",$X$48)","v":""},0,0,{"$f":"IF($AA$48=0,\"\",$AA$48)","v":""},0,0]
[null,null,null,null,null,null,null,null,"申込予定",null,null,{"$f":"IF($E$4=\"\",\"\",VLOOKUP($E$4,保存記録!$D$5:$IK$506,99))","v":""},null,null,{"$f":"IF($E$4=\"\",\"\",VLOOKUP($E$4,保存記録!$D$5:$IK$506,100))","v":""},null,null,{"$f":"IF($E$4=\"\",\"\",VLOOKUP($E$4,保存記録!$D$5:$IK$506,101))","v":""},null,null,{"$f":"IF($E$4=\"\",\"\",VLOOKUP($E$4,保存記録!$D$5:$IK$506,102))","v":""},null,null,{"$f":"IF($E$4=\"\",\"\",VLOOKUP($E$4,保存記録!$D$5:$IK$506,103))","v":""},null,null,{"$f":"IF($E$4=\"\",\"\",VLOOKUP($E$4,保存記録!$D$5:$IK$506,104))","v":""},null,null,null,null,null,null,null,null,null,"申込予定",null,null,null,null,null,null,null,null,null,null,null,null,null,null,null,null,null,null,null,null,null,null,null,null,null,null,null,null,null,null,null,null,null,null,null,null,null,null,null,null,null,null,null,null,null,null,null,null,null,null,null,"申込予定",null,null,null,null,null,null,null,null,null,null,null,null,null,null,null,null,null,null,null,null,null,null,null,null,null,null,null,null,"申込予定",null,null,{"$f":"IF($L$49=0,\"\",$L$49)","v":""},0,0,{"$f":"IF($O$49=0,\"\",$O$49)","v":""},0,0,{"$f":"IF($R$49=0,\"\",$R$49)","v":""},0,0,{"$f":"IF($U$49=0,\"\",$U$49)","v":""},0,0,{"$f":"IF($X$49=0,\"\",$X$49)","v":""},0,0,{"$f":"IF($AA$49=0,\"\",$AA$49)","v":""},0,0]
[null,null,null,null,"様式１－２　（聞き取り調査用）",null,null,null,null,null,null,null,null,null,null,null,null,null,null,null,null,null,null,null,null,null,null,null,null,null,null,null,"様式１－２　（聞き取り調査用）",null,null,null,null,null,null,null,null,null,null,null,null,null,null,null,null,null,null,null,null,null,null,null,null,null,null,null,null,null,null,null,null,null,null,null,null,null,null,null,null,null,null,null,null,null,null,null,null,null,null,null,"様式１－２　（聞き取り調査用）",null,null,null,null,null,null,null,null,null,null,null,null,null,null,null,null,null,null,null,null,null,null,null,null,null,null,null,null,"様式１－２　（聞き取り調査用）"]
[null,null,null,null,"治療歴・薬について（判る範囲で）",null,null,null,null,null,null,null,null,null,null,null,null,null,"居宅介護支援事業所",null,null,null,{"$f":"IF($E$4=\"\",\"\",VLOOKUP($E$4,保存記録!$D$5:$IK$506,105))","v":""},null,null,null,null,null,null,null,null,null,"治療歴・薬について（判る範囲で）",null,null,null,null,null,null,null,null,null,null,null,null,null,"居宅介護支援事業所",null,null,null,null,null,null,null,null,null,null,null,null,null,null,null,null,null,null,null,null,null,null,null,null,null,null,null,null,null,null,null,null,null,null,null,null,null,"治療歴・薬について（判る範囲で）",null,null,null,null,null,null,null,null,null,null,null,null,null,"居宅介護支援事業所",null,null,null,null,null,null,null,null,null,null,null,null,null,null,"治療歴・薬について（判る範囲で）",null,null,null,null,null,null,null,null,null,null,null,null,null,"居宅介護支援事業所",null,null,null,{"$f":"IF($W$51=0,\"\",$W$51)","v":""},{"$f":"X51","v":0},0,0,0,0,0]
[null,null,null,null,{"$f":"IF($E$4=\"\",\"\",VLOOKUP($E$4,保存記録!$D$5:$IK$506,106))","v":""},null,null,null,null,null,null,null,null,null,null,null,null,null,"介護サービスの利用頻度\n（月３０日としておおよそ）",null,null,null,null,null,null,"事業所名",null,null,null,null,null,null,null,null,null,null,null,null,null,null,null,null,null,null,null,null,"介護サービスの利用頻度\n（月３０日としておおよそ）",null,null,null,null,null,null,"事業所名",null,null,null,null,null,null,null,null,null,null,null,null,null,null,null,null,null,null,null,null,null,null,null,null,null,null,null,null,null,null,null,null,null,null,null,null,null,null,null,null,null,null,null,null,"介護サービスの利用頻度\n（月３０日としておおよそ）",null,null,null,null,null,null,"事業所名",null,null,null,null,null,null,null,{"$f":"IF($E$52=0,\"\",$E$52)","v":""},{"$f":"F52","v":0},{"$f":"G52","v":0},{"$f":"H52","v":0},{"$f":"I52","v":0},{"$f":"J52","v":0},{"$f":"K52","v":0},{"$f":"L52","v":0},{"$f":"M52","v":0},{"$f":"N52","v":0},{"$f":"O52","v":0},{"$f":"P52","v":0},{"$f":"Q52","v":0},{"$f":"R52","v":0},"介護サービスの利用頻度\n（月３０日としておおよそ）",null,null,null,null,null,null,"事業所名"]
[null,null,null,null,null,null,null,null,null,null,null,null,null,null,null,null,null,null,"ショートステイ\nお泊りデイ",null,null,null,"月",{"$f":"IF($E$4=\"\",0,VLOOKUP($E$4,保存記録!$D$5:$IK$506,107))","v":0},"回",{"$f":"IF($E$4=\"\",\"\",VLOOKUP($E$4,保存記録!$D$5:$IK$506,108))","v":""},null,null,null,null,null,null,null,null,null,null,null,null,null,null,null,null,null,null,null,null,"ショートステイ\nお泊りデイ",null,null,null,"月",0,"回",null,null,null,null,null,null,null,null,null,null,null,null,null,null,null,null,null,null,null,null,null,null,null,null,null,null,null,null,null,null,null,null,null,null,null,null,null,null,null,null,null,null,null,null,null,"ショートステイ\nお泊りデイ",null,null,null,"月",0,"回",null,null,null,null,null,null,null,null,{"$f":"E53","v":0},0,0,0,0,0,0,0,0,0,0,0,0,0,"ショートステイ\nお泊りデイ",null,null,null,"月",{"$f":"$X$53","v":0},"回",{"$f":"IF($Z$53=0,\"\",$Z$53)","v":""},{"$f":"AA53","v":0},0,0]
[null,null,null,null,null,null,null,null,null,null,null,null,null,null,null,null,null,null,"デイケア・デイサービス",null,null,null,"月",{"$f":"IF($E$4=\"\",0,VLOOKUP($E$4,保存記録!$D$5:$IK$506,109))","v":0},"回",{"$f":"IF($E$4=\"\",\"\",VLOOKUP($E$4,保存記録!$D$5:$IK$506,110))","v":""},null,null,null,null,null,null,null,null,null,null,null,null,null,null,null,null,null,null,null,null,"デイケア・デイサービス",null,null,null,"月",0,"回",null,null,null,null,null,null,null,null,null,null,null,null,null,null,null,null,null,null,null,null,null,null,null,null,null,null,null,null,null,null,null,null,null,null,null,null,null,null,null,null,null,null,null,null,null,"デイケア・デイサービス",null,null,null,"月",0,"回",null,null,null,null,null,null,null,null,0,0,0,0,0,0,0,0,0,0,0,0,0,0,"デイケア・デイサービス",null,null,null,"月",{"$f":"$X$54","v":0},"回",{"$f":"IF($Z$54=0,\"\",$Z$54)","v":""},0,0,0]
[null,null,null,null,null,null,null,null,null,null,null,null,null,null,null,null,null,null,"ヘルパー・訪問介護",null,null,null,"月",{"$f":"IF($E$4=\"\",0,VLOOKUP($E$4,保存記録!$D$5:$IK$506,111))","v":0},"回",{"$f":"IF($E$4=\"\",\"\",VLOOKUP($E$4,保存記録!$D$5:$IK$506,112))","v":""},null,null,null,null,null,null,null,null,null,null,null,null,null,null,null,null,null,null,null,null,"ヘルパー・訪問介護",null,null,null,"月",0,"回",null,null,null,null,null,null,null,null,null,null,null,null,null,null,null,null,null,null,null,null,null,null,null,null,null,null,null,null,null,null,null,null,null,null,null,null,null,null,null,null,null,null,null,null,null,"ヘルパー・訪問介護",null,null,null,"月",0,"回",null,null,null,null,null,null,null,null,0,0,0,0,0,0,0,0,0,0,0,0,0,0,"ヘルパー・訪問介護",null,null,null,"月",{"$f":"$X$55","v":0},"回",{"$f":"IF($Z$55=0,\"\",$Z$55)","v":""},0,0,0]
[null,null,null,null,null,null,null,null,null,null,null,null,null,null,null,null,null,null,"その他",null,null,null,{"$f":"IF($E$4=\"\",\"\",VLOOKUP($E$4,保存記録!$D$5:$IK$506,113))","v":""},null,null,null,null,null,null,null,null,null,null,null,null,null,null,null,null,null,null,null,null,null,null,null,"その他",null,null,null,null,null,null,null,null,null,null,null,null,null,null,null,null,null,null,null,null,null,null,null,null,null,null,null,null,null,null,null,null,null,null,null,null,null,null,null,null,null,null,null,null,null,null,null,null,null,null,null,"その他",null,null,null,null,null,null,null,null,null,null,null,null,null,null,0,0,0,0,0,0,0,0,0,0,0,0,0,0,"その他",null,null,null,{"$f":"IF($W$56=0,\"\",$W$56)","v":""},{"$f":"X56","v":0},0,0,0,0,0]
[null,null,null,null,"医療処置等",{"$f":"IF($E$4=\"\",\"□\",VLOOKUP($E$4,保存記録!$D$5:$IK$506,114))","v":"□"},{"$f":"マスタ変更!I12","v":"ペースメーカー"},null,null,{"$f":"IF($E$4=\"\",\"□\",VLOOKUP($E$4,保存記録!$D$5:$IK$506,115))","v":"□"},{"$f":"マスタ変更!M12","v":"疼痛管理"},null,null,{"$f":"IF($E$4=\"\",\"□\",VLOOKUP($E$4,保存記録!$D$5:$IK$506,116))","v":"□"},{"$f":"マスタ変更!Q12","v":"人工肛門"},null,null,{"$f":"IF($E$4=\"\",\"□\",VLOOKUP($E$4,保存記録!$D$5:$IK$506,117))","v":"□"},"疼痛管理",null,null,{"$f":"IF($E$4=\"\",\"□\",VLOOKUP($E$4,保存記録!$D$5:$IK$506,118))","v":"□"},{"$f":"マスタ変更!Y12","v":"皮膚疾患管理"},null,null,{"$f":"IF($E$4=\"\",\"□\",VLOOKUP($E$4,保存記録!$D$5:$IK$506,119))","v":"□"},{"$f":"マスタ変更!AC12","v":"看取り"},null,null,null,null,null,"医療処置等","□","ペースメーカー",null,null,"□","精神疾患管理",null,null,"□","胃瘻",null,null,"□","疼痛管理",null,null,"□","アレルギー疾患",null,null,"□","摘便・浣腸",null,null,null,null,null,null,null,null,null,null,null,null,null,null,null,null,null,null,null,null,null,null,null,null,null,null,null,null,null,"医療処置等","□",{"$f":"マスタ変更!$I$12","v":"ペースメーカー"},null,null,"□",{"$f":"マスタ変更!$M$12","v":"疼痛管理"},null,null,"□",{"$f":"マスタ変更!$Q$12","v":"人工肛門"},null,null,"□",{"$f":"マスタ変更!$U$12","v":"尿カテーテル"},null,null,"□",{"$f":"マスタ変更!$Y$12","v":"皮膚疾患管理"},null,null,"□",{"$f":"マスタ変更!$AC$12","v":"看取り"},null,null,null,null,null,null,"医療処置等",{"$f":"$F$57","v":"□"},{"$f":"マスタ変更!$I$12","v":"ペースメーカー"},null,null,{"$f":"$J$57","v":"□"},{"$f":"マスタ変更!$M$12","v":"疼痛管理"},null,null,{"$f":"$N$57","v":"□"},{"$f":"マスタ変更!$Q$12","v":"人工肛門"},null,null,{"$f":"$R$57","v":"□"},{"$f":"マスタ変更!$U$12","v":"尿カテーテル"},null,null,{"$f":"$V$57","v":"□"},{"$f":"マスタ変更!$Y$12","v":"皮膚疾患管理"},null,null,{"$f":"$Z$57","v":"□"},{"$f":"マスタ変更!$AC$12","v":"看取り"}]
[null,null,null,null,null,{"$f":"IF($E$4=\"\",\"□\",VLOOKUP($E$4,保存記録!$D$5:$IK$506,120))","v":"□"},{"$f":"マスタ変更!I13","v":"インスリン注射"},null,null,{"$f":"IF($E$4=\"\",\"□\",VLOOKUP($E$4,保存記録!$D$5:$IK$506,121))","v":"□"},{"$f":"マスタ変更!M13","v":"膀胱洗浄"},null,null,{"$f":"IF($E$4=\"\",\"□\",VLOOKUP($E$4,保存記録!$D$5:$IK$506,122))","v":"□"},{"$f":"マスタ変更!Q13","v":"導尿"},null,null,{"$f":"IF($E$4=\"\",\"□\",VLOOKUP($E$4,保存記録!$D$5:$IK$506,123))","v":"□"},"喀痰吸引",null,null,{"$f":"IF($E$4=\"\",\"□\",VLOOKUP($E$4,保存記録!$D$5:$IK$506,124))","v":"□"},{"$f":"マスタ変更!Y13","v":"人工透析"},null,null,{"$f":"IF($E$4=\"\",\"□\",VLOOKUP($E$4,保存記録!$D$5:$IK$506,125))","v":"□"},{"$f":"マスタ変更!AC13","v":"摘便・浣腸"},null,null,null,null,null,null,"□","インスリン",null,null,"□","在宅酸素療法",null,null,"□","経鼻栄養",null,null,"□","喀痰吸引",null,null,"□","褥瘡処置",null,null,"□","気管切開",null,null,null,null,null,null,null,null,null,null,null,null,null,null,null,null,null,null,null,null,null,null,null,null,null,null,null,null,null,null,"□",{"$f":"マスタ変更!$I$13","v":"インスリン注射"},null,null,"□",{"$f":"マスタ変更!$M$13","v":"膀胱洗浄"},null,null,"□",{"$f":"マスタ変更!$Q$13","v":"導尿"},null,null,"□",{"$f":"マスタ変更!$U$13","v":"腹膜透析"},null,null,"□",{"$f":"マスタ変更!$Y$13","v":"人工透析"},null,null,"□",{"$f":"マスタ変更!$AC$13","v":"摘便・浣腸"},null,null,null,null,null,null,null,{"$f":"$F$58","v":"□"},{"$f":"マスタ変更!$I$13","v":"インスリン注射"},null,null,{"$f":"$J$58","v":"□"},{"$f":"マスタ変更!$M$13","v":"膀胱洗浄"},null,null,{"$f":"$N$58","v":"□"},{"$f":"マスタ変更!$Q$13","v":"導尿"},null,null,{"$f":"$R$58","v":"□"},{"$f":"マスタ変更!$U$13","v":"腹膜透析"},null,null,{"$f":"$V$58","v":"□"},{"$f":"マスタ変更!$Y$13","v":"人工透析"},null,null,{"$f":"$Z$58","v":"□"},{"$f":"マスタ変更!$AC$13","v":"摘便・浣腸"}]
[null,null,null,null,null,{"$f":"IF($E$4=\"\",\"□\",VLOOKUP($E$4,保存記録!$D$5:$IK$506,126))","v":"□"},{"$f":"マスタ変更!I14","v":"胃ろう"},null,null,{"$f":"IF($E$4=\"\",\"□\",VLOOKUP($E$4,保存記録!$D$5:$IK$506,127))","v":"□"},{"$f":"マスタ変更!M14","v":"経鼻栄養"},null,null,{"$f":"IF($E$4=\"\",\"□\",VLOOKUP($E$4,保存記録!$D$5:$IK$506,128))","v":"□"},{"$f":"マスタ変更!Q14","v":"ＩＶＨ"},null,null,{"$f":"IF($E$4=\"\",\"□\",VLOOKUP($E$4,保存記録!$D$5:$IK$506,129))","v":"□"},"膀胱洗浄",null,null,{"$f":"IF($E$4=\"\",\"□\",VLOOKUP($E$4,保存記録!$D$5:$IK$506,130))","v":"□"},{"$f":"マスタ変更!Y14","v":"気管切開"},null,null,{"$f":"IF($E$4=\"\",\"□\",VLOOKUP($E$4,保存記録!$D$5:$IK$506,131))","v":"□"},{"$f":"マスタ変更!AC14","v":"痰の吸引"},null,null,null,null,null,null,"□","人工肛門処置",null,null,"□","尿カテーテル処置",null,null,"□","ＩＶＨ",null,null,"□","膀胱洗浄",null,null,"□","導尿",null,null,"□","透析",null,null,null,null,null,null,null,null,null,null,null,null,null,null,null,null,null,null,null,null,null,null,null,null,null,null,null,null,null,null,"□",{"$f":"マスタ変更!$I$14","v":"胃ろう"},null,null,"□",{"$f":"マスタ変更!$M$14","v":"経鼻栄養"},null,null,"□",{"$f":"マスタ変更!$Q$14","v":"ＩＶＨ"},null,null,"□",{"$f":"マスタ変更!$U$14","v":"在宅酸素"},null,null,"□",{"$f":"マスタ変更!$Y$14","v":"気管切開"},null,null,"□",{"$f":"マスタ変更!$AC$14","v":"痰の吸引"},null,null,null,null,null,null,null,{"$f":"$F$59","v":"□"},{"$f":"マスタ変更!$I$14","v":"胃ろう"},null,null,{"$f":"$J$59","v":"□"},{"$f":"マスタ変更!$M$14","v":"経鼻栄養"},null,null,{"$f":"$N$59","v":"□"},{"$f":"マスタ変更!$Q$14","v":"ＩＶＨ"},null,null,{"$f":"$R$59","v":"□"},{"$f":"マスタ変更!$U$14","v":"在宅酸素"},null,null,{"$f":"$V$59","v":"□"},{"$f":"マスタ変更!$Y$14","v":"気管切開"},null,null,{"$f":"$Z$59","v":"□"},{"$f":"マスタ変更!$AC$14","v":"痰の吸引"}]
[null,null,null,null,null,{"$f":"IF($E$4=\"\",\"□\",VLOOKUP($E$4,保存記録!$D$5:$IK$506,132))","v":"□"},"その他",null,null,{"$f":"IF($E$4=\"\",\"\",VLOOKUP($E$4,保存記録!$D$5:$IK$506,133))","v":""},null,null,null,null,null,null,null,null,null,null,null,"主治医・病院",null,null,{"$f":"IF($E$4=\"\",\"\",VLOOKUP($E$4,保存記録!$D$5:$IK$506,134))","v":""},null,null,null,null,null,null,null,null,"□","その他",null,null,null,null,null,null,null,null,null,null,null,null,null,null,"主治医・病院",null,null,null,null,null,null,null,null,null,null,null,null,null,null,null,null,null,null,null,null,null,null,null,null,null,null,null,null,null,null,null,null,null,null,null,"□","その他",null,null,null,null,null,null,null,null,null,null,null,null,null,null,"主治医・病院",null,null,null,null,null,null,null,null,null,null,null,null,{"$f":"$F$60","v":"□"},"その他",null,null,{"$f":"IF($J$60=0,\"\",$J$60)","v":""},{"$f":"K60","v":0},0,0,0,0,0,0,0,0,0,0,"主治医・病院",null,null,{"$f":"IF($Y$60=0,\"\",$Y$60)","v":""},{"$f":"Z60","v":0},0,0,0]
[null,null,null,null,"麻痺・拘縮\n運動障害",null,null,"右腕",null,{"$f":"IF($E$4=\"\",\"□\",VLOOKUP($E$4,保存記録!$D$5:$IK$506,135))","v":"□"},"軽度障害",null,{"$f":"IF($E$4=\"\",\"□\",VLOOKUP($E$4,保存記録!$D$5:$IK$506,136))","v":"□"},"中度障害",null,{"$f":"IF($E$4=\"\",\"□\",VLOOKUP($E$4,保存記録!$D$5:$IK$506,137))","v":"□"},"重度障害",null,"左腕",null,{"$f":"IF($E$4=\"\",\"□\",VLOOKUP($E$4,保存記録!$D$5:$IK$506,138))","v":"□"},"軽度障害",null,{"$f":"IF($E$4=\"\",\"□\",VLOOKUP($E$4,保存記録!$D$5:$IK$506,139))","v":"□"},"中度障害",null,{"$f":"IF($E$4=\"\",\"□\",VLOOKUP($E$4,保存記録!$D$5:$IK$506,140))","v":"□"},"重度障害",null,null,null,null,"麻痺・拘縮\n運動障害",null,null,"右腕",null,"□","軽度障害",null,"□","中度障害",null,"□","重度障害",null,"左腕",null,"□","軽度障害",null,"□","中度障害",null,"□","重度障害",null,null,null,null,null,null,null,null,null,null,null,null,null,null,null,null,null,null,null,null,null,null,null,null,null,null,null,null,"麻痺・拘縮\n運動障害",null,null,"右腕",null,"□","軽度障害",null,"□","中度障害",null,"□","重度障害",null,"左腕",null,"□","軽度障害",null,"□","中度障害",null,"□","重度障害",null,null,null,null,null,"麻痺・拘縮\n運動障害",null,null,"右腕",null,{"$f":"$J$61","v":"□"},"軽度障害",null,{"$f":"$M$61","v":"□"},"中度障害",null,{"$f":"$P$61","v":"□"},"重度障害",null,"左腕",null,{"$f":"$U$61","v":"□"},"軽度障害",null,{"$f":"$X$61","v":"□"},"中度障害",null,{"$f":"$AA$61","v":"□"},"重度障害"]
[null,null,null,null,null,null,null,"右脚",null,{"$f":"IF($E$4=\"\",\"□\",VLOOKUP($E$4,保存記録!$D$5:$IK$506,141))","v":"□"},"軽度障害",null,{"$f":"IF($E$4=\"\",\"□\",VLOOKUP($E$4,保存記録!$D$5:$IK$506,142))","v":"□"},"中度障害",null,{"$f":"IF($E$4=\"\",\"□\",VLOOKUP($E$4,保存記録!$D$5:$IK$506,143))","v":"□"},"重度障害",null,"左脚",null,{"$f":"IF($E$4=\"\",\"□\",VLOOKUP($E$4,保存記録!$D$5:$IK$506,144))","v":"□"},"軽度障害",null,{"$f":"IF($E$4=\"\",\"□\",VLOOKUP($E$4,保存記録!$D$5:$IK$506,145))","v":"□"},"中度障害",null,{"$f":"IF($E$4=\"\",\"□\",VLOOKUP($E$4,保存記録!$D$5:$IK$506,146))","v":"□"},"重度障害",null,null,null,null,null,null,null,"右脚",null,"□","軽度障害",null,"□","中度障害",null,"□","重度障害",null,"左脚",null,"□","軽度障害",null,"□","中度障害",null,"□","重度障害",null,null,null,null,null,null,null,null,null,null,null,null,null,null,null,null,null,null,null,null,null,null,null,null,null,null,null,null,null,null,null,"右脚",null,"□","軽度障害",null,"□","中度障害",null,"□","重度障害",null,"左脚",null,"□","軽度障害",null,"□","中度障害",null,"□","重度障害",null,null,null,null,null,null,null,null,"右脚",null,{"$f":"$J$62","v":"□"},"軽度障害",null,{"$f":"$M$62","v":"□"},"中度障害",null,{"$f":"$P$62","v":"□"},"重度障害",null,"左脚",null,{"$f":"$U$62","v":"□"},"軽度障害",null,{"$f":"$X$62","v":"□"},"中度障害",null,{"$f":"$AA$62","v":"□"},"重度障害"]
[null,null,null,null,"日常生活能力と介護について",null,"歩行・立位の能力",null,null,{"$f":"IF($E$4=\"\",\"□\",VLOOKUP($E$4,保存記録!$D$5:$IK$506,147))","v":"□"},{"$f":"マスタ変更!M18","v":"自力歩行"},null,null,{"$f":"IF($E$4=\"\",\"□\",VLOOKUP($E$4,保存記録!$D$5:$IK$506,148))","v":"□"},{"$f":"マスタ変更!Q18","v":"手引・伝い歩き"},null,null,{"$f":"IF($E$4=\"\",\"□\",VLOOKUP($E$4,保存記録!$D$5:$IK$506,149))","v":"□"},{"$f":"マスタ変更!U18","v":"立位・支えて移動"},null,null,{"$f":"IF($E$4=\"\",\"□\",VLOOKUP($E$4,保存記録!$D$5:$IK$506,150))","v":"□"},{"$f":"マスタ変更!Y18","v":"支えて立つ程度"},null,null,{"$f":"IF($E$4=\"\",\"□\",VLOOKUP($E$4,保存記録!$D$5:$IK$506,151))","v":"□"},{"$f":"マスタ変更!AC18","v":"できない"},null,null,null,null,null,"日常生活能力と介護について",null,"歩行・立位の能力",null,null,"□","自力歩行",null,null,"□","手引・伝い歩き",null,null,"□","立位・支えて移動",null,null,"□","支えて立つ程度",null,null,"□","できない",null,null,null,null,null,null,null,null,null,null,null,null,null,null,null,null,null,null,null,null,null,null,null,null,null,null,null,null,null,"日常生活能力と介護について",null,"歩行・立位の能力",null,null,"□",{"$f":"マスタ変更!$M$18","v":"自力歩行"},null,null,"□",{"$f":"マスタ変更!$Q$18","v":"手引・伝い歩き"},null,null,"□",{"$f":"マスタ変更!$U$18","v":"立位・支えて移動"},null,null,"□",{"$f":"マスタ変更!$Y$18","v":"支えて立つ程度"},null,null,"□",{"$f":"マスタ変更!$AC$18","v":"できない"},null,null,null,null,null,null,"日常生活能力と介護について",null,"歩行・立位の能力",null,null,{"$f":"$J$63","v":"□"},{"$f":"マスタ変更!$M$18","v":"自力歩行"},null,null,{"$f":"$N$63","v":"□"},{"$f":"マスタ変更!$Q$18","v":"手引・伝い歩き"},null,null,{"$f":"$R$63","v":"□"},{"$f":"マスタ変更!$U$18","v":"立位・支えて移動"},null,null,{"$f":"$V$63","v":"□"},{"$f":"マスタ変更!$Y$18","v":"支えて立つ程度"},null,null,{"$f":"$Z$63","v":"□"},{"$f":"マスタ変更!$AC$18","v":"できない"}]
[null,null,null,null,null,null,"尿意",null,null,{"$f":"IF($E$4=\"\",\"□\",VLOOKUP($E$4,保存記録!$D$5:$IK$506,152))","v":"□"},{"$f":"マスタ変更!M19","v":"ある"},null,null,{"$f":"IF($E$4=\"\",\"□\",VLOOKUP($E$4,保存記録!$D$5:$IK$506,153))","v":"□"},{"$f":"マスタ変更!Q19","v":"曖昧"},null,null,{"$f":"IF($E$4=\"\",\"□\",VLOOKUP($E$4,保存記録!$D$5:$IK$506,154))","v":"□"},{"$f":"マスタ変更!U19","v":"なし"},null,null,{"$f":"IF($E$4=\"\",\"□\",VLOOKUP($E$4,保存記録!$D$5:$IK$506,155))","v":"□"},"尿カテーテル",null,null,{"$f":"IF($E$4=\"\",\"□\",VLOOKUP($E$4,保存記録!$D$5:$IK$506,156))","v":"□"},"失禁後の掃除\n着替え介助",null,null,null,null,null,null,null,"尿意",null,null,"□","ある",null,null,"□","曖昧",null,null,"□","なし",null,null,"□","尿カテーテル",null,null,"□","失禁後の掃除\n着替え介助",null,null,null,null,null,null,null,null,null,null,null,null,null,null,null,null,null,null,null,null,null,null,null,null,null,null,null,null,null,null,null,"尿意",null,null,"□",{"$f":"マスタ変更!$M$19","v":"ある"},null,null,"□",{"$f":"マスタ変更!$Q$19","v":"曖昧"},null,null,"□",{"$f":"マスタ変更!$U$19","v":"なし"},null,null,"□","尿カテーテル",null,null,"□","失禁後の掃除\n着替え介助",null,null,null,null,null,null,null,null,"尿意",null,null,{"$f":"$J$64","v":"□"},{"$f":"マスタ変更!$M$19","v":"ある"},null,null,{"$f":"$N$64","v":"□"},{"$f":"マスタ変更!$Q$19","v":"曖昧"},null,null,{"$f":"$R$64","v":"□"},{"$f":"マスタ変更!$U$19","v":"なし"},null,null,{"$f":"$V$64","v":"□"},"尿カテーテル",null,null,{"$f":"$Z$64","v":"□"},"失禁後の掃除\n着替え介助"]
[null,null,null,null,null,null,"便意",null,null,{"$f":"IF($E$4=\"\",\"□\",VLOOKUP($E$4,保存記録!$D$5:$IK$506,157))","v":"□"},{"$f":"マスタ変更!M20","v":"ある"},null,null,{"$f":"IF($E$4=\"\",\"□\",VLOOKUP($E$4,保存記録!$D$5:$IK$506,158))","v":"□"},{"$f":"マスタ変更!Q20","v":"曖昧"},null,null,{"$f":"IF($E$4=\"\",\"□\",VLOOKUP($E$4,保存記録!$D$5:$IK$506,159))","v":"□"},{"$f":"マスタ変更!U20","v":"なし"},null,null,{"$f":"IF($E$4=\"\",\"□\",VLOOKUP($E$4,保存記録!$D$5:$IK$506,160))","v":"□"},"人工肛門",null,null,{"$f":"IF($E$4=\"\",\"□\",VLOOKUP($E$4,保存記録!$D$5:$IK$506,161))","v":"□"},"失禁後の掃除\n着替え介助",null,null,null,null,null,null,null,"便意",null,null,"□","ある",null,null,"□","曖昧",null,null,"□","なし",null,null,"□","人工肛門",null,null,"□","失禁後の掃除\n着替え介助",null,null,null,null,null,null,null,null,null,null,null,null,null,null,null,null,null,null,null,null,null,null,null,null,null,null,null,null,null,null,null,"便意",null,null,"□",{"$f":"マスタ変更!$M$20","v":"ある"},null,null,"□",{"$f":"マスタ変更!$Q$20","v":"曖昧"},null,null,"□",{"$f":"マスタ変更!$U$20","v":"なし"},null,null,"□","人工肛門",null,null,"□","失禁後の掃除\n着替え介助",null,null,null,null,null,null,null,null,"便意",null,null,{"$f":"$J$65","v":"□"},{"$f":"マスタ変更!$M$20","v":"ある"},null,null,{"$f":"$N$65","v":"□"},{"$f":"マスタ変更!$Q$20","v":"曖昧"},null,null,{"$f":"$R$65","v":"□"},{"$f":"マスタ変更!$U$20","v":"なし"},null,null,{"$f":"$V$65","v":"□"},"人工肛門",null,null,{"$f":"$Z$65","v":"□"},"失禁後の掃除\n着替え介助"]
[null,null,null,null,null,null,"排泄（日中）",null,null,{"$f":"IF($E$4=\"\",\"□\",VLOOKUP($E$4,保存記録!$D$5:$IK$506,162))","v":"□"},{"$f":"マスタ変更!M21","v":"自分で行く"},null,null,{"$f":"IF($E$4=\"\",\"□\",VLOOKUP($E$4,保存記録!$D$5:$IK$506,163))","v":"□"},{"$f":"マスタ変更!Q21","v":"自分で行くが\n失敗がある"},null,null,{"$f":"IF($E$4=\"\",\"□\",VLOOKUP($E$4,保存記録!$D$5:$IK$506,164))","v":"□"},{"$f":"マスタ変更!U21","v":"下着をおろす\nお尻を拭く"},null,null,{"$f":"IF($E$4=\"\",\"□\",VLOOKUP($E$4,保存記録!$D$5:$IK$506,165))","v":"□"},{"$f":"マスタ変更!Y21","v":"抱えて移乗\n全介助"},null,null,{"$f":"IF($E$4=\"\",\"□\",VLOOKUP($E$4,保存記録!$D$5:$IK$506,166))","v":"□"},{"$f":"マスタ変更!AC21","v":"ベッドで\nおむつ交換"},null,null,null,null,null,null,null,"排泄（日中）",null,null,"□","自分で行く",null,null,"□","自分で行くが\n失敗がある",null,null,"□","下着を下す\n汚物処理",null,null,"□","抱えて移乗\n全介助",null,null,"□","ベッドで\nおむつ交換",null,null,null,null,null,null,null,null,null,null,null,null,null,null,null,null,null,null,null,null,null,null,null,null,null,null,null,null,null,null,null,"排泄（日中）",null,null,"□",{"$f":"マスタ変更!$M$21","v":"自分で行く"},null,null,"□",{"$f":"マスタ変更!$Q$21","v":"自分で行くが\n失敗がある"},null,null,"□",{"$f":"マスタ変更!$U$21","v":"下着をおろす\nお尻を拭く"},null,null,"□",{"$f":"マスタ変更!$Y$21","v":"抱えて移乗\n全介助"},null,null,"□",{"$f":"マスタ変更!$AC$21","v":"ベッドで\nおむつ交換"},null,null,null,null,null,null,null,null,"排泄（日中）",null,null,{"$f":"$J$66","v":"□"},{"$f":"マスタ変更!$M$21","v":"自分で行く"},null,null,{"$f":"$N$66","v":"□"},{"$f":"マスタ変更!$Q$21","v":"自分で行くが\n失敗がある"},null,null,{"$f":"$R$66","v":"□"},{"$f":"マスタ変更!$U$21","v":"下着をおろす\nお尻を拭く"},null,null,{"$f":"$V$66","v":"□"},{"$f":"マスタ変更!$Y$21","v":"抱えて移乗\n全介助"},null,null,{"$f":"$Z$66","v":"□"},{"$f":"マスタ変更!$AC$21","v":"ベッドで\nおむつ交換"}]
[null,null,null,null,null,null,"排泄（夜間）",null,null,{"$f":"IF($E$4=\"\",\"□\",VLOOKUP($E$4,保存記録!$D$5:$IK$506,167))","v":"□"},{"$f":"マスタ変更!M22","v":"自分で行く"},null,null,{"$f":"IF($E$4=\"\",\"□\",VLOOKUP($E$4,保存記録!$D$5:$IK$506,168))","v":"□"},{"$f":"マスタ変更!Q22","v":"自分で行くが\n失敗がある"},null,null,{"$f":"IF($E$4=\"\",\"□\",VLOOKUP($E$4,保存記録!$D$5:$IK$506,169))","v":"□"},{"$f":"マスタ変更!U22","v":"下着をおろす\nお尻を拭く"},null,null,{"$f":"IF($E$4=\"\",\"□\",VLOOKUP($E$4,保存記録!$D$5:$IK$506,170))","v":"□"},{"$f":"マスタ変更!Y22","v":"抱えて移乗\n全介助"},null,null,{"$f":"IF($E$4=\"\",\"□\",VLOOKUP($E$4,保存記録!$D$5:$IK$506,171))","v":"□"},{"$f":"マスタ変更!AC22","v":"ベッドで\nおむつ交換"},null,null,null,null,null,null,null,"排泄（夜間）",null,null,"□","自分で行く",null,null,"□","自分で行くが\n失敗がある",null,null,"□","下着を下す\n汚物処理",null,null,"□","抱えて移乗\n全介助",null,null,"□","ベッドで\nおむつ交換",null,null,null,null,null,null,null,null,null,null,null,null,null,null,null,null,null,null,null,null,null,null,null,null,null,null,null,null,null,null,null,"排泄（夜間）",null,null,"□",{"$f":"マスタ変更!$M$22","v":"自分で行く"},null,null,"□",{"$f":"マスタ変更!$Q$22","v":"自分で行くが\n失敗がある"},null,null,"□",{"$f":"マスタ変更!$U$22","v":"下着をおろす\nお尻を拭く"},null,null,"□",{"$f":"マスタ変更!$Y$22","v":"抱えて移乗\n全介助"},null,null,"□",{"$f":"マスタ変更!$AC$22","v":"ベッドで\nおむつ交換"},null,null,null,null,null,null,null,null,"排泄（夜間）",null,null,{"$f":"$J$67","v":"□"},{"$f":"マスタ変更!$M$22","v":"自分で行く"},null,null,{"$f":"$N$67","v":"□"},{"$f":"マスタ変更!$Q$22","v":"自分で行くが\n失敗がある"},null,null,{"$f":"$R$67","v":"□"},{"$f":"マスタ変更!$U$22","v":"下着をおろす\nお尻を拭く"},null,null,{"$f":"$V$67","v":"□"},{"$f":"マスタ変更!$Y$22","v":"抱えて移乗\n全介助"},null,null,{"$f":"$Z$67","v":"□"},{"$f":"マスタ変更!$AC$22","v":"ベッドで\nおむつ交換"}]
[null,null,null,null,null,null,"食事摂取",null,null,{"$f":"IF($E$4=\"\",\"□\",VLOOKUP($E$4,保存記録!$D$5:$IK$506,172))","v":"□"},{"$f":"マスタ変更!M23","v":"自力摂取"},null,null,{"$f":"IF($E$4=\"\",\"□\",VLOOKUP($E$4,保存記録!$D$5:$IK$506,173))","v":"□"},{"$f":"マスタ変更!Q23","v":"一部介助"},null,null,{"$f":"IF($E$4=\"\",\"□\",VLOOKUP($E$4,保存記録!$D$5:$IK$506,174))","v":"□"},{"$f":"マスタ変更!U23","v":"半分以上介助"},null,null,{"$f":"IF($E$4=\"\",\"□\",VLOOKUP($E$4,保存記録!$D$5:$IK$506,175))","v":"□"},{"$f":"マスタ変更!Y23","v":"全介助・経管"},null,null,{"$f":"IF($E$4=\"\",\"□\",VLOOKUP($E$4,保存記録!$D$5:$IK$506,176))","v":"□"},{"$f":"マスタ変更!AC23","v":"１回３０分以上\n直接介助"},null,null,null,null,null,null,null,"食事摂取",null,null,"□","自力摂取",null,null,"□","一部介助",null,null,"□","半分以上介助",null,null,"□","全介助・経管",null,null,"□","１回３０分以上\n直接介助",null,null,null,null,null,null,null,null,null,null,null,null,null,null,null,null,null,null,null,null,null,null,null,null,null,null,null,null,null,null,null,"食事摂取",null,null,"□",{"$f":"マスタ変更!$M$23","v":"自力摂取"},null,null,"□",{"$f":"マスタ変更!$Q$23","v":"一部介助"},null,null,"□",{"$f":"マスタ変更!$U$23","v":"半分以上介助"},null,null,"□",{"$f":"マスタ変更!$Y$23","v":"全介助・経管"},null,null,"□",{"$f":"マスタ変更!$AC$23","v":"１回３０分以上\n直接介助"},null,null,null,null,null,null,null,null,"食事摂取",null,null,{"$f":"$J$68","v":"□"},{"$f":"マスタ変更!$M$23","v":"自力摂取"},null,null,{"$f":"$N$68","v":"□"},{"$f":"マスタ変更!$Q$23","v":"一部介助"},null,null,{"$f":"$R$68","v":"□"},{"$f":"マスタ変更!$U$23","v":"半分以上介助"},null,null,{"$f":"$V$68","v":"□"},{"$f":"マスタ変更!$Y$23","v":"全介助・経管"},null,null,{"$f":"$Z$68","v":"□"},{"$f":"マスタ変更!$AC$23","v":"１回３０分以上\n直接介助"}]
[null,null,null,null,null,null,"日中の\n過ごし方",null,null,{"$f":"IF($E$4=\"\",\"□\",VLOOKUP($E$4,保存記録!$D$5:$IK$506,177))","v":"□"},{"$f":"マスタ変更!M24","v":"近所なら\n行動できる"},null,null,{"$f":"IF($E$4=\"\",\"□\",VLOOKUP($E$4,保存記録!$D$5:$IK$506,178))","v":"□"},{"$f":"マスタ変更!Q24","v":"家の中なら\n行動できる"},null,null,{"$f":"IF($E$4=\"\",\"□\",VLOOKUP($E$4,保存記録!$D$5:$IK$506,179))","v":"□"},{"$f":"マスタ変更!U24","v":"起きて生活できる\n行動の補助必要"},null,null,{"$f":"IF($E$4=\"\",\"□\",VLOOKUP($E$4,保存記録!$D$5:$IK$506,180))","v":"□"},{"$f":"マスタ変更!Y24","v":"寝たり起きたり\n介助生活"},null,null,{"$f":"IF($E$4=\"\",\"□\",VLOOKUP($E$4,保存記録!$D$5:$IK$506,181))","v":"□"},{"$f":"マスタ変更!AC24","v":"寝室中心\nほぼ全て介助"},null,null,null,null,null,null,null,"日中の\n過ごし方",null,null,"□","近所なら\n行動できる",null,null,"□","家の中なら\n行動できる",null,null,"□","起きて生活\n行動の補助必要",null,null,"□","寝たり起きたり\n屋外は介助",null,null,"□","寝室中心\nの生活",null,null,null,null,null,null,null,null,null,null,null,null,null,null,null,null,null,null,null,null,null,null,null,null,null,null,null,null,null,null,null,"日中の\n過ごし方",null,null,"□",{"$f":"マスタ変更!$M$24","v":"近所なら\n行動できる"},null,null,"□",{"$f":"マスタ変更!$Q$24","v":"家の中なら\n行動できる"},null,null,"□",{"$f":"マスタ変更!$U$24","v":"起きて生活できる\n行動の補助必要"},null,null,"□",{"$f":"マスタ変更!$Y$24","v":"寝たり起きたり\n介助生活"},null,null,"□",{"$f":"マスタ変更!$AC$24","v":"寝室中心\nほぼ全て介助"},null,null,null,null,null,null,null,null,"日中の\n過ごし方",null,null,{"$f":"$J$69","v":"□"},{"$f":"マスタ変更!$M$24","v":"近所なら\n行動できる"},null,null,{"$f":"$N$69","v":"□"},{"$f":"マスタ変更!$Q$24","v":"家の中なら\n行動できる"},null,null,{"$f":"$R$69","v":"□"},{"$f":"マスタ変更!$U$24","v":"起きて生活できる\n行動の補助必要"},null,null,{"$f":"$V$69","v":"□"},{"$f":"マスタ変更!$Y$24","v":"寝たり起きたり\n介助生活"},null,null,{"$f":"$Z$69","v":"□"},{"$f":"マスタ変更!$AC$24","v":"寝室中心\nほぼ全て介助"}]
[null,null,null,null,"認知症ＢＰＳＤ",{"$f":"マスタ変更!H25","v":"幻覚\n幻聴"},null,null,{"$f":"IF($E$4=\"\",\"□\",VLOOKUP($E$4,保存記録!$D$5:$IK$506,182))","v":"□"},"ときどき",null,{"$f":"IF($E$4=\"\",\"□\",VLOOKUP($E$4,保存記録!$D$5:$IK$506,183))","v":"□"},"よくある",null,{"$f":"IF($E$4=\"\",\"□\",VLOOKUP($E$4,保存記録!$D$5:$IK$506,184))","v":"□"},"耐え難い",null,{"$f":"マスタ変更!T25","v":"異食・収集等"},null,null,{"$f":"IF($E$4=\"\",\"□\",VLOOKUP($E$4,保存記録!$D$5:$IK$506,185))","v":"□"},"ときどき",null,{"$f":"IF($E$4=\"\",\"□\",VLOOKUP($E$4,保存記録!$D$5:$IK$506,186))","v":"□"},"よくある",null,{"$f":"IF($E$4=\"\",\"□\",VLOOKUP($E$4,保存記録!$D$5:$IK$506,187))","v":"□"},"耐え難い",null,null,null,null,"認知症ＢＰＳＤ","幻覚\n幻聴",null,null,"□","ときどき",null,"□","よくある",null,"□","耐え難い",null,"異食・収集等",null,null,"□","ときどき",null,"□","よくある",null,"□","耐え難い",null,null,null,null,null,null,null,null,null,null,null,null,null,null,null,null,null,null,null,null,null,null,null,null,null,null,null,null,"認知症ＢＰＳＤ",{"$f":"マスタ変更!$H$25","v":"幻覚\n幻聴"},null,null,"□","ときどき",null,"□","よくある",null,"□","耐え難い",null,{"$f":"マスタ変更!$T$25","v":"異食・収集等"},null,null,"□","ときどき",null,"□","よくある",null,"□","耐え難い",null,null,null,null,null,"認知症ＢＰＳＤ",{"$f":"マスタ変更!$H$25","v":"幻覚\n幻聴"},null,null,{"$f":"$I$70","v":"□"},"ときどき",null,{"$f":"$L$70","v":"□"},"よくある",null,{"$f":"$O$70","v":"□"},"耐え難い",null,{"$f":"マスタ変更!$T$25","v":"異食・収集等"},null,null,{"$f":"$U$70","v":"□"},"ときどき",null,{"$f":"$X$70","v":"□"},"よくある",null,{"$f":"$AA$70","v":"□"},"耐え難い"]
[null,null,null,null,null,{"$f":"マスタ変更!H26","v":"物盗られ妄想\n被害妄想"},null,null,{"$f":"IF($E$4=\"\",\"□\",VLOOKUP($E$4,保存記録!$D$5:$IK$506,188))","v":"□"},"ときどき",null,{"$f":"IF($E$4=\"\",\"□\",VLOOKUP($E$4,保存記録!$D$5:$IK$506,189))","v":"□"},"よくある",null,{"$f":"IF($E$4=\"\",\"□\",VLOOKUP($E$4,保存記録!$D$5:$IK$506,190))","v":"□"},"耐え難い",null,{"$f":"マスタ変更!T26","v":"精神科症状\nうつなど"},null,null,{"$f":"IF($E$4=\"\",\"□\",VLOOKUP($E$4,保存記録!$D$5:$IK$506,191))","v":"□"},"ときどき",null,{"$f":"IF($E$4=\"\",\"□\",VLOOKUP($E$4,保存記録!$D$5:$IK$506,192))","v":"□"},"よくある",null,{"$f":"IF($E$4=\"\",\"□\",VLOOKUP($E$4,保存記録!$D$5:$IK$506,193))","v":"□"},"耐え難い",null,null,null,null,null,"物盗られ妄想\n被害妄想",null,null,"□","ときどき",null,"□","よくある",null,"□","耐え難い",null,"精神科症状\nうつなど",null,null,"□","ときどき",null,"□","よくある",null,"□","耐え難い",null,null,null,null,null,null,null,null,null,null,null,null,null,null,null,null,null,null,null,null,null,null,null,null,null,null,null,null,null,{"$f":"マスタ変更!$H$26","v":"物盗られ妄想\n被害妄想"},null,null,"□","ときどき",null,"□","よくある",null,"□","耐え難い",null,{"$f":"マスタ変更!$T$26","v":"精神科症状\nうつなど"},null,null,"□","ときどき",null,"□","よくある",null,"□","耐え難い",null,null,null,null,null,null,{"$f":"マスタ変更!$H$26","v":"物盗られ妄想\n被害妄想"},null,null,{"$f":"$I$71","v":"□"},"ときどき",null,{"$f":"$L$71","v":"□"},"よくある",null,{"$f":"$O$71","v":"□"},"耐え難い",null,{"$f":"マスタ変更!$T$26","v":"精神科症状\nうつなど"},null,null,{"$f":"$U$71","v":"□"},"ときどき",null,{"$f":"$X$71","v":"□"},"よくある",null,{"$f":"$AA$71","v":"□"},"耐え難い"]
[null,null,null,null,null,{"$f":"マスタ変更!H27","v":"不眠行動\n昼夜逆転"},null,null,{"$f":"IF($E$4=\"\",\"□\",VLOOKUP($E$4,保存記録!$D$5:$IK$506,194))","v":"□"},"ときどき",null,{"$f":"IF($E$4=\"\",\"□\",VLOOKUP($E$4,保存記録!$D$5:$IK$506,195))","v":"□"},"よくある",null,{"$f":"IF($E$4=\"\",\"□\",VLOOKUP($E$4,保存記録!$D$5:$IK$506,196))","v":"□"},"耐え難い",null,{"$f":"マスタ変更!T27","v":"同じ話や\n行動繰り返し"},null,null,{"$f":"IF($E$4=\"\",\"□\",VLOOKUP($E$4,保存記録!$D$5:$IK$506,197))","v":"□"},"ときどき",null,{"$f":"IF($E$4=\"\",\"□\",VLOOKUP($E$4,保存記録!$D$5:$IK$506,198))","v":"□"},"よくある",null,{"$f":"IF($E$4=\"\",\"□\",VLOOKUP($E$4,保存記録!$D$5:$IK$506,199))","v":"□"},"耐え難い",null,null,null,null,null,"不眠行動\n昼夜逆転",null,null,"□","ときどき",null,"□","よくある",null,"□","耐え難い",null,"同じ話や\n行動繰り返し",null,null,"□","ときどき",null,"□","よくある",null,"□","耐え難い",null,null,null,null,null,null,null,null,null,null,null,null,null,null,null,null,null,null,null,null,null,null,null,null,null,null,null,null,null,{"$f":"マスタ変更!$H$27","v":"不眠行動\n昼夜逆転"},null,null,"□","ときどき",null,"□","よくある",null,"□","耐え難い",null,{"$f":"マスタ変更!$T$27","v":"同じ話や\n行動繰り返し"},null,null,"□","ときどき",null,"□","よくある",null,"□","耐え難い",null,null,null,null,null,null,{"$f":"マスタ変更!$H$27","v":"不眠行動\n昼夜逆転"},null,null,{"$f":"$I$72","v":"□"},"ときどき",null,{"$f":"$L$72","v":"□"},"よくある",null,{"$f":"$O$72","v":"□"},"耐え難い",null,{"$f":"マスタ変更!$T$27","v":"同じ話や\n行動繰り返し"},null,null,{"$f":"$U$72","v":"□"},"ときどき",null,{"$f":"$X$72","v":"□"},"よくある",null,{"$f":"$AA$72","v":"□"},"耐え難い"]
[null,null,null,null,null,{"$f":"マスタ変更!H28","v":"徘徊行動"},null,null,{"$f":"IF($E$4=\"\",\"□\",VLOOKUP($E$4,保存記録!$D$5:$IK$506,200))","v":"□"},"ときどき",null,{"$f":"IF($E$4=\"\",\"□\",VLOOKUP($E$4,保存記録!$D$5:$IK$506,201))","v":"□"},"よくある",null,{"$f":"IF($E$4=\"\",\"□\",VLOOKUP($E$4,保存記録!$D$5:$IK$506,202))","v":"□"},"耐え難い",null,{"$f":"マスタ変更!T28","v":"不潔行為\n弄便・放尿"},null,null,{"$f":"IF($E$4=\"\",\"□\",VLOOKUP($E$4,保存記録!$D$5:$IK$506,203))","v":"□"},"ときどき",null,{"$f":"IF($E$4=\"\",\"□\",VLOOKUP($E$4,保存記録!$D$5:$IK$506,204))","v":"□"},"よくある",null,{"$f":"IF($E$4=\"\",\"□\",VLOOKUP($E$4,保存記録!$D$5:$IK$506,205))","v":"□"},"耐え難い",null,null,null,null,null,"徘徊行動",null,null,"□","ときどき",null,"□","よくある",null,"□","耐え難い",null,"不潔行為\n弄便・放尿",null,null,"□","ときどき",null,"□","よくある",null,"□","耐え難い",null,null,null,null,null,null,null,null,null,null,null,null,null,null,null,null,null,null,null,null,null,null,null,null,null,null,null,null,null,{"$f":"マスタ変更!$H$28","v":"徘徊行動"},null,null,"□","ときどき",null,"□","よくある",null,"□","耐え難い",null,{"$f":"マスタ変更!$T$28","v":"不潔行為\n弄便・放尿"},null,null,"□","ときどき",null,"□","よくある",null,"□","耐え難い",null,null,null,null,null,null,{"$f":"マスタ変更!$H$28","v":"徘徊行動"},null,null,{"$f":"$I$73","v":"□"},"ときどき",null,{"$f":"$L$73","v":"□"},"よくある",null,{"$f":"$O$73","v":"□"},"耐え難い",null,{"$f":"マスタ変更!$T$28","v":"不潔行為\n弄便・放尿"},null,null,{"$f":"$U$73","v":"□"},"ときどき",null,{"$f":"$X$73","v":"□"},"よくある",null,{"$f":"$AA$73","v":"□"},"耐え難い"]
[null,null,null,null,null,{"$f":"マスタ変更!H29","v":"激しい抵抗\n暴言・暴行"},null,null,{"$f":"IF($E$4=\"\",\"□\",VLOOKUP($E$4,保存記録!$D$5:$IK$506,206))","v":"□"},"ときどき",null,{"$f":"IF($E$4=\"\",\"□\",VLOOKUP($E$4,保存記録!$D$5:$IK$506,207))","v":"□"},"よくある",null,{"$f":"IF($E$4=\"\",\"□\",VLOOKUP($E$4,保存記録!$D$5:$IK$506,208))","v":"□"},"耐え難い",null,{"$f":"マスタ変更!T29","v":"奇声\n不快な音"},null,null,{"$f":"IF($E$4=\"\",\"□\",VLOOKUP($E$4,保存記録!$D$5:$IK$506,209))","v":"□"},"ときどき",null,{"$f":"IF($E$4=\"\",\"□\",VLOOKUP($E$4,保存記録!$D$5:$IK$506,210))","v":"□"},"よくある",null,{"$f":"IF($E$4=\"\",\"□\",VLOOKUP($E$4,保存記録!$D$5:$IK$506,211))","v":"□"},"耐え難い",null,null,null,null,null,"激しい抵抗\n暴言・暴行",null,null,"□","ときどき",null,"□","よくある",null,"□","耐え難い",null,"奇声\n不快な音",null,null,"□","ときどき",null,"□","よくある",null,"□","耐え難い",null,null,null,null,null,null,null,null,null,null,null,null,null,null,null,null,null,null,null,null,null,null,null,null,null,null,null,null,null,{"$f":"マスタ変更!$H$29","v":"激しい抵抗\n暴言・暴行"},null,null,"□","ときどき",null,"□","よくある",null,"□","耐え難い",null,{"$f":"マスタ変更!$T$29","v":"奇声\n不快な音"},null,null,"□","ときどき",null,"□","よくある",null,"□","耐え難い",null,null,null,null,null,null,{"$f":"マスタ変更!$H$29","v":"激しい抵抗\n暴言・暴行"},null,null,{"$f":"$I$74","v":"□"},"ときどき",null,{"$f":"$L$74","v":"□"},"よくある",null,{"$f":"$O$74","v":"□"},"耐え難い",null,{"$f":"マスタ変更!$T$29","v":"奇声\n不快な音"},null,null,{"$f":"$U$74","v":"□"},"ときどき",null,{"$f":"$X$74","v":"□"},"よくある",null,{"$f":"$AA$74","v":"□"},"耐え難い"]
[null,null,null,null,null,"その他",null,null,{"$f":"IF($E$4=\"\",\"\",VLOOKUP($E$4,保存記録!$D$5:$IK$506,212))","v":""},null,null,null,null,null,null,null,null,null,null,null,null,null,null,null,null,null,null,null,null,null,null,null,null,"その他",null,null,null,null,null,null,null,null,null,null,null,null,null,null,null,null,null,null,null,null,null,null,null,null,null,null,null,null,null,null,null,null,null,null,null,null,null,null,null,null,null,null,null,null,null,null,null,null,null,null,null,"その他",null,null,null,null,null,null,null,null,null,null,null,null,null,null,null,null,null,null,null,null,null,null,null,null,null,null,null,null,"その他",null,null,{"$f":"IF($I$75=0,\"\",$I$75)","v":""},{"$f":"J75","v":0},0,0,0,0,0,0,0,0,0,0,0,0,0,0,0,0,0,0,0]
[null,null,null,null,"聴力",null,{"$f":"IF($E$4=\"\",\"□\",VLOOKUP($E$4,保存記録!$D$5:$IK$506,213))","v":"□"},"問題なし",null,{"$f":"IF($E$4=\"\",\"□\",VLOOKUP($E$4,保存記録!$D$5:$IK$506,214))","v":"□"},"遠い",null,{"$f":"IF($E$4=\"\",\"□\",VLOOKUP($E$4,保存記録!$D$5:$IK$506,215))","v":"□"},"ひどく遠い",null,{"$f":"IF($E$4=\"\",\"□\",VLOOKUP($E$4,保存記録!$D$5:$IK$506,216))","v":"□"},"聴力なし\n確認不能",null,"視力",null,{"$f":"IF($E$4=\"\",\"□\",VLOOKUP($E$4,保存記録!$D$5:$IK$506,217))","v":"□"},"年齢相応",null,{"$f":"IF($E$4=\"\",\"□\",VLOOKUP($E$4,保存記録!$D$5:$IK$506,218))","v":"□"},"かなり悪い\n半盲",null,{"$f":"IF($E$4=\"\",\"□\",VLOOKUP($E$4,保存記録!$D$5:$IK$506,219))","v":"□"},"失明",null,null,null,null,"聴力",null,"□","問題なし",null,"□","遠い",null,"□","ひどく遠い",null,"□","聴力なし\n確認不能",null,"視力",null,"□","年齢相応",null,"□","かなり悪い\n半盲",null,"□","失明",null,null,null,null,null,null,null,null,null,null,null,null,null,null,null,null,null,null,null,null,null,null,null,null,null,null,null,null,"聴力",null,"□","問題なし",null,"□","遠い",null,"□","ひどく遠い",null,"□","聴力なし\n確認不能",null,"視力",null,"□","年齢相応",null,"□","かなり悪い\n半盲",null,"□","失明",null,null,null,null,null,"聴力",null,{"$f":"$G$76","v":"□"},"問題なし",null,{"$f":"$J$76","v":"□"},"遠い",null,{"$f":"$M$76","v":"□"},"ひどく遠い",null,{"$f":"$P$76","v":"□"},"聴力なし\n確認不能",null,"視力",null,{"$f":"$U$76","v":"□"},"年齢相応",null,{"$f":"$X$76","v":"□"},"かなり悪い\n半盲",null,{"$f":"$AA$76","v":"□"},"失明"]
[null,null,null,null,"意思疎通",null,{"$f":"IF($E$4=\"\",\"□\",VLOOKUP($E$4,保存記録!$D$5:$IK$506,220))","v":"□"},"問題なし",null,{"$f":"IF($E$4=\"\",\"□\",VLOOKUP($E$4,保存記録!$D$5:$IK$506,221))","v":"□"},"なんとか\n通じる",null,{"$f":"IF($E$4=\"\",\"□\",VLOOKUP($E$4,保存記録!$D$5:$IK$506,222))","v":"□"},"かなり\n厳しい",null,{"$f":"IF($E$4=\"\",\"□\",VLOOKUP($E$4,保存記録!$D$5:$IK$506,223))","v":"□"},"ほぼ不可能",null,{"$f":"IF($E$4=\"\",\"□\",VLOOKUP($E$4,保存記録!$D$5:$IK$506,224))","v":"□"},"錯乱状態",null,"身長",null,{"$f":"IF($E$4=\"\",0,VLOOKUP($E$4,保存記録!$D$5:$IK$506,225))","v":0},"㎝","体重",null,{"$f":"IF($E$4=\"\",0,VLOOKUP($E$4,保存記録!$D$5:$IK$506,226))","v":0},"Kg",null,null,null,"意思疎通",null,"□","問題なし",null,"□","なんとか\n通じる",null,"□","かなり\n厳しい",null,"□","ほぼ不可能",null,"□","錯乱状態",null,"身長",null,0,"㎝","体重",null,0,"Kg",null,null,null,null,null,null,null,null,null,null,null,null,null,null,null,null,null,null,null,null,null,null,null,null,null,null,null,"意思疎通",null,"□","問題なし",null,"□","なんとか\n通じる",null,"□","かなり\n厳しい",null,"□","ほぼ不可能",null,"□","錯乱状態",null,"身長",null,0,"㎝","体重",null,0,"Kg",null,null,null,null,"意思疎通",null,{"$f":"$G$77","v":"□"},"問題なし",null,{"$f":"$J$77","v":"□"},"なんとか\n通じる",null,{"$f":"$M$77","v":"□"},"かなり\n厳しい",null,{"$f":"$P$77","v":"□"},"ほぼ不可能",null,{"$f":"$S$77","v":"□"},"錯乱状態",null,"身長",null,{"$f":"$X$77","v":0},"㎝","体重",null,{"$f":"$AB$77","v":0},"Kg"]
[null,null,null,null,"経済状況",null,null,"本人月収",null,null,null,"1ヶ月に本人と親族が\n支出できる限界金額",null,null,null,"特別な\n事情",null,{"$f":"IF($E$4=\"\",\"\",VLOOKUP($E$4,保存記録!$D$5:$IK$506,229))","v":""},null,null,null,null,null,null,null,null,null,null,null,null,null,null,"経済状況",null,null,"本人月収",null,null,null,"1ヶ月に本人と親族が\n支出できる限界金額",null,null,null,"特別な\n事情",null,null,null,null,null,null,null,null,null,null,null,null,null,null,null,null,null,null,null,null,null,null,null,null,null,null,null,null,null,null,null,null,null,null,null,null,null,null,null,null,"経済状況",null,null,"本人月収",null,null,null,"1ヶ月に本人と親族が\n支出できる限界金額",null,null,null,"特別な\n事情",null,null,null,null,null,null,null,null,null,null,null,null,null,null,null,null,null,"経済状況",null,null,"本人月収",null,null,null,"1ヶ月に本人と親族が\n支出できる限界金額",null,null,null,"特別な\n事情",null,{"$f":"IF($R$78=0,\"\",$R$78)","v":""},{"$f":"S78","v":0},{"$f":"T78","v":0},{"$f":"U78","v":0},{"$f":"V78","v":0},{"$f":"W78","v":0},{"$f":"X78","v":0},{"$f":"Y78","v":0},{"$f":"Z78","v":0},{"$f":"AA78","v":0},{"$f":"AB78","v":0},{"$f":"AC78","v":0}]
[null,null,null,null,null,null,null,{"$f":"IF($E$4=\"\",0,VLOOKUP($E$4,保存記録!$D$5:$IK$506,227))","v":0},null,null,"円",{"$f":"IF($E$4=\"\",0,VLOOKUP($E$4,保存記録!$D$5:$IK$506,228))","v":0},null,null,"円",null,null,null,null,null,null,null,null,null,null,null,null,null,null,null,null,null,null,null,null,0,null,null,"円",0,null,null,"円",null,null,null,null,null,null,null,null,null,null,null,null,null,null,null,null,null,null,null,null,null,null,null,null,null,null,null,null,null,null,null,null,null,null,null,null,null,null,null,null,null,null,null,null,0,null,null,"円",0,null,null,"円",null,null,null,null,null,null,null,null,null,null,null,null,null,null,null,null,null,null,null,null,null,{"$f":"$H$79","v":0},{"$f":"I79","v":0},0,"円",{"$f":"$L$79","v":0},{"$f":"M79","v":0},0,"円",null,null,{"$f":"R79","v":0},0,0,0,0,0,0,0,0,0,0,0]
[null,null,null,null,"MEMO",{"$f":"IF($E$4=\"\",\"\",VLOOKUP($E$4,保存記録!$D$5:$IK$506,230))","v":""},null,null,null,null,null,null,null,null,null,null,null,{"$f":"IF($E$4=\"\",\"\",VLOOKUP($E$4,保存記録!$D$5:$IK$506,231))","v":""},null,null,null,null,null,null,null,null,null,null,null,null,null,null,"MEMO",null,null,null,null,null,null,null,null,null,null,null,null,null,null,null,null,null,null,null,null,null,null,null,null,null,null,null,null,null,null,null,null,null,null,null,null,null,null,null,null,null,null,null,null,null,null,null,null,null,null,null,"MEMO",null,null,null,null,null,null,null,null,null,null,null,null,null,null,null,null,null,null,null,null,null,null,null,null,null,null,null,null,"MEMO",{"$f":"IF($F$80=0,\"\",$F$80)","v":""},{"$f":"G80","v":0},0,0,0,{"$f":"K80","v":0},0,0,0,{"$f":"O80","v":0},0,0,{"$f":"IF($R$80=0,\"\",$R$80)","v":""},0,0,0,0,0,0,0,0,0,0,0]
[null,null,null,null,null,{"$f":"IF($E$4=\"\",\"\",VLOOKUP($E$4,保存記録!$D$5:$IK$506,232))","v":""},null,null,null,null,null,null,null,null,null,null,null,{"$f":"IF($E$4=\"\",\"\",VLOOKUP($E$4,保存記録!$D$5:$IK$506,233))","v":""},null,null,null,null,null,null,null,null,null,null,null,null,null,null,null,null,null,null,null,null,null,null,null,null,null,null,null,null,null,null,null,null,null,null,null,null,null,null,null,null,null,null,null,null,null,null,null,null,null,null,null,null,null,null,null,null,null,null,null,null,null,null,null,null,null,null,null,null,null,null,null,null,null,null,null,null,null,null,null,null,null,null,null,null,null,null,null,null,null,null,null,null,null,null,null,null,{"$f":"IF($F$81=0,\"\",$R$80)","v":""},0,0,0,0,0,0,0,0,0,0,0,{"$f":"IF($R$81=0,\"\",$R$81)","v":""},{"$f":"S81","v":0},0,0,0,0,0,0,0,0,0,0]
[null,null,null,null,null,{"$f":"IF($E$4=\"\",\"\",VLOOKUP($E$4,保存記録!$D$5:$IK$506,234))","v":""},null,null,null,null,null,null,null,null,null,null,null,{"$f":"IF($E$4=\"\",\"\",VLOOKUP($E$4,保存記録!$D$5:$IK$506,235))","v":""},null,null,null,null,null,null,null,null,null,null,null,null,null,null,null,null,null,null,null,null,null,null,null,null,null,null,null,null,null,null,null,null,null,null,null,null,null,null,null,null,null,null,null,null,null,null,null,null,null,null,null,null,null,null,null,null,null,null,null,null,null,null,null,null,null,null,null,null,null,null,null,null,null,null,null,null,null,null,null,null,null,null,null,null,null,null,null,null,null,null,null,null,null,null,null,null,{"$f":"IF($F$82=0,\"\",$F$82)","v":""},0,0,0,0,0,0,0,0,0,0,0,{"$f":"IF($R$82=0,\"\",$R$82)","v":""},{"$f":"S82","v":0},0,0,0,0,0,0,0,0,0,0]
[null,null,null,null,null,{"$f":"IF($E$4=\"\",\"\",VLOOKUP($E$4,保存記録!$D$5:$IK$506,236))","v":""},null,null,null,null,null,null,null,null,null,null,null,{"$f":"IF($E$4=\"\",\"\",VLOOKUP($E$4,保存記録!$D$5:$IK$506,237))","v":""},null,null,null,null,null,null,null,null,null,null,null,null,null,null,null,null,null,null,null,null,null,null,null,null,null,null,null,null,null,null,null,null,null,null,null,null,null,null,null,null,null,null,null,null,null,null,null,null,null,null,null,null,null,null,null,null,null,null,null,null,null,null,null,null,null,null,null,null,null,null,null,null,null,null,null,null,null,null,null,null,null,null,null,null,null,null,null,null,null,null,null,null,null,null,null,null,{"$f":"IF($F$83=0,\"\",$F$83)","v":""},0,0,0,0,0,0,0,0,0,0,0,{"$f":"IF($R$83=0,\"\",$R$83)","v":""},{"$f":"S83","v":0},0,0,0,0,0,0,0,0,0,0]
[null,null,null,null,null,{"$f":"IF($E$4=\"\",\"\",VLOOKUP($E$4,保存記録!$D$5:$IK$506,238))","v":""},null,null,null,null,null,null,null,null,null,null,null,{"$f":"IF($E$4=\"\",\"\",VLOOKUP($E$4,保存記録!$D$5:$IK$506,239))","v":""},null,null,null,null,null,null,null,null,null,null,null,null,null,null,null,null,null,null,null,null,null,null,null,null,null,null,null,null,null,null,null,null,null,null,null,null,null,null,null,null,null,null,null,null,null,null,null,null,null,null,null,null,null,null,null,null,null,null,null,null,null,null,null,null,null,null,null,null,null,null,null,null,null,null,null,null,null,null,null,null,null,null,null,null,null,null,null,null,null,null,null,null,null,null,null,null,{"$f":"IF($F$84=0,\"\",$F$84)","v":""},0,0,0,0,0,0,0,0,0,0,0,{"$f":"IF($R$84=0,\"\",$R$84)","v":""},{"$f":"S84","v":0},0,0,0,0,0,0,0,0,0,0]
[]
[null,null,null,null,null,"評価点",null,{"$f":"IF($E$4=\"\",\"\",VLOOKUP($E$4,保存記録!$D$5:$IK$506,2))","v":""},null,null,"待機順位を決めるための評価点です。",null,null,null,null,null,null,null,null,null,null,null,null,null,null,null,null,null,null,null,null,null,"評価表　（この表は施設職員のみが使用します。）"]
[null,null,null,null,null,"評価順位",null,{"$f":"IF(H86=\"\",\"\",RANK(H86,保存記録!E6:E506))","v":""},null,null,"評価点による理論上の待機順位です。",null,null,null,null,null,null,null,null,null,null,null,null,null,null,null,null,null,null,null,null,null,null,"評価項目"]
[null,null,null,null,null,"申込順位",null,{"$f":"IF(G7=\"\",\"\",RANK(G7,保存記録!F6:F506,1))","v":""},null,null,"申し込み時期の早さを示します。",null,null,null,null,null,null,null,null,null,null,null,null,null,null,null,null,null,null,null,null,null,1,"要介護度評価",null,null,null,null,{"$f":"CI90","v":0},"（最高14点）",null,null,"補正目安範囲",null,null,{"$f":"IF(AK11=\"\",0,14+20-AM88-AM90-AM100)","v":0},null,null,null,null,null,null,null,null,null,null,null,null,null,null,null,null,null,null,null,"要支援１","要支援２",1,2,3,4,5,"他"]
[null,null,null,null,null,"困難順位",null,{"$f":"IF(H93=\"\",\"\",RANK(H93,保存記録!IJ6:IJ506,0))","v":""},null,null,"困難指数から見た介護の大変さです。（参考値）",null,null,null,null,null,null,null,null,null,null,null,null,null,null,null,null,null,null,null,null,null,2,"認知症のBPSD等",null,null,null,null,{"$f":"CI99","v":0},"（最高12点）",null,null,null,null,null,null,null,null,null,null,null,null,null,null,null,null,null,null,null,"要介護度",null,null,null,{"$f":"AX12","v":0},null,1,3,4,6,10,12,14,"-",null,{"$f":"IF($BL$89=BN88,BN89,0)","v":0},0,0,0,0,0,0]
[null,null,null,null,null,null,null,null,null,null,null,null,null,null,null,null,null,null,null,null,null,null,null,null,null,null,null,null,null,null,null,null,3,"在宅サービスの利用",null,null,null,null,{"$f":"IF(AK11=\"\",0,CI103)","v":0},"（最高20点）",null,null,null,"補正点数",null,0,null,null,null,"参考）独自評価項目",null,null,null,null,"（最高89点）",null,null,null,null,null,null,null,null,null,null,null,null,null,null,null,null,null,null,null,null,null,null,null,null,null,null,null,null,null,null,null,{"$f":"SUM(BW89:CC89)","v":0},null,null,{"$f":"IF($E$4=\"\",0,VLOOKUP($E$4,保存記録!$D$6:$II$506,240))","v":0}]
[null,null,null,null,null,"データ数",null,{"$f":"BJ4","v":0},null,null,"登録された待機者の数です。（最大500人まで）",null,null,null,null,null,null,null,null,null,null,null,null,null,null,null,null,null,null,null,null,null,4,"主たる介護者の年齢",null,null,null,null,{"$f":"CH107","v":0},"（最高6点）",null,null,null,null,null,null,null,null,null,"参考）医療負担度",null,null,null,{"$f":"CF138","v":0},"（最高4点）",null,null,null,null,null,null,"幻覚\n幻聴",null,null,{"$f":"IF(AK70=\"■\",BO91,0)","v":0},"ときどき",1,{"$f":"IF(AN70=\"■\",BR91,0)","v":0},"よくある",2,{"$f":"IF(AQ70=\"■\",BU91,0)","v":0},"耐え難い",3,"異食・収集等",null,null,{"$f":"IF(AW70=\"■\",CA91,0)","v":0},"ときどき",1,{"$f":"IF(AZ70=\"■\",CD91,0)","v":0},"よくある",2,{"$f":"IF(BC70=\"■\",CG91,0)","v":0},"耐え難い",3]
[null,null,null,null,null,"補正点数",null,{"$f":"IF($E$4=\"\",\"\",VLOOKUP($E$4,保存記録!$D$5:$IK$506,240))","v":""},null,null,"手動入力された補正点。",null,null,null,null,null,null,null,null,null,null,null,null,null,null,null,null,null,null,null,null,null,5,"介護者の介護負担",null,null,null,null,{"$f":"CH111","v":0},"（最高6点）",null,null,null,null,"転記",null,null,null,null,"参考）麻痺・筋力低下",null,null,null,{"$f":"CF142","v":0},"（最高10点）",null,null,null,null,null,null,"物盗られ妄想\n被害妄想",null,null,{"$f":"IF(AK71=\"■\",BO92,0)","v":0},"ときどき",1,{"$f":"IF(AN71=\"■\",BR92,0)","v":0},"よくある",2,{"$f":"IF(AQ71=\"■\",BU92,0)","v":0},"耐え難い",3,"精神科症状\nうつなど",null,null,{"$f":"IF(AW71=\"■\",CA92,0)","v":0},"ときどき",1,{"$f":"IF(AZ71=\"■\",CD92,0)","v":0},"よくある",2,{"$f":"IF(BC71=\"■\",CG92,0)","v":0},"耐え難い",3]
[null,null,null,null,null,"困難指数",null,{"$f":"IF($E$4=\"\",\"\",VLOOKUP($E$4,保存記録!$D$5:$IK$506,241))","v":""},null,null,"自動計算された介護困難度。（最高値89点）",null,null,null,null,null,null,null,null,null,null,null,null,null,null,null,null,null,null,null,null,null,6,"介護者の障害や疾病",null,null,null,null,{"$f":"CH118","v":0},"（最高6点）",null,null,null,null,null,null,null,null,null,"参考）意思疎通と体格",null,null,null,{"$f":"CF147","v":0},"（最高6点）",null,null,null,null,null,null,"不眠行動\n昼夜逆転",null,null,{"$f":"IF(AK72=\"■\",BO93,0)","v":0},"ときどき",1,{"$f":"IF(AN72=\"■\",BR93,0)","v":0},"よくある",2,{"$f":"IF(AQ72=\"■\",BU93,0)","v":0},"耐え難い",3,"同じ話や\n行動繰り返し",null,null,{"$f":"IF(AW72=\"■\",CA93,0)","v":0},"ときどき",1,{"$f":"IF(AZ72=\"■\",CD93,0)","v":0},"よくある",2,{"$f":"IF(BC72=\"■\",CG93,0)","v":0},"耐え難い",3]
[null,null,null,null,null,null,null,null,null,null,null,null,null,null,null,null,null,null,null,null,null,null,null,null,null,null,null,null,null,null,null,null,7,"介護者の就労",null,null,null,null,{"$f":"BQ122","v":0},"（最高6点）",null,null,null,null,null,null,null,null,null,"参考）ADLの問題",null,null,null,{"$f":"CF151","v":0},"（最高24点）",null,null,null,null,null,null,"徘徊行動",null,null,{"$f":"IF(AK73=\"■\",BO94,0)","v":0},"ときどき",{"$f":"1+BX99","v":1},{"$f":"IF(AN73=\"■\",BR94,0)","v":0},"よくある",{"$f":"2+BX99","v":2},{"$f":"IF(AQ73=\"■\",BU94,0)","v":0},"耐え難い",{"$f":"3+BX99","v":3},"不潔行為\n弄便・放尿",null,null,{"$f":"IF(AW73=\"■\",CA94,0)","v":0},"ときどき",1,{"$f":"IF(AZ73=\"■\",CD94,0)","v":0},"よくある",2,{"$f":"IF(BC73=\"■\",CG94,0)","v":0},"耐え難い",3]
[null,null,null,null,null,null,null,null,null,null,null,null,null,null,null,null,null,null,null,null,null,null,null,null,null,null,null,null,null,null,null,null,8,"育児・家族の病気",null,null,null,null,{"$f":"BY122","v":0},"（最高6点）",null,null,null,null,null,null,null,null,null,"参考）BPSD",null,null,null,{"$f":"CF161","v":0},"（最高24点）",null,null,null,null,null,null,"激しい抵抗\n暴言・暴行",null,null,{"$f":"IF(AK74=\"■\",BO95,0)","v":0},"ときどき",1,{"$f":"IF(AN74=\"■\",BR95,0)","v":0},"よくある",2,{"$f":"IF(AQ74=\"■\",BU95,0)","v":0},"耐え難い",3,"奇声\n不快な音",null,null,{"$f":"IF(AW74=\"■\",CA95,0)","v":0},"ときどき",1,{"$f":"IF(AZ74=\"■\",CD95,0)","v":0},"よくある",2,{"$f":"IF(BC74=\"■\",CG95,0)","v":0},"耐え難い",3]
[null,null,null,null,null,null,null,null,null,null,null,null,null,null,null,null,null,null,null,null,null,null,null,null,null,null,null,null,null,null,null,null,9,"介護者の介護の関わり方",null,null,null,null,{"$f":"CH126","v":0},"（最高6点）",null,null,null,null,null,null,null,null,null,"参考）介護側の事情",null,null,null,{"$f":"CA179","v":0},"（最高21点）",null,null,null,null,null,null,null,null,null,{"$f":"SUM(BM91:BM95)","v":0},null,null,{"$f":"SUM(BP91:BP95)","v":0},null,null,{"$f":"SUM(BS91:BS95)","v":0},null,null,null,null,null,{"$f":"SUM(BY91:BY95)","v":0},null,null,{"$f":"SUM(CB91:CB95)","v":0},null,null,{"$f":"SUM(CE91:CE95)","v":0}]
[null,null,null,null,null,null,null,null,null,null,null,null,null,null,null,null,null,null,null,null,null,null,null,null,null,null,null,null,null,null,null,null,10,"他の同居介護補助者",null,null,null,null,{"$f":"IF(AK11=\"\",0,BO130)","v":0},"（最高6点）",null,null,null,null,null,"独居調整",null,null,null,null,null,null,null,null,null,null,null,null,null,"認知症",null,null,null,null,null,null,null,null,null,null,null,"失明","錯乱","意思疎通",null,"歩行能力",null,"昼夜逆転"]
[null,null,null,null,null,null,null,null,null,null,null,null,null,null,null,null,null,null,null,null,null,null,null,null,null,null,null,null,null,null,null,null,11,"別居血縁者介護協力",null,null,null,null,{"$f":"IF(AK11=\"\",0,BW130)","v":0},"（最高6点）",null,null,null,null,null,{"$f":"IF(AK11=\"\",0,CI132)","v":0},null,null,null,"参考指標",null,null,null,{"$f":"SUM(BB91:BB97)","v":0},null,null,null,null,null,null,null,null,null,"合計",{"$f":"SUM(BM96:CE96)+CB99","v":0},null,null,9,6,3,null,2,2,1,null,"1～2",null,1,null,"加点"]
[null,null,null,null,null,null,null,null,null,null,null,null,null,null,null,null,null,null,null,null,null,null,null,null,null,null,null,null,null,null,null,null,12,"近隣者等の介護協力",null,null,null,null,{"$f":"IF(AK11=\"\",0,CE130)","v":0},"（最高6点）",null,null,null,null,null,"総合評価",null,null,null,null,null,null,null,null,null,null,null,null,null,null,null,null,null,null,null,null,null,12,8,4,null,{"$f":"IF(BC76=\"■\",BT98,0)","v":0},{"$f":"IF(AU77=\"■\",BU98,0)","v":0},{"$f":"IF(OR(AO77=\"■\",AR77=\"■\"),BV98,0)","v":0},null,{"$f":"IF(AL63=\"■\",2,IF(AP63=\"■\",1,0))+BZ99","v":0},null,{"$f":"IF(BP93*BS93>0,1,0)","v":0},null,{"$f":"SUM(BT99:BV99)","v":0},null,null,null,null,null,null,{"$f":"IF(BM98>=BP98,BP99,IF(BM98>=BQ98,BQ99,IF(BM98>=BR98,BR99,0)))","v":0}]
[null,null,null,null,null,null,null,null,null,null,null,null,null,null,null,null,null,null,null,null,null,null,null,null,null,null,null,null,null,null,null,null,13,"複数介護等による補正",null,null,null,null,{"$f":"CD122+BU122","v":0},"（最高6点）",null,null,null,null,null,{"$f":"IF(AK11=\"\",0,CI132+CI103+CI99+CI90+AT90)","v":0},null,null,null,"参考）困難度ランク",null,null,null,{"$f":"IF(BB98=0,0,RANK(BB98,保存記録!IJ6:IJ506,0))","v":0}]
[null,null,null,null,null,null,null,null,null,null,null,null,null,null,null,null,null,null,null,null,null,null,null,null,null,null,null,null,null,null,null,null,null,null,null,null,null,null,null,null,null,null,null,null,null,null,null,null,null,"※入力中は正しくランク表示されません。",null,null,null,null,null,null,null,null,null,null,null,null,null,null,null,"ショート系","デイ系","ヘルパー系",null,null,null,null,null,null,null,"入院減点"]
[null,null,null,null,null,null,null,null,null,null,null,null,null,null,null,null,null,null,null,null,null,null,null,null,null,null,null,null,null,null,null,null,null,null,null,null,null,null,null,null,null,null,null,null,null,null,null,null,null,null,null,null,null,null,null,null,null,null,null,"在宅サービスの利用",null,null,null,null,"換算率",1,0.7,0.6,null,null,null,null,null,"利用率",null,0.5,null,0.6,0.5,0.3,"以下",null,null,"判定"]
[null,null,null,null,null,null,null,null,null,null,null,null,null,null,null,null,null,null,null,null,null,null,null,null,null,null,null,null,null,null,null,null,null,null,null,null,null,null,null,null,null,null,null,null,null,null,null,null,null,null,null,null,null,null,null,null,null,null,null,null,null,null,null,null,"回数",{"$f":"AZ53","v":0},{"$f":"AZ54","v":0},{"$f":"AZ55","v":0},null,{"$f":"BN102*BN103","v":0},{"$f":"BO102*BO103","v":0},{"$f":"BP102*BP103","v":0},null,{"$f":"SUM(BR103:BT103)/30","v":0},null,{"$f":"IF(AZ18=\"■\",(1-BX102),1)*BV103","v":0},null,20,16,12,8,null,null,{"$f":"IF(BX103>=BZ102,BZ103,IF(BX103>=CA102,CA103,IF(BX103>=CB102,CB103,CC103)))","v":8},null,null,{"$f":"CF103","v":8}]
[]
[null,null,null,null,null,null,null,null,null,null,null,null,null,null,null,null,null,null,null,null,null,null,null,null,null,null,null,null,null,null,null,null,null,null,null,null,null,null,null,null,null,null,null,null,null,null,null,null,null,null,null,null,null,null,null,null,null,null,null,null,null,null,null,null,null,null,70,60,"－",null,null,"判定"]
[null,null,null,null,null,null,null,null,null,null,null,null,null,null,null,null,null,null,null,null,null,null,null,null,null,null,null,null,null,null,null,null,null,null,null,null,null,null,null,null,null,null,null,null,null,null,null,null,null,null,null,null,null,null,null,null,null,null,null,"介護者の年齢",null,null,null,null,{"$f":"BD21","v":""},null,6,4,2,null,null,{"$f":"IF(BM106=\"\",0,IF(BM106>=BO105,BO106,IF(BM106>=BP105,BP106,BQ106)))","v":0}]
[null,null,null,null,null,null,null,null,null,null,null,null,null,null,null,null,null,null,null,null,null,null,null,null,null,null,null,null,null,null,null,null,null,null,null,null,null,null,null,null,null,null,null,null,null,null,null,null,null,null,null,null,null,null,null,null,null,null,null,null,null,null,null,null,null,null,null,null,null,null,null,null,null,null,null,null,null,null,null,null,null,null,null,null,null,{"$f":"BT106","v":0}]
[null,null,null,null,null,null,null,null,null,null,null,null,null,null,null,null,null,null,null,null,null,null,null,null,null,null,null,null,null,null,null,null,null,null,null,null,null,null,null,null,null,null,null,null,null,null,null,null,null,null,null,null,null,null,null,null,null,null,null,null,null,null,null,null,null,null,null,null,null,null,null,null,null,null,null,4,null,null,5,null,null,6,null,"在宅指数"]
[null,null,null,null,null,null,null,null,null,null,null,null,null,null,null,null,null,null,null,null,null,null,null,null,null,null,null,null,null,null,null,null,null,null,null,null,null,null,null,null,null,null,null,null,null,null,null,null,null,null,null,null,null,null,null,null,null,null,null,null,null,null,null,"通い","１０回以上","１５回以上","２０回以上",null,"泊まり","５泊以上","１０泊以上","１５泊以上",null,"脱衣介助\n汚物処理",null,{"$f":"IF(OR(AT66=\"■\",AT67=\"■\"),1,0)","v":0},"ベッドで\nおむつ交換",null,{"$f":"IF(OR(BB66=\"■\",BB67=\"■\"),1,0)","v":0},"抱えて移乗\n全介助",null,{"$f":"IF(OR(AX66=\"■\",AX67=\"■\"),1,0)","v":0},null,{"$f":"ROUNDUP(IF(AZ18=\"■\",10,30-AZ53-(SUM(AZ54:AZ55)/1.5))/30,1)","v":1}]
[null,null,null,null,null,null,null,null,null,null,null,null,null,null,null,null,null,null,null,null,null,null,null,null,null,null,null,null,null,null,null,null,null,null,null,null,null,null,null,null,null,null,null,null,null,null,null,null,null,null,null,null,null,null,null,null,null,null,null,"介護者の負担",null,null,null,{"$f":"BD25+AV29","v":0},1,2,3,null,{"$f":"AX26+BD29","v":0},2,4,6,null,"半分以上介助",null,{"$f":"IF(AT68=\"■\",1,0)","v":0},"全介助・経管",null,{"$f":"IF(AX68=\"■\",1,0)","v":0},"１回３０分以上直接介助",null,{"$f":"IF(BB68=\"■\",1,0)","v":0}]
[null,null,null,null,null,null,null,null,null,null,null,null,null,null,null,null,null,null,null,null,null,null,null,null,null,null,null,null,null,null,null,null,null,null,null,null,null,null,null,null,null,null,null,null,null,null,null,null,null,null,null,null,null,null,null,null,null,null,null,null,null,null,null,null,{"$f":"IF(AND(BL110>=10,BL110<15),1,0)*BM110","v":0},{"$f":"IF(AND(BL110>=15,BL110<20),1,0)*BN110","v":0},{"$f":"IF($AW$159>=20,1,0)*BO110","v":0},null,null,{"$f":"IF(AND(BQ110>=5,BQ110<10),1,0)*BR110","v":0},{"$f":"IF(AND(BQ110>=10,BQ110<15),1,0)*BS110","v":0},{"$f":"IF(BQ110>=15,1,0)*BT110","v":0},null,"立位\n支えて移動",null,{"$f":"IF(AT63=\"■\",1,0)","v":0},"支えて\n立つ程度",null,{"$f":"IF(AX63=\"■\",1,0)","v":0},"失禁後の掃除着替え介助",null,{"$f":"IF(OR(BB64=\"■\",BB65=\"■\"),1,0)","v":0},null,"介護難易度",null,{"$f":"MIN(SUM(BM111:BO111)+SUM(BR111:BT111)+CF112+BM113+SUM(BP113:BR113)+BU113,6)","v":0}]
[null,null,null,null,null,null,null,null,null,null,null,null,null,null,null,null,null,null,null,null,null,null,null,null,null,null,null,null,null,null,null,null,null,null,null,null,null,null,null,null,null,null,null,null,null,null,null,null,null,null,null,null,null,null,null,null,null,null,null,null,null,null,null,null,null,null,null,null,null,null,null,null,null,null,null,{"$f":"SUM(BX109:BX111)*BX108","v":0},null,null,{"$f":"SUM(CA109:CA111)*CA108","v":0},null,null,{"$f":"SUM(CD109:CD111)*CD108","v":0},null,{"$f":"ROUNDDOWN((BX112+CA112+CD112)*CF109,0)","v":0}]
[null,null,null,null,null,null,null,null,null,null,null,null,null,null,null,null,null,null,null,null,null,null,null,null,null,null,null,null,null,null,null,null,null,null,null,null,null,null,null,null,null,null,null,null,null,null,null,null,null,null,null,null,null,null,null,null,null,null,null,null,null,null,null,"失明",{"$f":"IF(BC76=\"\",1,)","v":0},null,"意思\n疎通",{"$f":"IF(AO77=\"■\",1,0)","v":0},{"$f":"IF(AR77=\"■\",1,0)","v":0},{"$f":"IF(AU77=\"■\",1,0)","v":0},null,"体重",{"$f":"IF(BD77>=50,MIN(ROUNDUP((BD77-49)/10,6),0),0)","v":0}]
[]
[null,null,null,null,null,null,null,null,null,null,null,null,null,null,null,null,null,null,null,null,null,null,null,null,null,null,null,null,null,null,null,null,null,null,null,null,null,null,null,null,null,null,null,null,null,null,null,null,null,null,null,null,null,null,null,null,null,null,null,null,null,null,null,null,null,"無理","変調","厳しい"]
[null,null,null,null,null,null,null,null,null,null,null,null,null,null,null,null,null,null,null,null,null,null,null,null,null,null,null,null,null,null,null,null,null,null,null,null,null,null,null,null,null,null,null,null,null,null,null,null,null,null,null,null,null,null,null,null,null,null,null,null,null,null,null,"障害の有無",null,6,4,2]
[null,null,null,null,null,null,null,null,null,null,null,null,null,null,null,null,null,null,null,null,null,null,null,null,null,null,null,null,null,null,null,null,null,null,null,null,null,null,null,null,null,null,null,null,null,null,null,null,null,null,null,null,null,null,null,null,null,null,null,"介護者の障害",null,null,null,{"$f":"AK39","v":"□"},null,{"$f":"IF(AND(AZ43=\"■\",$BL$117=\"■\"),BN116,0)","v":0},{"$f":"IF(AND(AU43=\"■\",$BL$117=\"■\"),BO116,0)","v":0},{"$f":"IF(AND(AP43=\"■\",$BL$117=\"■\"),BP116,0)","v":0}]
[null,null,null,null,null,null,null,null,null,null,null,null,null,null,null,null,null,null,null,null,null,null,null,null,null,null,null,null,null,null,null,null,null,null,null,null,null,null,null,null,null,null,null,null,null,null,null,null,null,null,null,null,null,null,null,null,null,null,null,null,null,null,null,null,null,null,null,null,null,null,null,null,null,null,null,null,null,null,null,null,null,null,null,null,null,{"$f":"SUM(BN117:BP117)","v":0}]
[null,null,null,null,null,null,null,null,null,null,null,null,null,null,null,null,null,null,null,null,null,null,null,null,null,null,null,null,null,null,null,null,null,null,null,null,null,null,null,null,null,null,null,null,null,null,null,null,null,null,null,null,null,null,null,null,null,null,null,null,null,null,null,null,null,"就労世帯（就労時間）"]
[null,null,null,null,null,null,null,null,null,null,null,null,null,null,null,null,null,null,null,null,null,null,null,null,null,null,null,null,null,null,null,null,null,null,null,null,null,null,null,null,null,null,null,null,null,null,null,null,null,null,null,null,null,null,null,null,null,null,null,"介護者の就労",null,null,null,null,null,40,20,19,null,null,null,null,"老々世帯","育児世帯",null,null,null,null,"複数介護世帯"]
[null,null,null,null,null,null,null,null,null,null,null,null,null,null,null,null,null,null,null,null,null,null,null,null,null,null,null,null,null,null,null,null,null,null,null,null,null,null,null,null,null,null,null,null,null,null,null,null,null,null,null,null,null,null,null,null,null,null,null,"育児と病気",null,null,null,null,null,6,4,2,"判定",null,null,null,6,6,4,2,"判定",null,6,4,2,"判定"]
[null,null,null,null,null,null,null,null,null,null,null,null,null,null,null,null,null,null,null,null,null,null,null,null,null,null,null,null,null,null,null,null,null,null,null,null,null,null,null,null,null,null,null,null,null,null,null,null,null,null,null,null,null,null,null,null,null,null,null,null,null,null,null,null,null,{"$f":"IF($BA$37>=BN120,1,0)*BN121","v":0},{"$f":"IF(AND($BA$37>=BO120,BA37<BN120),1,0)*BO121","v":0},{"$f":"IF(AND($BA$37<=BP120,BA37>1),1,0)*BP121","v":0},{"$f":"MAX(BN122:BP122)","v":0},null,null,null,{"$f":"IF(AN18=\"■\",1,0)*BU121","v":0},{"$f":"IF(AW36=\"■\",1,0)*BV121","v":0},{"$f":"IF(AZ36=\"■\",1,0)*BW121","v":0},{"$f":"IF(BC36=\"■\",1,0)*BX121","v":0},{"$f":"MAX(BU122:BX122)","v":0},null,{"$f":"IF(AW35=\"■\",1,0)*CA121","v":0},{"$f":"IF(AZ35=\"■\",1,0)*CB121","v":0},{"$f":"IF(BC35=\"■\",1,0)*CC121","v":0},{"$f":"MAX(CA122:CC122)","v":0}]
[null,null,null,null,null,null,null,null,null,null,null,null,null,null,null,null,null,null,null,null,null,null,null,null,null,null,null,null,null,null,null,null,null,null,null,null,null,null,null,null,null,null,null,null,null,null,null,null,null,null,null,null,null,null,null,null,null,null,null,null,null,null,null,null,null,null,null,null,null,null,null,null,null,null,null,null,null,null,null,null,null,null,null,null,null,{"$f":"BQ122+BY122+CD122","v":0}]
[null,null,null,null,null,null,null,null,null,null,null,null,null,null,null,null,null,null,null,null,null,null,null,null,null,null,null,null,null,null,null,null,null,null,null,null,null,null,null,null,null,null,null,null,null,null,null,null,null,null,null,null,null,null,null,null,null,null,null,"介護者の関わり",null,null,null,"在宅指数","かかわれない","就労時間少","育児なし","障害なし","同居","近住",null,null,null,"かかわれない",0.15,0.3]
[null,null,null,null,null,null,null,null,null,null,null,null,null,null,null,null,null,null,null,null,null,null,null,null,null,null,null,null,null,null,null,null,null,null,null,null,null,null,null,null,null,null,null,null,null,null,null,null,null,null,null,null,null,null,null,null,null,null,null,null,null,null,null,{"$f":"CF109","v":1},{"$f":"IF(AZ43=\"■\",1,0)","v":0},{"$f":"IF(BA37<=20,1,0)","v":1},{"$f":"IF(SUM(BV122:BX122)=0,1,0)","v":1},{"$f":"IF(SUM(CA122:CC122)=0,1,0)","v":1},{"$f":"IF(AK25=\"■\",1,0)","v":0},{"$f":"IF(AND(AO25=\"■\",BD25+AV29<=4),1,0)","v":0},null,null,null,6,4,2]
[null,null,null,null,null,null,null,null,null,null,null,null,null,null,null,null,null,null,null,null,null,null,null,null,null,null,null,null,null,null,null,null,null,null,null,null,null,null,null,null,null,null,null,null,null,null,null,null,null,null,null,null,null,null,null,null,null,null,null,null,null,null,null,null,null,null,null,null,null,"※月４回以下の訪問",null,null,null,{"$f":"IF(AND(SUM(BQ125:BR125)>=1,BM125=1),BV125,0)","v":0},{"$f":"IF(AND(SUM(BQ125:BR125)>=1,SUM(BN125:BP125)=3),IF(BL125<=BW124,BW125,0),0)","v":0},{"$f":"IF(AND(SUM(BQ125:BR125)>=1,SUM(BN125:BP125)=3),IF(BL125<=BX124,BX125,0),0)","v":0},null,null,null,null,null,null,null,null,null,{"$f":"MAX(BV126:BX126)","v":0}]
[]
[null,null,null,null,null,null,null,null,null,null,null,null,null,null,null,null,null,null,null,null,null,null,null,null,null,null,null,null,null,null,null,null,null,null,null,null,null,null,null,null,null,null,null,null,null,null,null,null,null,null,null,null,null,null,null,null,null,null,null,"他の同居介護補助者",null,null,null,"なし","随時","常時",null,"他の非同居介護補助者",null,null,null,"なし","随時","常時",null,"近隣者の協力",null,null,null,"なし","随時","常時"]
[null,null,null,null,null,null,null,null,null,null,null,null,null,null,null,null,null,null,null,null,null,null,null,null,null,null,null,null,null,null,null,null,null,null,null,null,null,null,null,null,null,null,null,null,null,null,null,null,null,null,null,null,null,null,null,null,null,null,null,null,null,null,null,6,4,2,"判定",null,null,null,null,6,4,2,"判定",null,null,null,null,6,4,2,"判定",null,null,{"$f":"BO130+BW130+CE130","v":6}]
[null,null,null,null,null,null,null,null,null,null,null,null,null,null,null,null,null,null,null,null,null,null,null,null,null,null,null,null,null,null,null,null,null,null,null,null,null,null,null,null,null,null,null,null,null,null,null,null,null,null,null,null,null,null,null,null,null,null,null,null,null,null,null,{"$f":"IF(AK27=\"■\",1,0)*BL129","v":0},{"$f":"IF(AO27=\"■\",1,0)*BM129","v":0},{"$f":"IF(AS27=\"■\",1,0)*BN129","v":0},{"$f":"MAX(BL130:BN130,2)","v":2},null,null,null,null,{"$f":"IF(AK28=\"■\",1,0)*BT129","v":0},{"$f":"IF(AO28=\"■\",1,0)*BU129","v":0},{"$f":"IF(AS28=\"■\",1,0)*BV129","v":0},{"$f":"MAX(BT130:BV130,2)","v":2},null,null,null,null,{"$f":"IF(AY27=\"■\",1,0)*CB129","v":0},{"$f":"IF(BB27=\"■\",1,0)*CC129","v":0},{"$f":"IF(AY28=\"■\",1,0)*CD129","v":0},{"$f":"MAX(CB130:CD130,2)","v":2}]
[]
[null,null,null,null,null,null,null,null,null,null,null,null,null,null,null,null,null,null,null,null,null,null,null,null,null,null,null,null,null,null,null,null,null,null,null,null,null,null,null,null,null,null,null,null,null,null,null,null,null,null,null,null,null,null,null,null,null,null,null,null,null,null,null,null,"小計",null,null,"判定",null,null,null,null,null,null,null,null,null,null,null,null,null,null,null,null,null,null,{"$f":"BP133","v":6}]
[null,null,null,null,null,null,null,null,null,null,null,null,null,null,null,null,null,null,null,null,null,null,null,null,null,null,null,null,null,null,null,null,null,null,null,null,null,null,null,null,null,null,null,null,null,null,null,null,null,null,null,null,null,null,null,null,null,null,null,"独居",null,null,null,null,{"$f":"CH107+CH111+CH118+CH123+CH126+CH129","v":6},null,null,{"$f":"IF(AK18=\"■\",42,BM133)","v":6}]
[]
[]
[]
[null,null,null,null,null,null,null,null,null,null,null,null,null,null,null,null,null,null,null,null,null,null,null,null,null,null,null,null,null,null,null,null,null,null,null,null,null,null,null,null,null,null,null,null,null,null,null,null,null,null,null,null,null,null,null,null,null,null,null,null,null,null,null,{"$f":"AI57","v":"ペースメーカー"},{"$f":"AM57","v":"精神疾患管理"},{"$f":"AQ57","v":"胃瘻"},{"$f":"AU57","v":"疼痛管理"},{"$f":"AY57","v":"アレルギー疾患"},{"$f":"BC57","v":"摘便・浣腸"},{"$f":"AI58","v":"インスリン"},{"$f":"AM58","v":"在宅酸素療法"},{"$f":"AQ58","v":"経鼻栄養"},{"$f":"AU58","v":"喀痰吸引"},{"$f":"AY58","v":"褥瘡処置"},{"$f":"BC58","v":"気管切開"},{"$f":"AI59","v":"人工肛門処置"},{"$f":"AM59","v":"尿カテーテル処置"},{"$f":"AQ59","v":"ＩＶＨ"},{"$f":"AU59","v":"膀胱洗浄"},{"$f":"AY59","v":"導尿"},{"$f":"BC59","v":"透析"},{"$f":"AI60","v":"その他"}]
[null,null,null,null,null,null,null,null,null,null,null,null,null,null,null,null,null,null,null,null,null,null,null,null,null,null,null,null,null,null,null,null,null,null,null,null,null,null,null,null,null,null,null,null,null,null,null,null,null,null,null,null,null,null,null,null,null,null,null,"医療措置",null,null,null,{"$f":"マスタ変更!AK23","v":1},{"$f":"マスタ変更!AL23","v":1},{"$f":"マスタ変更!AM23","v":1},{"$f":"マスタ変更!AN23","v":1},{"$f":"マスタ変更!AO23","v":1},{"$f":"マスタ変更!AP23","v":3},{"$f":"マスタ変更!AK25","v":2},{"$f":"マスタ変更!AL25","v":2},{"$f":"マスタ変更!AM25","v":3},{"$f":"マスタ変更!AN25","v":3},{"$f":"マスタ変更!AO25","v":3},{"$f":"マスタ変更!AP25","v":1},{"$f":"マスタ変更!AK27","v":1},{"$f":"マスタ変更!AL27","v":2},{"$f":"マスタ変更!AM27","v":3},{"$f":"マスタ変更!AN27","v":1},{"$f":"マスタ変更!AO27","v":3},{"$f":"マスタ変更!AP27","v":2},{"$f":"マスタ変更!AQ27","v":1},null,{"$f":"MIN(SUM(BL139:CD139),4)","v":0}]
[null,null,null,null,null,null,null,null,null,null,null,null,null,null,null,null,null,null,null,null,null,null,null,null,null,null,null,null,null,null,null,null,null,null,null,null,null,null,null,null,null,null,null,null,null,null,null,null,null,null,null,null,null,null,null,null,null,null,null,null,null,null,null,{"$f":"IF(AH57=\"■\",1,0)*BL138","v":0},{"$f":"IF(AL57=\"■\",1,0)*BM138","v":0},{"$f":"IF(AP57=\"■\",1,0)*BN138","v":0},{"$f":"IF(AT57=\"■\",1,0)*BO138","v":0},{"$f":"IF(AX57=\"■\",1,0)*BP138","v":0},{"$f":"IF(BB57=\"■\",1,0)*BQ138","v":0},{"$f":"IF(AH58=\"■\",1,0)*BR138","v":0},{"$f":"IF(AL58=\"■\",1,0)*BS138","v":0},{"$f":"IF(AP58=\"■\",1,0)*BT138","v":0},{"$f":"IF(AT58=\"■\",1,0)*BU138","v":0},{"$f":"IF(AX58=\"■\",1,0)*BV138","v":0},{"$f":"IF(BB58=\"■\",1,0)*BW138","v":0},{"$f":"IF(AH59=\"■\",1,0)*BX138","v":0},{"$f":"IF(AL59=\"■\",1,0)*BY138","v":0},{"$f":"IF(AP59=\"■\",1,0)*BZ138","v":0},{"$f":"IF(AT59=\"■\",1,0)*CA138","v":0},{"$f":"IF(AX59=\"■\",1,0)*CB138","v":0},{"$f":"IF(BB59=\"■\",1,0)*CC138","v":0},{"$f":"IF(AH60=\"■\",1,0)*CD138","v":0}]
[]
[null,null,null,null,null,null,null,null,null,null,null,null,null,null,null,null,null,null,null,null,null,null,null,null,null,null,null,null,null,null,null,null,null,null,null,null,null,null,null,null,null,null,null,null,null,null,null,null,null,null,null,null,null,null,null,null,null,null,null,"身体障害",null,null,null,"軽度",null,null,"中度",null,null,"重度",null,null,null,null,"軽度",null,null,"中度",null,null,"重度"]
[null,null,null,null,null,null,null,null,null,null,null,null,null,null,null,null,null,null,null,null,null,null,null,null,null,null,null,null,null,null,null,null,null,null,null,null,null,null,null,null,null,null,null,null,null,null,null,null,null,null,null,null,null,null,null,null,null,null,null,null,null,"右腕",{"$f":"AL61","v":"□"},2,{"$f":"IF(BK142=\"■\",1,0)*BL142","v":0},{"$f":"AO61","v":"□"},3,{"$f":"IF(BN142=\"■\",1,0)*BO142","v":0},{"$f":"AR61","v":"□"},4,{"$f":"IF(BQ142=\"■\",1,0)*BR142","v":0},null,"左腕",{"$f":"AW61","v":"□"},1,{"$f":"IF(BV142=\"■\",1,0)*BW142","v":0},{"$f":"AZ61","v":"□"},2,{"$f":"IF(BY142=\"■\",1,0)*BZ142","v":0},{"$f":"BC61","v":"□"},3,{"$f":"IF(CB142=\"■\",1,0)*CC142","v":0},null,{"$f":"MIN(BM142+BP142+BS142+BX142+CA142+CD142+BM143+BP143+BS143+BX143+CA143+CD143,10)","v":0}]
[null,null,null,null,null,null,null,null,null,null,null,null,null,null,null,null,null,null,null,null,null,null,null,null,null,null,null,null,null,null,null,null,null,null,null,null,null,null,null,null,null,null,null,null,null,null,null,null,null,null,null,null,null,null,null,null,null,null,null,null,null,"右脚",{"$f":"AL62","v":"□"},2,{"$f":"IF(BK143=\"■\",1,0)*BL143","v":0},{"$f":"AO62","v":"□"},3,{"$f":"IF(BN143=\"■\",1,0)*BO143","v":0},{"$f":"AR62","v":"□"},4,{"$f":"IF(BQ143=\"■\",1,0)*BR143","v":0},null,"左脚",{"$f":"AW62","v":"□"},2,{"$f":"IF(BV143=\"■\",1,0)*BW143","v":0},{"$f":"AZ62","v":"□"},3,{"$f":"IF(BY143=\"■\",1,0)*BZ143","v":0},{"$f":"BC62","v":"□"},4,{"$f":"IF(CB143=\"■\",1,0)*CC143","v":0}]
[]
[]
[null,null,null,null,null,null,null,null,null,null,null,null,null,null,null,null,null,null,null,null,null,null,null,null,null,null,null,null,null,null,null,null,null,null,null,null,null,null,null,null,null,null,null,null,null,null,null,null,null,null,null,null,null,null,null,null,null,null,null,"介護の困難さ",null,null,null,null,"かなり遠い",null,null,"聞こえない",null,null,"失明"]
[null,null,null,null,null,null,null,null,null,null,null,null,null,null,null,null,null,null,null,null,null,null,null,null,null,null,null,null,null,null,null,null,null,null,null,null,null,null,null,null,null,null,null,null,null,null,null,null,null,null,null,null,null,null,null,null,null,null,null,null,null,null,"聴力",{"$f":"AO76","v":"□"},2,{"$f":"IF(BL147=\"■\",1,0)*BM147","v":0},{"$f":"AR76","v":"□"},3,{"$f":"IF(BO147=\"■\",1,0)*BP147","v":0},{"$f":"BC76","v":"□"},5,{"$f":"IF(BR147=\"■\",1,0)*BS147","v":0},null,"身長",{"$f":"AZ77","v":0},"㎝","180㎝以上",null,{"$f":"IF(BW147>180,1,0)","v":0},null,null,null,null,{"$f":"MIN(BN147+BN148+BQ147+BQ148+BT147+BT148+CA147+CA148,6)","v":0}]
[null,null,null,null,null,null,null,null,null,null,null,null,null,null,null,null,null,null,null,null,null,null,null,null,null,null,null,null,null,null,null,null,null,null,null,null,null,null,null,null,null,null,null,null,null,null,null,null,null,null,null,null,null,null,null,null,null,null,null,null,null,null,"意思疎通",{"$f":"AO77","v":"□"},2,{"$f":"IF(BL148=\"■\",1,0)*BM148","v":0},{"$f":"AR77","v":"□"},2,{"$f":"IF(BO148=\"■\",1,0)*BP148","v":0},{"$f":"AU77","v":"□"},3,{"$f":"IF(BR148=\"■\",1,0)*BS148","v":0},null,"体重",{"$f":"BD77","v":0},"Kg","50Kg以上",null,{"$f":"MIN(IF(BW148>=50,ROUNDUP((BW148-49)/10,0),0),6)","v":0}]
[null,null,null,null,null,null,null,null,null,null,null,null,null,null,null,null,null,null,null,null,null,null,null,null,null,null,null,null,null,null,null,null,null,null,null,null,null,null,null,null,null,null,null,null,null,null,null,null,null,null,null,null,null,null,null,null,null,null,null,null,null,null,null,null,"かなり困難",null,null,"不可能",null,null,"錯乱"]
[null,null,null,null,null,null,null,null,null,null,null,null,null,null,null,null,null,null,null,null,null,null,null,null,null,null,null,null,null,null,null,null,null,null,null,null,null,null,null,null,null,null,null,null,null,null,null,null,null,null,null,null,null,null,null,null,null,null,null,"ADLなど"]
[null,null,null,null,null,null,null,null,null,null,null,null,null,null,null,null,null,null,null,null,null,null,null,null,null,null,null,null,null,null,null,null,null,null,null,null,null,null,null,null,null,null,null,null,null,null,null,null,null,null,null,null,null,null,null,null,null,null,null,null,null,"歩行・立位の能力",null,{"$f":"AP63","v":"□"},"手引・伝い歩き",2,{"$f":"IF(BL151=\"■\",1,0)*BN151","v":0},{"$f":"AT63","v":"□"},"立位・支えて移動",2,{"$f":"IF(BP151=\"■\",1,0)*BR151","v":0},{"$f":"AX63","v":"□"},"支えて立つ程度",3,{"$f":"IF(BT151=\"■\",1,0)*BV151","v":0},{"$f":"BB63","v":"□"},"できない",3,{"$f":"IF(BX151=\"■\",1,0)*BZ151","v":0},null,null,null,null,{"$f":"MIN(BO158+BS158+BW158+CA158,24)","v":0}]
[null,null,null,null,null,null,null,null,null,null,null,null,null,null,null,null,null,null,null,null,null,null,null,null,null,null,null,null,null,null,null,null,null,null,null,null,null,null,null,null,null,null,null,null,null,null,null,null,null,null,null,null,null,null,null,null,null,null,null,null,null,"尿意",null,"□","曖昧",3,{"$f":"IF(BL152=\"■\",1,0)*BN152","v":0},"□","なし",4,0,"□","尿カテーテル",2,0,"□","失禁後の掃除\n着替え介助",2,0]
[null,null,null,null,null,null,null,null,null,null,null,null,null,null,null,null,null,null,null,null,null,null,null,null,null,null,null,null,null,null,null,null,null,null,null,null,null,null,null,null,null,null,null,null,null,null,null,null,null,null,null,null,null,null,null,null,null,null,null,null,null,"便意",null,"□","曖昧",4,0,"□","なし",5,0,"□","人工肛門",2,0,"□","失禁後の掃除\n着替え介助",3,0]
[null,null,null,null,null,null,null,null,null,null,null,null,null,null,null,null,null,null,null,null,null,null,null,null,null,null,null,null,null,null,null,null,null,null,null,null,null,null,null,null,null,null,null,null,null,null,null,null,null,null,null,null,null,null,null,null,null,null,null,null,null,"排泄（日中）",null,"□","自分で行くが\n失敗がある",1,0,"□","脱衣介助\n汚物処理",1,0,"□","抱えて移乗\n全介助",4,0,"□","ベッドで\nおむつ交換",3,0]
[null,null,null,null,null,null,null,null,null,null,null,null,null,null,null,null,null,null,null,null,null,null,null,null,null,null,null,null,null,null,null,null,null,null,null,null,null,null,null,null,null,null,null,null,null,null,null,null,null,null,null,null,null,null,null,null,null,null,null,null,null,"排泄（夜間）",null,"□","自分で行くが\n失敗がある",1,0,"□","脱衣介助\n汚物処理",2,0,"□","抱えて移乗\n全介助",5,0,"□","ベッドで\nおむつ交換",4,0]
[null,null,null,null,null,null,null,null,null,null,null,null,null,null,null,null,null,null,null,null,null,null,null,null,null,null,null,null,null,null,null,null,null,null,null,null,null,null,null,null,null,null,null,null,null,null,null,null,null,null,null,null,null,null,null,null,null,null,null,null,null,"食事摂取",null,"□","一部介助",1,0,"□","半分以上介助",2,0,"□","全介助・経管",3,0,"□","１回３０分以上\n直接介助",4,0]
[null,null,null,null,null,null,null,null,null,null,null,null,null,null,null,null,null,null,null,null,null,null,null,null,null,null,null,null,null,null,null,null,null,null,null,null,null,null,null,null,null,null,null,null,null,null,null,null,null,null,null,null,null,null,null,null,null,null,null,null,null,"日中の\n過ごし方",null,"□","家の中なら\n行動できる",1,0,"□","起きて生活\n屋外は補助必要",2,0,"□","寝たり起きたり\n屋外は介助",3,0,"□","寝室中心\nの生活",3,0]
[null,null,null,null,null,null,null,null,null,null,null,null,null,null,null,null,null,null,null,null,null,null,null,null,null,null,null,null,null,null,null,null,null,null,null,null,null,null,null,null,null,null,null,null,null,null,null,null,null,null,null,null,null,null,null,null,null,null,null,null,null,null,null,null,null,null,{"$f":"SUM(BO151:BO157)","v":0},null,null,null,{"$f":"SUM(BS151:BS157)","v":0},null,null,null,{"$f":"SUM(BW151:BW157)","v":0},null,null,null,{"$f":"SUM(CA151:CA157)","v":0}]
[]
[null,null,null,null,null,null,null,null,null,null,null,null,null,null,null,null,null,null,null,null,null,null,null,null,null,null,null,null,null,null,null,null,null,null,null,null,null,null,null,null,null,null,null,null,null,null,null,null,null,null,null,null,null,null,null,null,null,null,null,"BPSD"]
[null,null,null,null,null,null,null,null,null,null,null,null,null,null,null,null,null,null,null,null,null,null,null,null,null,null,null,null,null,null,null,null,null,null,null,null,null,null,null,null,null,null,null,null,null,null,null,null,null,null,null,null,null,null,null,null,null,null,null,null,null,"幻覚\n幻聴",{"$f":"IF(AK70=\"■\",BM161,0)","v":0},"ときどき",2,{"$f":"IF(AN70=\"■\",BP161,0)","v":0},"よくある",3,{"$f":"IF(AQ70=\"■\",BS161,0)","v":0},"耐え難い",4,"異食・収集等",{"$f":"IF(AW70=\"■\",BW161,0)","v":0},"ときどき",2,{"$f":"IF(AZ70=\"■\",CD91,0)","v":0},"よくある",3,{"$f":"IF(BC70=\"■\",CG91,0)","v":0},"耐え難い",4,null,null,{"$f":"MIN(BK166+BN166+BQ166+BU166+BX166+CA166,24)","v":0}]
[null,null,null,null,null,null,null,null,null,null,null,null,null,null,null,null,null,null,null,null,null,null,null,null,null,null,null,null,null,null,null,null,null,null,null,null,null,null,null,null,null,null,null,null,null,null,null,null,null,null,null,null,null,null,null,null,null,null,null,null,null,"物盗られ妄想\n被害妄想",{"$f":"IF(AK71=\"■\",BM162,0)","v":0},"ときどき",2,0,"よくある",3,0,"耐え難い",4,"精神科症状\nうつなど",{"$f":"IF(AW71=\"■\",BW162,0)","v":0},"ときどき",2,{"$f":"IF(AZ71=\"■\",CD92,0)","v":0},"よくある",3,{"$f":"IF(BC71=\"■\",CG92,0)","v":0},"耐え難い",4]
[null,null,null,null,null,null,null,null,null,null,null,null,null,null,null,null,null,null,null,null,null,null,null,null,null,null,null,null,null,null,null,null,null,null,null,null,null,null,null,null,null,null,null,null,null,null,null,null,null,null,null,null,null,null,null,null,null,null,null,null,null,"不眠行動\n昼夜逆転",0,"ときどき",2,0,"よくある",3,0,"耐え難い",4,"同じ話や\n行動繰り返し",{"$f":"IF(AW72=\"■\",BW163,0)","v":0},"ときどき",2,{"$f":"IF(AZ72=\"■\",CD93,0)","v":0},"よくある",3,{"$f":"IF(BC72=\"■\",CG93,0)","v":0},"耐え難い",4]
[null,null,null,null,null,null,null,null,null,null,null,null,null,null,null,null,null,null,null,null,null,null,null,null,null,null,null,null,null,null,null,null,null,null,null,null,null,null,null,null,null,null,null,null,null,null,null,null,null,null,null,null,null,null,null,null,null,null,null,null,null,"徘徊行動",0,"ときどき",{"$f":"BO94+1","v":2},0,"よくある",{"$f":"BR94+1","v":3},0,"耐え難い",{"$f":"BU94+1","v":4},"不潔行為\n弄便・放尿",{"$f":"IF(AW73=\"■\",BW164,0)","v":0},"ときどき",2,{"$f":"IF(AZ73=\"■\",CD94,0)","v":0},"よくある",3,{"$f":"IF(BC73=\"■\",CG94,0)","v":0},"耐え難い",4]
[null,null,null,null,null,null,null,null,null,null,null,null,null,null,null,null,null,null,null,null,null,null,null,null,null,null,null,null,null,null,null,null,null,null,null,null,null,null,null,null,null,null,null,null,null,null,null,null,null,null,null,null,null,null,null,null,null,null,null,null,null,"激しい抵抗\n暴言・暴行",0,"ときどき",2,0,"よくある",3,0,"耐え難い",4,"奇声\n不快な音",{"$f":"IF(AW74=\"■\",BW165,0)","v":0},"ときどき",2,{"$f":"IF(AZ74=\"■\",CD95,0)","v":0},"よくある",3,{"$f":"IF(BC74=\"■\",CG95,0)","v":0},"耐え難い",4]
[null,null,null,null,null,null,null,null,null,null,null,null,null,null,null,null,null,null,null,null,null,null,null,null,null,null,null,null,null,null,null,null,null,null,null,null,null,null,null,null,null,null,null,null,null,null,null,null,null,null,null,null,null,null,null,null,null,null,null,null,null,null,{"$f":"SUM(BK161:BK165)","v":0},null,null,{"$f":"SUM(BN161:BN165)","v":0},null,null,{"$f":"SUM(BQ161:BQ165)","v":0},null,null,null,{"$f":"SUM(BU161:BU165)","v":0},null,null,{"$f":"SUM(BX161:BX165)","v":0},null,null,{"$f":"SUM(CA161:CA165)","v":0}]
[]
[null,null,null,null,null,null,null,null,null,null,null,null,null,null,null,null,null,null,null,null,null,null,null,null,null,null,null,null,null,null,null,null,null,null,null,null,null,null,null,null,null,null,null,null,null,null,null,null,null,null,null,null,null,null,null,null,null,null,null,"介護環境"]
[]
[null,null,null,null,null,null,null,null,null,null,null,null,null,null,null,null,null,null,null,null,null,null,null,null,null,null,null,null,null,null,null,null,null,null,null,null,null,null,null,null,null,null,null,null,null,null,null,null,null,null,null,null,null,null,null,null,null,null,null,20,{"$f":"IF($AK$18=\"■\",1,0)","v":0},"独居",null,{"$f":"IF($AK$20=\"■\",1,0)","v":0},"介護者はいない",null,null,null,null,null,null,null,null,null,null,null,null,null,{"$f":"BH170*BI170*BL170","v":0},20]
[null,null,null,null,null,null,null,null,null,null,null,null,null,null,null,null,null,null,null,null,null,null,null,null,null,null,null,null,null,null,null,null,null,null,null,null,null,null,null,null,null,null,null,null,null,null,null,null,null,null,null,null,null,null,null,null,null,null,null,15,{"$f":"IF($AK$18=\"■\",1,0)","v":0},"独居",null,{"$f":"IF($AU$25=\"■\",1,0)","v":0},"他市から通い",null,{"$f":"IF($BQ$122=0,0,$BQ$122/2)","v":0},"就労",null,{"$f":"IF(MAX($BV$122:$BX$122)=0,0,MAX($BV$122:$BX$122)/2)","v":0},"育児",null,{"$f":"IF($CD$122=0,0,$CD$122/2)","v":0},"複数",null,{"$f":"MAX(BO171,BR171,BU171)","v":0},null,null,{"$f":"BH171*BL171*BI171+BX171","v":0},18]
[null,null,null,null,null,null,null,null,null,null,null,null,null,null,null,null,null,null,null,null,null,null,null,null,null,null,null,null,null,null,null,null,null,null,null,null,null,null,null,null,null,null,null,null,null,null,null,null,null,null,null,null,null,null,null,null,null,null,null,13,{"$f":"IF($AK$18=\"■\",1,0)","v":0},"独居",null,{"$f":"IF($AO$25=\"■\",1,0)","v":0},"近隣から",null,{"$f":"IF($BQ$122=0,0,$BQ$122/2)","v":0},"就労",null,{"$f":"IF(MAX($BV$122:$BX$122)=0,0,MAX($BV$122:$BX$122)/2)","v":0},"育児",null,{"$f":"IF($CD$122=0,0,$CD$122/2)","v":0},"複数",null,{"$f":"MAX(BO172,BR172,BU172)","v":0},null,null,{"$f":"BH172*BL172*BI172+BX172","v":0},16]
[null,null,null,null,null,null,null,null,null,null,null,null,null,null,null,null,null,null,null,null,null,null,null,null,null,null,null,null,null,null,null,null,null,null,null,null,null,null,null,null,null,null,null,null,null,null,null,null,null,null,null,null,null,null,null,null,null,null,null,18,{"$f":"IF($AN$18=\"■\",1,0)","v":0},"老々",null,{"$f":"IF($AK$20=\"■\",1,0)","v":0},"介護者はいない",null,null,null,null,null,null,null,null,null,null,null,null,null,{"$f":"BH173*BI173*BL173","v":0},18]
[null,null,null,null,null,null,null,null,null,null,null,null,null,null,null,null,null,null,null,null,null,null,null,null,null,null,null,null,null,null,null,null,null,null,null,null,null,null,null,null,null,null,null,null,null,null,null,null,null,null,null,null,null,null,null,null,null,null,null,18,{"$f":"IF($AN$18=\"■\",1,0)","v":0},"老々",null,{"$f":"IF($AK$39=\"■\",1,0)","v":0},"病気",null,null,null,null,null,null,null,null,null,null,null,null,null,{"$f":"BH174*BI174*BL174","v":0},18]
[null,null,null,null,null,null,null,null,null,null,null,null,null,null,null,null,null,null,null,null,null,null,null,null,null,null,null,null,null,null,null,null,null,null,null,null,null,null,null,null,null,null,null,null,null,null,null,null,null,null,null,null,null,null,null,null,null,null,null,13,{"$f":"IF($AN$18=\"■\",1,0)","v":0},"老々",null,{"$f":"IF($AU$25=\"■\",1,0)","v":0},"他市から通い",null,{"$f":"IF($BQ$122=0,0,$BQ$122/2)","v":0},"就労",null,{"$f":"IF(MAX($BV$122:$BX$122)=0,0,MAX($BV$122:$BX$122)/2)","v":0},"育児",null,{"$f":"IF($CD$122=0,0,$CD$122/2)","v":0},"複数",null,{"$f":"MIN(BO175+BR175+BU175,6)","v":0},null,null,{"$f":"BH175*BL175*BI175+BX175","v":0},19]
[null,null,null,null,null,null,null,null,null,null,null,null,null,null,null,null,null,null,null,null,null,null,null,null,null,null,null,null,null,null,null,null,null,null,null,null,null,null,null,null,null,null,null,null,null,null,null,null,null,null,null,null,null,null,null,null,null,null,null,11,{"$f":"IF($AN$18=\"■\",1,0)","v":0},"老々",null,{"$f":"IF($AO$25=\"■\",1,0)","v":0},"近隣から",null,0,"就労",null,{"$f":"IF(MAX($BV$122:$BX$122)=0,0,MAX($BV$122:$BX$122)/2)","v":0},"育児",null,{"$f":"IF($CD$122=0,0,$CD$122/2)","v":0},"複数",null,{"$f":"MIN(BO176+BR176+BU176,6)","v":0},null,null,{"$f":"BH176*BL176*BI176+BX176","v":0},17]
[null,null,null,null,null,null,null,null,null,null,null,null,null,null,null,null,null,null,null,null,null,null,null,null,null,null,null,null,null,null,null,null,null,null,null,null,null,null,null,null,null,null,null,null,null,null,null,null,null,null,null,null,null,null,null,null,null,null,null,10,{"$f":"IF($AK$18=\"■\",1,0)","v":0},"同居",null,{"$f":"IF(AND(AK27=\"■\",AK28=\"■\"),1,0)","v":0},"協力者なし",null,0,"就労",null,{"$f":"IF(MAX($BV$122:$BX$122)=0,0,MAX($BV$122:$BX$122)/2)","v":0},"育児",null,{"$f":"IF($CD$122=0,0,$CD$122/2)","v":0},"複数",null,0,null,null,{"$f":"BH177*BL177*BI177+BX177","v":0},16]
[null,null,null,null,null,null,null,null,null,null,null,null,null,null,null,null,null,null,null,null,null,null,null,null,null,null,null,null,null,null,null,null,null,null,null,null,null,null,null,null,null,null,null,null,null,null,null,null,null,null,null,null,null,null,null,null,null,null,null,null,null,null,null,null,"上記以外",null,0,"就労",null,{"$f":"IF(MAX($BV$122:$BX$122)=0,0,MAX($BV$122:$BX$122)/2)","v":0},"育児",null,{"$f":"IF($CD$122=0,0,$CD$122/2)","v":0},"複数",null,0,null,null,{"$f":"MIN(BX178*3,15)","v":0},15]
[null,null,null,null,null,null,null,null,null,null,null,null,null,null,null,null,null,null,null,null,null,null,null,null,null,null,null,null,null,null,null,null,null,null,null,null,null,null,null,null,null,null,null,null,null,null,null,null,null,null,null,null,null,null,null,null,null,null,null,null,{"$f":"IF(AZ18=\"■\",1,0)","v":0},"入院",null,{"$f":"IF(AK40=\"■\",1,0)","v":0},"退去",null,{"$f":"IF(AK41=\"■\",1,0)","v":0},"家の構造",null,{"$f":"ROUNDUP(MAX(MAX(BM111:BO111),MAX(BR111:BT111))/3,0)","v":0},"家族の頑張り",null,null,null,null,null,null,null,{"$f":"IF(BI179*BL179=1,ROUNDDOWN(MAX(CA170:CA178)*2/3,0),IF(BI179=1,ROUNDDOWN(MAX(CA170:CA178)/2,0),MAX(CA170:CA178)))+BO179*1+BR179","v":0}]

{"sheet":"保存記録","index":3,"n_rows":10,"n_cols":244,"rows_kept":10,"cut":false,"hidden":false,"merged":[[1,4,1,5],[0,4,0,5],[1,6,1,7],[0,8,0,9]]}
[null,null,null,null,"削除対象者",null,null,null,"削除日と削除理由"]
[null,"申込順",null,null,{"$f":"IF(D2=\"\",\"\",VLOOKUP(D2,D6:IJ506,7))","v":""},null,{"$f":"IF(D2=\"\",\"\",\"様を削除します。\")","v":""},null,{"$f":"NOW()","v":"2014-10-23T16:07:07.090"},null,null,"保存削除"]
[null,null,null,null,"点数順","申込順","50音順","施設順"]
[]
["削除理由",null,null,"番号","点数","受付日","新規申込","変更届","ふりがな","希望者\nお名前","性別","介護保険証","生年\n月日","要介護度","市町村","年","月","日","年","月","無","有","段階","〒","住所","電話","独居。","老々夫婦","家族同居","入院","施設・病院名","入所・入院時期","年","月","介護者なし","介護者","続柄","生年月日","〒","住所","電話","同居","近隣","通っている","頻度","泊まり","頻度","無","ときどき","とても","無","ときどき","とても","近隣から","他市から","頻度","泊まり","頻度","無","ときどき","とても","同じ","名前","続柄","電話","FAX","携帯","〒","住所","複数介護","常時","頻繁","随時","育児","常時","頻繁","随時","就労","労働時間","同居者なし","介護者障害","退去勧告","住宅事情","その他","内容","我慢できる","我慢と努力","限界","戸惑い","介護者意見","今すぐ入所","退院したら","将来入所","当該施設のみ","複数",1,2,3,4,5,6,1,2,3,4,5,6,"居宅介護支援事業所","既往歴","ショートステイ","事業所名","デイケア・デイサービス","事業所名","ヘルパー・訪問介護","事業所名","その他","ペースメーカー","精神疾患管理","胃瘻","疼痛管理","アレルギー疾患","摘便・浣腸","糖尿病管理","在宅酸素療法","経鼻栄養","喀痰吸引","褥瘡処置","気管切開","人工肛門処置","尿カテーテル処置","ＩＶＨ","膀胱洗浄","導尿","透析","その他","内容","主治医・病院","軽度障害","中度障害","重度障害","軽度障害","中度障害","重度障害","軽度障害","中度障害","重度障害","軽度障害","中度障害","重度障害","自力歩行","手引・伝い歩き","立位・支えて移動","支えて立つ程度","抱えて移乗","ある","曖昧","なし","尿カテーテル","失禁後の掃除\n着替え介助","ある","曖昧","なし","人工肛門","失禁後の掃除\n着替え介助","自分で行く","失敗がある","脱衣介助","抱えて移乗\n全介助","ベッドで交換","自分で行く","失敗がある","脱衣介助","抱えて移乗\n全介助","ベッドで交換","自力摂取","一部介助","半分以上介助","全介助・経管","１回３０分以上\n直接介助","近所なら\n行動できる","家の中なら\n行動できる","起きて生活\n屋外は補助必要","寝たり起きたり\n屋外は介助","寝室中心\nの生活","ときどき","よくある","耐え難い","ときどき","よくある","耐え難い","ときどき","よくある","耐え難い","ときどき","よくある","耐え難い","ときどき","よくある","耐え難い","ときどき","よくある","耐え難い","ときどき","よくある","耐え難い","ときどき","よくある","耐え難い","ときどき","よくある","耐え難い","ときどき","よくある","耐え難い","その他","問題なし","遠い","ひどく遠い","聴力なし\n確認不能","年齢相応","かなり悪い\n半盲","失明","問題なし","なんとか\n通じる","かなり\n厳しい","ほぼ不可能","錯乱状態","身長","体重","本人月収","1ヶ月に本人と親族が\n支出できる限界金額","特別な\n事情","MEMO1","MEMO2","MEMO3","MEMO4","MEMO5","MEMO6","MEMO7","MEMO8","MEMO9","MEMO10","予備","参考指標"]
["死亡"]
["取り下げ"]
["音信不通"]
["施設入所"]
["重複"]

{"sheet":"削除記録","index":4,"n_rows":5,"n_cols":244,"rows_kept":5,"cut":false,"hidden":false,"merged":[[0,4,0,5],[1,4,1,5],[1,6,1,10]]}
[null,null,null,null,"削除対象者"]
[null,null,null,null,{"$f":"IF(D2=\"\",\"\",VLOOKUP(D2,D6:IJ506,7))","v":""},null,{"$f":"IF(D2=\"\",\"\",\"様を削除します。この削除では記録は残りません！\")","v":""},null,null,null,null,"完全削除"]
[]
[]
[null,null,null,"番号","点数","受付日","削除年月日","削除理由","ふりがな","希望者\nお名前","性別","介護保険証","生年\n月日","要介護度","市町村","年","月","日","年","月","無","有","段階","〒","住所","電話","独居。","老々夫婦","家族同居","入院","施設・病院名","入所・入院時期","年","月","介護者なし","介護者","続柄","生年月日","〒","住所","電話","同居","近隣","通っている","頻度","泊まり","頻度","無","ときどき","とても","無","ときどき","とても","近隣から","他市から","頻度","泊まり","頻度","無","ときどき","とても","同じ","名前","続柄","電話","FAX","携帯","〒","住所","複数介護","常時","頻繁","随時","育児","常時","頻繁","随時","就労","労働時間","同居者なし","介護者障害","退去勧告","住宅事情","その他","内容","我慢できる","我慢と努力","限界","戸惑い","介護者意見","今すぐ入所","退院したら","将来入所","当該施設のみ","複数",1,2,3,4,5,6,1,2,3,4,5,6,"居宅介護支援事業所","既往歴","ショートステイ","事業所名","デイケア・デイサービス","事業所名","ヘルパー・訪問介護","事業所名","その他","ペースメーカー","精神疾患管理","胃瘻","疼痛管理","アレルギー疾患","摘便・浣腸","糖尿病管理","在宅酸素療法","経鼻栄養","喀痰吸引","褥瘡処置","気管切開","人工肛門処置","尿カテーテル処置","ＩＶＨ","膀胱洗浄","導尿","透析","その他","内容","主治医・病院","軽度障害","中度障害","重度障害","軽度障害","中度障害","重度障害","軽度障害","中度障害","重度障害","軽度障害","中度障害","重度障害","自力歩行","手引・伝い歩き","立位・支えて移動","支えて立つ程度","抱えて移乗","ある","曖昧","なし","尿カテーテル","失禁後の掃除\n着替え介助","ある","曖昧","なし","人工肛門","失禁後の掃除\n着替え介助","自分で行く","失敗がある","脱衣介助","抱えて移乗\n全介助","ベッドで交換","自分で行く","失敗がある","脱衣介助","抱えて移乗\n全介助","ベッドで交換","自力摂取","一部介助","半分以上介助","全介助・経管","１回３０分以上\n直接介助","近所なら\n行動できる","家の中なら\n行動できる","起きて生活\n屋外は補助必要","寝たり起きたり\n屋外は介助","寝室中心\nの生活","ときどき","よくある","耐え難い","ときどき","よくある","耐え難い","ときどき","よくある","耐え難い","ときどき","よくある","耐え難い","ときどき","よくある","耐え難い","ときどき","よくある","耐え難い","ときどき","よくある","耐え難い","ときどき","よくある","耐え難い","ときどき","よくある","耐え難い","ときどき","よくある","耐え難い","その他","問題なし","遠い","ひどく遠い","聴力なし\n確認不能","年齢相応","かなり悪い\n半盲","失明","問題なし","なんとか\n通じる","かなり\n厳しい","ほぼ不可能","錯乱状態","身長","体重","本人月収","1ヶ月に本人と親族が\n支出できる限界金額","特別な\n事情","MEMO1","MEMO2","MEMO3","MEMO4","MEMO5","MEMO6","MEMO7","MEMO8","MEMO9","MEMO10","予備","参考指標"]

{"sheet":"宛名印刷","index":5,"n_rows":35,"n_cols":62,"rows_kept":35,"cut":false,"hidden":false,"merged":[[1,7,1,8],[1,9,1,10],[1,11,1,12],[1,13,1,14],[1,25,1,27],[5,46,5,49],[6,27,6,28],[6,30,7,44],[6,45,7,59],[6,61,6,62],[5,31,5,34],[9,7,9,10],[9,40,9,41],[9,55,9,56],[10,31,10,34],[10,46,10,49],[8,12,10,19],[8,30,9,39],[8,45,9,54],[11,61,11,62],[13,7,19,8],[13,30,14,39],[13,45,14,54],[14,40,14,41],[14,55,14,56],[15,31,15,34],[15,46,15,49],[16,27,16,28],[16,30,17,44],[11,9,18,10],[11,12,12,18],[11,27,11,28],[11,30,12,44],[11,45,12,59],[21,61,21,62],[16,45,17,59],[16,61,16,62],[18,30,19,39],[18,45,19,54],[19,40,19,41],[19,55,19,56],[20,31,20,34],[20,46,20,49],[21,27,21,28],[21,30,22,44],[21,45,22,59],[23,30,24,39],[23,45,24,54],[24,40,24,41],[24,55,24,56],[25,31,25,34],[25,46,25,49],[31,27,31,28],[31,30,32,44],[31,45,32,59],[31,61,31,62],[26,27,26,28],[26,30,27,44],[26,45,27,59],[26,61,26,62],[28,30,29,39],[28,45,29,54],[29,40,29,41],[29,55,29,56],[33,30,34,39],[33,45,34,54],[34,40,34,41],[34,55,34,56],[30,31,30,34],[30,46,30,49]]}
[null,null,null,null,null,null,null,"印刷はじめ",null,null,null,"印刷終わり"]
[null,null,null,null,null,null,null,1,null,"から",null,2,null,"まで",null,null,null,null,null,null,null,null,null,null,null,"宛名印刷"]
[null,"印刷番号"]
[]
[]
[null,null,null,null,null,null,null,null,null,null,null,null,{"$f":"IF($B$2=\"\",0,MID(VLOOKUP($B$2,保存記録!$D$6:$BQ$506,65),1,1))","v":0},{"$f":"IF($B$2=\"\",0,MID(VLOOKUP($B$2,保存記録!$D$6:$BQ$506,65),2,1))","v":0},{"$f":"IF($B$2=\"\",0,MID(VLOOKUP($B$2,保存記録!$D$6:$BQ$506,65),3,1))","v":0},{"$f":"IF($B$2=\"\",0,MID(VLOOKUP($B$2,保存記録!$D$6:$BQ$506,65),4,1))","v":0},{"$f":"IF($B$2=\"\",0,MID(VLOOKUP($B$2,保存記録!$D$6:$BQ$506,65),5,1))","v":0},{"$f":"IF($B$2=\"\",0,MID(VLOOKUP($B$2,保存記録!$D$6:$BQ$506,65),6,1))","v":0},{"$f":"IF($B$2=\"\",0,MID(VLOOKUP($B$2,保存記録!$D$6:$BQ$506,65),7,1))","v":0},{"$f":"IF($B$2=\"\",0,MID(VLOOKUP($B$2,保存記録!$D$6:$BQ$506,65),8,1))","v":0},null,null,null,null,null,null,null,null,null,null,"〒",{"$f":"IF(AB7=\"\",0,VLOOKUP(AB7,保存記録!$D$6:$BQ$506,65))","v":0},null,null,null,null,null,null,null,null,null,null,null,null,null,"〒",{"$f":"IF(BJ7=\"\",0,VLOOKUP(BJ7,保存記録!$D$6:$BQ$506,65))","v":0}]
[null,null,null,null,null,null,null,null,null,null,null,null,null,null,null,null,null,null,null,null,null,null,null,null,null,null,null,null,null,null,{"$f":"IF(AB7=\"\",\"\",(VLOOKUP(AB7,保存記録!$D$6:$BQ$506,66)))","v":""},null,null,null,null,null,null,null,null,null,null,null,null,null,null,{"$f":"IF(BJ7=\"\",\"\",(VLOOKUP(BJ7,保存記録!$D$6:$BQ$506,66)))","v":""},null,null,null,null,null,null,null,null,null,null,null,null,null,null,null,{"$f":"IF(AB32=\"\",\"\",AB32+1)","v":""}]
[null,null,null,null,null,null,null,null,null,null,null,null,null,null,null,null,null,null,null,null,null,null,null,{"$f":"MID(W3,2,1)","v":""}]
[null,null,null,null,null,null,null,null,null,null,null,null,{"$f":"IF(B2=\"\",\"\",(VLOOKUP(B2,保存記録!$D$6:$BQ$506,66)))","v":""},null,null,null,null,null,null,null,null,null,null,null,null,null,null,null,null,null,{"$f":"IF(AB7=\"\",\"\",(VLOOKUP(AB7,保存記録!$D$6:$BQ$506,60)))","v":""},null,null,null,null,null,null,null,null,null,null,null,null,null,null,{"$f":"IF(BJ7=\"\",\"\",(VLOOKUP(BJ7,保存記録!$D$6:$BQ$506,60)))","v":""}]
[null,null,null,null,null,null,null,"〒２９０－０１７８",null,null,null,null,null,null,null,null,null,null,null,null,null,null,null,null,null,null,null,null,null,null,null,null,null,null,null,null,null,null,null,null,"様",null,null,null,null,null,null,null,null,null,null,null,null,null,null,"様"]
[null,null,null,null,null,null,null,null,null,null,null,null,null,null,null,null,null,null,null,null,null,null,null,null,null,null,null,null,null,null,"〒",{"$f":"IF(AB12=\"\",0,VLOOKUP(AB12,保存記録!$D$6:$BQ$506,65))","v":0},null,null,null,null,null,null,null,null,null,null,null,null,null,"〒",{"$f":"IF(BJ12=\"\",0,VLOOKUP(BJ12,保存記録!$D$6:$BQ$506,65))","v":0}]
[null,null,null,null,null,null,null,null,null,"市原市神崎２６３番地１\n特別養護老人ホーム辰巳萬緑苑",null,null,{"$f":"IF(B2=\"\",\"\",(VLOOKUP(B2,保存記録!$D$6:$BQ$506,60)))","v":""},null,null,null,null,null,null,null,null,null,null,null,null,null,null,{"$f":"IF(AB7=\"\",\"\",AB7+1)","v":""},null,null,{"$f":"IF(AB12=\"\",\"\",(VLOOKUP(AB12,保存記録!$D$6:$BQ$506,66)))","v":""},null,null,null,null,null,null,null,null,null,null,null,null,null,null,{"$f":"IF(BJ12=\"\",\"\",(VLOOKUP(BJ12,保存記録!$D$6:$BQ$506,66)))","v":""},null,null,null,null,null,null,null,null,null,null,null,null,null,null,null,{"$f":"IF(BJ7=\"\",\"\",BJ7+1)","v":""}]
[null,null,null,null,null,null,null,null,null,null,null,null,null,null,null,null,null,null,null,"様"]
[null,null,null,null,null,null,null,"℡０４３６（７５）２２５１",null,null,null,null,null,null,null,null,null,null,null,null,null,null,null,null,null,null,null,null,null,null,{"$f":"IF(AB12=\"\",\"\",(VLOOKUP(AB12,保存記録!$D$6:$BQ$506,60)))","v":""},null,null,null,null,null,null,null,null,null,null,null,null,null,null,{"$f":"IF(BJ12=\"\",\"\",(VLOOKUP(BJ12,保存記録!$D$6:$BQ$506,60)))","v":""}]
[null,null,null,null,null,null,null,null,null,null,null,null,null,null,null,null,null,null,null,null,null,null,null,null,null,null,null,null,null,null,null,null,null,null,null,null,null,null,null,null,"様",null,null,null,null,null,null,null,null,null,null,null,null,null,null,"様"]
[null,null,null,null,null,null,null,null,null,null,null,null,null,null,null,null,null,null,null,null,null,null,null,null,null,null,null,null,null,null,"〒",{"$f":"IF(AB17=\"\",0,VLOOKUP(AB17,保存記録!$D$6:$BQ$506,65))","v":0},null,null,null,null,null,null,null,null,null,null,null,null,null,"〒",{"$f":"IF(BJ17=\"\",0,VLOOKUP(BJ17,保存記録!$D$6:$BQ$506,65))","v":0}]
[null,null,null,null,null,null,null,null,null,null,null,null,null,null,null,null,null,null,null,null,null,null,null,null,"　",null,null,{"$f":"IF(AB12=\"\",\"\",AB12+1)","v":""},null,null,{"$f":"IF(AB17=\"\",\"\",(VLOOKUP(AB17,保存記録!$D$6:$BQ$506,66)))","v":""},null,null,null,null,null,null,null,null,null,null,null,null,null,null,{"$f":"IF(BJ17=\"\",\"\",(VLOOKUP(BJ17,保存記録!$D$6:$BQ$506,66)))","v":""},null,null,null,null,null,null,null,null,null,null,null,null,null,null,null,{"$f":"IF(BJ12=\"\",\"\",BJ12+1)","v":""}]
[]
[null,null,null,null,null,null,null,null,null,null,null,null,null,null,null,null,null,null,null,null,null,null,null,null,null,null,null,null,null,null,{"$f":"IF(AB17=\"\",\"\",(VLOOKUP(AB17,保存記録!$D$6:$BQ$506,60)))","v":""},null,null,null,null,null,null,null,null,null,null,null,null,null,null,{"$f":"IF(BJ17=\"\",\"\",(VLOOKUP(BJ17,保存記録!$D$6:$BQ$506,60)))","v":""}]
[null,null,null,null,null,null,null,null,null,null,null,null,null,null,null,null,null,null,null,null,null,null,null,null,null,null,null,null,null,null,null,null,null,null,null,null,null,null,null,null,"様",null,null,null,null,null,null,null,null,null,null,null,null,null,null,"様"]
[null,null,null,null,null,null,null,null,null,null,null,null,null,null,null,null,null,null,null,null,null,null,null,null,null,null,null,null,null,null,"〒",{"$f":"IF(AB22=\"\",0,VLOOKUP(AB22,保存記録!$D$6:$BQ$506,65))","v":0},null,null,null,null,null,null,null,null,null,null,null,null,null,"〒",{"$f":"IF(BJ22=\"\",0,VLOOKUP(BJ22,保存記録!$D$6:$BQ$506,65))","v":0}]
[null,null,null,null,null,null,null,null,null,null,null,null,null,null,null,null,null,null,null,null,null,null,null,null,null,null,null,{"$f":"IF(AB17=\"\",\"\",AB17+1)","v":""},null,null,{"$f":"IF(AB22=\"\",\"\",(VLOOKUP(AB22,保存記録!$D$6:$BQ$506,66)))","v":""},null,null,null,null,null,null,null,null,null,null,null,null,null,null,{"$f":"IF(BJ22=\"\",\"\",(VLOOKUP(BJ22,保存記録!$D$6:$BQ$506,66)))","v":""},null,null,null,null,null,null,null,null,null,null,null,null,null,null,null,{"$f":"IF(BJ17=\"\",\"\",BJ17+1)","v":""}]
[]
[null,null,null,null,null,null,null,null,null,null,null,null,null,null,null,null,null,null,null,null,null,null,null,null,null,null,null,null,null,null,{"$f":"IF(AB22=\"\",\"\",(VLOOKUP(AB22,保存記録!$D$6:$BQ$506,60)))","v":""},null,null,null,null,null,null,null,null,null,null,null,null,null,null,{"$f":"IF(BJ22=\"\",\"\",(VLOOKUP(BJ22,保存記録!$D$6:$BQ$506,60)))","v":""}]
[null,null,null,null,null,null,null,null,null,null,null,null,null,null,null,null,null,null,null,null,null,null,null,null,null,null,null,null,null,null,null,null,null,null,null,null,null,null,null,null,"様",null,null,null,null,null,null,null,null,null,null,null,null,null,null,"様"]
[null,null,null,null,null,null,null,null,null,null,null,null,null,null,null,null,null,null,null,null,null,null,null,null,null,null,null,null,null,null,"〒",{"$f":"IF(AB27=\"\",0,VLOOKUP(AB27,保存記録!$D$6:$BQ$506,65))","v":0},null,null,null,null,null,null,null,null,null,null,null,null,null,"〒",{"$f":"IF(BJ27=\"\",0,VLOOKUP(BJ27,保存記録!$D$6:$BQ$506,65))","v":0}]
[null,null,null,null,null,null,null,null,null,null,null,null,null,null,null,null,null,null,null,null,null,null,null,null,null,null,null,{"$f":"IF(AB22=\"\",\"\",AB22+1)","v":""},null,null,{"$f":"IF(AB27=\"\",\"\",(VLOOKUP(AB27,保存記録!$D$6:$BQ$506,66)))","v":""},null,null,null,null,null,null,null,null,null,null,null,null,null,null,{"$f":"IF(BJ27=\"\",\"\",(VLOOKUP(BJ27,保存記録!$D$6:$BQ$506,66)))","v":""},null,null,null,null,null,null,null,null,null,null,null,null,null,null,null,{"$f":"IF(BJ22=\"\",\"\",BJ22+1)","v":""}]
[]
[null,null,null,null,null,null,null,null,null,null,null,null,null,null,null,null,null,null,null,null,null,null,null,null,null,null,null,null,null,null,{"$f":"IF(AB27=\"\",\"\",(VLOOKUP(AB27,保存記録!$D$6:$BQ$506,60)))","v":""},null,null,null,null,null,null,null,null,null,null,null,null,null,null,{"$f":"IF(BJ27=\"\",\"\",(VLOOKUP(BJ27,保存記録!$D$6:$BQ$506,60)))","v":""}]
[null,null,null,null,null,null,null,null,null,null,null,null,null,null,null,null,null,null,null,null,null,null,null,null,null,null,null,null,null,null,null,null,null,null,null,null,null,null,null,null,"様",null,null,null,null,null,null,null,null,null,null,null,null,null,null,"様"]
[null,null,null,null,null,null,null,null,null,null,null,null,null,null,null,null,null,null,null,null,null,null,null,null,null,null,null,null,null,null,"〒",{"$f":"IF(AB32=\"\",0,VLOOKUP(AB32,保存記録!$D$6:$BQ$506,65))","v":0},null,null,null,null,null,null,null,null,null,null,null,null,null,"〒",{"$f":"IF(BJ32=\"\",0,VLOOKUP(BJ32,保存記録!$D$6:$BQ$506,65))","v":0}]
[null,null,null,null,null,null,null,null,null,null,null,null,null,null,null,null,null,null,null,null,null,null,null,null,null,null,null,{"$f":"IF(AB27=\"\",\"\",AB27+1)","v":""},null,null,{"$f":"IF(AB32=\"\",\"\",(VLOOKUP(AB32,保存記録!$D$6:$BQ$506,66)))","v":""},null,null,null,null,null,null,null,null,null,null,null,null,null,null,{"$f":"IF(BJ32=\"\",\"\",(VLOOKUP(BJ32,保存記録!$D$6:$BQ$506,66)))","v":""},null,null,null,null,null,null,null,null,null,null,null,null,null,null,null,{"$f":"IF(BJ27=\"\",\"\",BJ27+1)","v":""}]
[]
[null,null,null,null,null,null,null,null,null,null,null,null,null,null,null,null,null,null,null,null,null,null,null,null,null,null,null,null,null,null,{"$f":"IF(AB32=\"\",\"\",(VLOOKUP(AB32,保存記録!$D$6:$BQ$506,60)))","v":""},null,null,null,null,null,null,null,null,null,null,null,null,null,null,{"$f":"IF(BJ32=\"\",\"\",(VLOOKUP(BJ32,保存記録!$D$6:$BQ$506,60)))","v":""}]
[null,null,null,null,null,null,null,null,null,null,null,null,null,null,null,null,null,null,null,null,null,null,null,null,null,null,null,null,null,null,null,null,null,null,null,null,null,null,null,null,"様",null,null,null,null,null,null,null,null,null,null,null,null,null,null,"様"]

{"sheet":"市町村報告","index":6,"n_rows":50,"n_cols":12,"rows_kept":50,"cut":false,"hidden":false,"merged":[[13,6,13,7],[21,6,21,7],[39,6,39,7]]}
[]
[]
[null,null,null,"別紙様式１"]
[]
[null,null,null,null,"特別養護老人ホーム新規入所者及び入所申込者等調査票(市町村長あて)"]
[]
[null,"年",null,null,null,"法人名",null,"社会福井法人琢心会"]
[null,26,null,null,null,"施設名",null,"特別養護老人ホーム辰巳萬緑苑"]
[null,null,null,null,null,"作成担当者名",null,"小出　浩丸"]
[null,"月"]
[null,9,null,{"$f":"\"平成\"&B8&\"年\"&B11&\"月2日から平成\"&IF(B11=12,B8+1,B8)&\"年\"&IF(B11=12,1,B11+1)&\"月1日までの貴市町村在住の新規入所者、入居申込者は以下のとおりです。\"","v":"平成26年9月2日から平成26年10月1日までの貴市町村在住の新規入所者、入居申込者は以下のとおりです。"}]
[]
[null,null,null,"１　新規入所者"]
["削除記録から番号記入",null,null,"氏　　名","氏名(ﾌﾘｶﾞﾅ)","住　　所","入居年月日",null,"介護保険被保険者番号"]
[null,null,null,{"$f":"IF($B15=\"\",\"\",VLOOKUP($B15,削除記録!$D$6:$O$506,7))","v":""},{"$f":"IF($B15=\"\",\"\",VLOOKUP($B15,削除記録!$D$4:$O$506,6))","v":""},{"$f":"IF($B15=\"\",\"\",VLOOKUP($B15,削除記録!$D$4:$Z$506,22))","v":""},null,null,{"$f":"IF($B15=\"\",\"\",VLOOKUP($B15,削除記録!$D$4:$O$506,9))","v":""},null,null,{"$f":"PHONETIC(E15)","v":""}]
[null,null,null,{"$f":"IF($B16=\"\",\"\",VLOOKUP($B16,削除記録!$D$6:$O$506,7))","v":""},{"$f":"IF($B16=\"\",\"\",VLOOKUP($B16,削除記録!$D$4:$O$506,6))","v":""},{"$f":"IF($B16=\"\",\"\",VLOOKUP($B16,削除記録!$D$4:$Z$506,22))","v":""},null,null,{"$f":"IF($B16=\"\",\"\",VLOOKUP($B16,削除記録!$D$4:$O$506,9))","v":""}]
[null,null,null,{"$f":"IF($B17=\"\",\"\",VLOOKUP($B17,削除記録!$D$6:$O$506,7))","v":""},{"$f":"IF($B17=\"\",\"\",VLOOKUP($B17,削除記録!$D$4:$O$506,6))","v":""},{"$f":"IF($B17=\"\",\"\",VLOOKUP($B17,削除記録!$D$4:$Z$506,22))","v":""},null,null,{"$f":"IF($B17=\"\",\"\",VLOOKUP($B17,削除記録!$D$4:$O$506,9))","v":""}]
[null,null,null,{"$f":"IF($B18=\"\",\"\",VLOOKUP($B18,削除記録!$D$6:$O$506,7))","v":""},{"$f":"IF($B18=\"\",\"\",VLOOKUP($B18,削除記録!$D$4:$O$506,6))","v":""},{"$f":"IF($B18=\"\",\"\",VLOOKUP($B18,削除記録!$D$4:$Z$506,22))","v":""},null,null,{"$f":"IF($B18=\"\",\"\",VLOOKUP($B18,削除記録!$D$4:$O$506,9))","v":""}]
[null,null,null,{"$f":"IF($B19=\"\",\"\",VLOOKUP($B19,削除記録!$D$6:$O$506,7))","v":""},{"$f":"IF($B19=\"\",\"\",VLOOKUP($B19,削除記録!$D$4:$O$506,6))","v":""},{"$f":"IF($B19=\"\",\"\",VLOOKUP($B19,削除記録!$D$4:$Z$506,22))","v":""},null,null,{"$f":"IF($B19=\"\",\"\",VLOOKUP($B19,削除記録!$D$4:$O$506,9))","v":""}]
[]
[null,null,null,"２　新規入所申込者"]
["保存記録から番号記入",null,null,"氏　　名","氏名(ﾌﾘｶﾞﾅ)","住　　所","現在の状況",null,"介護保険被保険者番号"]
[null,null,null,{"$f":"IF($B23=\"\",\"\",VLOOKUP($B23,保存記録!$D$4:$Z$506,7))","v":""},{"$f":"IF($B23=\"\",\"\",VLOOKUP($B23,保存記録!$D$4:$Z$506,6))","v":""},{"$f":"IF($B23=\"\",\"\",VLOOKUP($B23,削除記録!$D$4:$Z$506,22))","v":""},null,null,{"$f":"IF($B23=\"\",\"\",VLOOKUP($B23,削除記録!$D$4:$Z$506,9))","v":""}]
[null,null,null,{"$f":"IF($B24=\"\",\"\",VLOOKUP($B24,保存記録!$D$4:$Z$506,7))","v":""},{"$f":"IF($B24=\"\",\"\",VLOOKUP($B24,保存記録!$D$4:$Z$506,6))","v":""},{"$f":"IF($B24=\"\",\"\",VLOOKUP($B24,削除記録!$D$4:$Z$506,22))","v":""},null,null,{"$f":"IF($B24=\"\",\"\",VLOOKUP($B24,削除記録!$D$4:$Z$506,9))","v":""}]
[null,null,null,{"$f":"IF($B25=\"\",\"\",VLOOKUP($B25,保存記録!$D$4:$Z$506,7))","v":""},{"$f":"IF($B25=\"\",\"\",VLOOKUP($B25,保存記録!$D$4:$Z$506,6))","v":""},{"$f":"IF($B25=\"\",\"\",VLOOKUP($B25,削除記録!$D$4:$Z$506,22))","v":""},null,null,{"$f":"IF($B25=\"\",\"\",VLOOKUP($B25,削除記録!$D$4:$Z$506,9))","v":""},null,1,"居宅"]
[null,null,null,{"$f":"IF($B26=\"\",\"\",VLOOKUP($B26,保存記録!$D$4:$Z$506,7))","v":""},{"$f":"IF($B26=\"\",\"\",VLOOKUP($B26,保存記録!$D$4:$Z$506,6))","v":""},{"$f":"IF($B26=\"\",\"\",VLOOKUP($B26,削除記録!$D$4:$Z$506,22))","v":""},null,null,{"$f":"IF($B26=\"\",\"\",VLOOKUP($B26,削除記録!$D$4:$Z$506,9))","v":""},null,2,"病院"]
[null,null,null,{"$f":"IF($B27=\"\",\"\",VLOOKUP($B27,保存記録!$D$4:$Z$506,7))","v":""},{"$f":"IF($B27=\"\",\"\",VLOOKUP($B27,保存記録!$D$4:$Z$506,6))","v":""},{"$f":"IF($B27=\"\",\"\",VLOOKUP($B27,削除記録!$D$4:$Z$506,22))","v":""},null,null,{"$f":"IF($B27=\"\",\"\",VLOOKUP($B27,削除記録!$D$4:$Z$506,9))","v":""},null,3,"老人保健施設"]
[null,null,null,{"$f":"IF($B28=\"\",\"\",VLOOKUP($B28,保存記録!$D$4:$Z$506,7))","v":""},{"$f":"IF($B28=\"\",\"\",VLOOKUP($B28,保存記録!$D$4:$Z$506,6))","v":""},{"$f":"IF($B28=\"\",\"\",VLOOKUP($B28,削除記録!$D$4:$Z$506,22))","v":""},null,null,{"$f":"IF($B28=\"\",\"\",VLOOKUP($B28,削除記録!$D$4:$Z$506,9))","v":""},null,4,"療養病床郡"]
[null,null,null,{"$f":"IF($B29=\"\",\"\",VLOOKUP($B29,保存記録!$D$4:$Z$506,7))","v":""},{"$f":"IF($B29=\"\",\"\",VLOOKUP($B29,保存記録!$D$4:$Z$506,6))","v":""},{"$f":"IF($B29=\"\",\"\",VLOOKUP($B29,削除記録!$D$4:$Z$506,22))","v":""},null,null,{"$f":"IF($B29=\"\",\"\",VLOOKUP($B29,削除記録!$D$4:$Z$506,9))","v":""},null,5,"養護老人ホーム"]
[null,null,null,{"$f":"IF($B30=\"\",\"\",VLOOKUP($B30,保存記録!$D$4:$Z$506,7))","v":""},{"$f":"IF($B30=\"\",\"\",VLOOKUP($B30,保存記録!$D$4:$Z$506,6))","v":""},{"$f":"IF($B30=\"\",\"\",VLOOKUP($B30,削除記録!$D$4:$Z$506,22))","v":""},null,null,{"$f":"IF($B30=\"\",\"\",VLOOKUP($B30,削除記録!$D$4:$Z$506,9))","v":""},null,6,"その他"]
[null,null,null,{"$f":"IF($B31=\"\",\"\",VLOOKUP($B31,保存記録!$D$4:$Z$506,7))","v":""},{"$f":"IF($B31=\"\",\"\",VLOOKUP($B31,保存記録!$D$4:$Z$506,6))","v":""},{"$f":"IF($B31=\"\",\"\",VLOOKUP($B31,削除記録!$D$4:$Z$506,22))","v":""},null,null,{"$f":"IF($B31=\"\",\"\",VLOOKUP($B31,削除記録!$D$4:$Z$506,9))","v":""}]
[null,null,null,{"$f":"IF($B32=\"\",\"\",VLOOKUP($B32,保存記録!$D$4:$Z$506,7))","v":""},{"$f":"IF($B32=\"\",\"\",VLOOKUP($B32,保存記録!$D$4:$Z$506,6))","v":""},{"$f":"IF($B32=\"\",\"\",VLOOKUP($B32,削除記録!$D$4:$Z$506,22))","v":""},null,null,{"$f":"IF($B32=\"\",\"\",VLOOKUP($B32,削除記録!$D$4:$Z$506,9))","v":""}]
[null,null,null,{"$f":"IF($B33=\"\",\"\",VLOOKUP($B33,保存記録!$D$4:$Z$506,7))","v":""},{"$f":"IF($B33=\"\",\"\",VLOOKUP($B33,保存記録!$D$4:$Z$506,6))","v":""},{"$f":"IF($B33=\"\",\"\",VLOOKUP($B33,削除記録!$D$4:$Z$506,22))","v":""},null,null,{"$f":"IF($B33=\"\",\"\",VLOOKUP($B33,削除記録!$D$4:$Z$506,9))","v":""}]
[null,null,null,{"$f":"IF($B34=\"\",\"\",VLOOKUP($B34,保存記録!$D$4:$Z$506,7))","v":""},{"$f":"IF($B34=\"\",\"\",VLOOKUP($B34,保存記録!$D$4:$Z$506,6))","v":""},{"$f":"IF($B34=\"\",\"\",VLOOKUP($B34,削除記録!$D$4:$Z$506,22))","v":""},null,null,{"$f":"IF($B34=\"\",\"\",VLOOKUP($B34,削除記録!$D$4:$Z$506,9))","v":""}]
[null,null,null,{"$f":"IF($B35=\"\",\"\",VLOOKUP($B35,保存記録!$D$4:$Z$506,7))","v":""},{"$f":"IF($B35=\"\",\"\",VLOOKUP($B35,保存記録!$D$4:$Z$506,6))","v":""},{"$f":"IF($B35=\"\",\"\",VLOOKUP($B35,削除記録!$D$4:$Z$506,22))","v":""},null,null,{"$f":"IF($B35=\"\",\"\",VLOOKUP($B35,削除記録!$D$4:$Z$506,9))","v":""}]
[null,null,null,{"$f":"IF($B36=\"\",\"\",VLOOKUP($B36,保存記録!$D$4:$Z$506,7))","v":""},{"$f":"IF($B36=\"\",\"\",VLOOKUP($B36,保存記録!$D$4:$Z$506,6))","v":""},{"$f":"IF($B36=\"\",\"\",VLOOKUP($B36,削除記録!$D$4:$Z$506,22))","v":""},null,null,{"$f":"IF($B36=\"\",\"\",VLOOKUP($B36,削除記録!$D$4:$Z$506,9))","v":""}]
[null,null,null,{"$f":"IF($B37=\"\",\"\",VLOOKUP($B37,保存記録!$D$4:$Z$506,7))","v":""},{"$f":"IF($B37=\"\",\"\",VLOOKUP($B37,保存記録!$D$4:$Z$506,6))","v":""},{"$f":"IF($B37=\"\",\"\",VLOOKUP($B37,削除記録!$D$4:$Z$506,22))","v":""},null,null,{"$f":"IF($B37=\"\",\"\",VLOOKUP($B37,削除記録!$D$4:$Z$506,9))","v":""}]
[]
[null,null,null,"３　入所申込取り下げ者"]
["削除台帳から番号記入",null,null,"氏　　名","氏名(ﾌﾘｶﾞﾅ)","住　　所","現在の状況",null,"介護保険被保険者番号"]
[null,null,null,{"$f":"IF($B41=\"\",\"\",VLOOKUP($B41,削除記録!$D$6:$O$506,7))","v":""},{"$f":"IF($B41=\"\",\"\",VLOOKUP($B41,削除記録!$D$4:$O$506,6))","v":""},{"$f":"IF($B41=\"\",\"\",VLOOKUP($B41,削除記録!$D$4:$Z$506,22))","v":""},null,{"$f":"IF($B41=\"\",\"\",VLOOKUP($B41,削除記録!$D$4:$O$506,5))","v":""},{"$f":"IF($B41=\"\",\"\",VLOOKUP($B41,削除記録!$D$4:$O$506,9))","v":""}]
[null,null,null,{"$f":"IF($B42=\"\",\"\",VLOOKUP($B42,削除記録!$D$6:$O$506,7))","v":""},{"$f":"IF($B42=\"\",\"\",VLOOKUP($B42,削除記録!$D$4:$O$506,6))","v":""},{"$f":"IF($B42=\"\",\"\",VLOOKUP($B42,削除記録!$D$4:$Z$506,22))","v":""},null,{"$f":"IF($B42=\"\",\"\",VLOOKUP($B42,削除記録!$D$4:$O$506,9))","v":""},{"$f":"IF($B42=\"\",\"\",VLOOKUP($B42,削除記録!$D$4:$O$506,9))","v":""}]
[null,null,null,{"$f":"IF($B43=\"\",\"\",VLOOKUP($B43,削除記録!$D$6:$O$506,7))","v":""},{"$f":"IF($B43=\"\",\"\",VLOOKUP($B43,削除記録!$D$4:$O$506,6))","v":""},{"$f":"IF($B43=\"\",\"\",VLOOKUP($B43,削除記録!$D$4:$Z$506,22))","v":""},null,{"$f":"IF($B43=\"\",\"\",VLOOKUP($B43,削除記録!$D$4:$O$506,9))","v":""},{"$f":"IF($B43=\"\",\"\",VLOOKUP($B43,削除記録!$D$4:$O$506,9))","v":""}]
[null,null,null,{"$f":"IF($B44=\"\",\"\",VLOOKUP($B44,削除記録!$D$6:$O$506,7))","v":""},{"$f":"IF($B44=\"\",\"\",VLOOKUP($B44,削除記録!$D$4:$O$506,6))","v":""},{"$f":"IF($B44=\"\",\"\",VLOOKUP($B44,削除記録!$D$4:$Z$506,22))","v":""},null,{"$f":"IF($B44=\"\",\"\",VLOOKUP($B44,削除記録!$D$4:$O$506,9))","v":""},{"$f":"IF($B44=\"\",\"\",VLOOKUP($B44,削除記録!$D$4:$O$506,9))","v":""}]
[null,null,null,{"$f":"IF($B45=\"\",\"\",VLOOKUP($B45,削除記録!$D$6:$O$506,7))","v":""},{"$f":"IF($B45=\"\",\"\",VLOOKUP($B45,削除記録!$D$4:$O$506,6))","v":""},{"$f":"IF($B45=\"\",\"\",VLOOKUP($B45,削除記録!$D$4:$Z$506,22))","v":""},null,{"$f":"IF($B45=\"\",\"\",VLOOKUP($B45,削除記録!$D$4:$O$506,9))","v":""},{"$f":"IF($B45=\"\",\"\",VLOOKUP($B45,削除記録!$D$4:$O$506,9))","v":""}]
[null,null,null,"注2）　上表の２及び３中「現在の状況」欄は入所希望者及び申し込み取り下げ者が１－居宅、２－病院"]
[null,null,null,"３－介護老人保健施設、4－療養型病床群、５－養護老人ホーム、６－その他、のうちいずれの状況"]
[null,null,null,"にあるかを番号で記入してください。"]
[null,null,null,"注３)　表3の入所申し込み取り下げ者については、15年4月1日から運用されている入所指針に基づき、"]
[null,null,null,"入所待機者順位名簿作成のための調査を行ったところ、入所を取り下げた者を含めて記載してください。"]